{"text_format":"1","workbook":"xlsx","n_sheets":4,"sheets":["aides","Labos","STS","Recherche Macro"],"not_rendered":{"charts":0,"images":1,"macros":1,"external_links":0,"defined_names":19,"comments":0,"pivot_tables":0},"unopened":[],"bounds":{"document_bytes":16777216,"sheet_cells":100000,"rows_first":2000,"rows_last":500,"rows_between":2000,"halvings":0,"cell_chars":16384,"cell_head_chars":4096},"cells_cut":0,"cells_raw":0,"read":"whole","date_system":"1900"}

{"sheet":"aides","index":0,"n_rows":43,"n_cols":11,"rows_kept":43,"cut":false,"hidden":true,"merged":[]}
[]
[null,null,null,null,null,null,null,null,"ne jamais modifier cette colonne","on peut modifier cette colonne","on peut modifier cette colonne"]
[null,"codes pour les photos LBM","commentaires d'aide","code photo STS",null,"et / ou",null,"nombre pages","documents","référence","nom"]
[null,"gazo",null,"violet",null,"ET",null,1,"doc 1"," GESO_QUA_DO_92_1","Attestation_de_consultation_et_consentement_genetique__CHT_Gaston_Bourret"]
[null,"bleu",null,"rouge",null,"OU",null,1,"doc 2","GESO_LABO_DO_35_1","Renseignements_en_vue_de_l_examen_des_caracteristiques_genetiques_predispositon_genetique_et_pharmacogenetique"]
[null,"gris",null,"jaune",null,null,null,2,"doc 3","GESO_QUA_DO_33_2","Renseignements_en_vue_de_l_examen_des_caracteristiques_genetiques__trouble_du_developpement_et_maladie_genetique"]
[null,"violet",null,"jaune4",null,null,null,2,"doc 4","GESO_LABO_DO_34_1","Fiche_de_renseignements_cliniques_en_Oncologie_Hematologie_et_condition_de_prelevements"]
[null,"copro",null,"jaune10",null,null,null,2,"doc 5","GESO_QUA_DO_38_2","Diagnostic_prenatal___Renseignements_cliniques_et_prescription"]
[null,"jaune",null,"rouge4",null,null,null,1,"doc 6","GESO_QUA_DO_39_2","Consentement_de_la_femme_enceinte_en_vue_du_diagnostic_prenatal_in_utero"]
[null,"rouge",null,"violet3",null,null,null,1,"doc 7","GESO_QUA_DO_56_1","Analyse_chromosomique_par_puce_a_ADN_ACPA"]
[null,"vert",null,"violet2",null,null,null,1,"doc 8","GESO_QUA_DO_129_1","Prescription_et_renseignements_clinico_biologiques_Etude_du_gene_CFTR__Mucoviscidose"]
[null,"ecbu","photo avec urine jaune","rouge2",null,null,null,1,"doc 9","GESO_QUA_DO_85_1","Recherche_d_un_deficit_en_DihydroPyrimidine_Deshydrogenase__DPD_"]
[null,"poud","pour autre liquide bio","rougeviolet",null,null,null,3,"doc 10","GESO_LABO_DO_18_1","HemophilieWillebrand_genetique_moleculaire_CHU_Nantes"]
[null,"aero",null,null,null,null,null,2,"doc 11"]
[null,"ecou","écouvillon bois",null,null,null,null,1,"doc 12","GESO_LABO_DO_30_1","Bon_de_demande_test_quantiferon"]
[null,"ecouG","écouvillon gel (transport bact)",null,null,null,null,2,"doc 13","GESO_LABO_DO_22_1","FEUILLE_DE_CONSENTEMENT_POUR_LE_DEPISTAGE_SANGUIN_DU_RIQUE_ACCRU_DE_TRISOMIE_21_FTALE"]
[null,"ecouT","écouvillon transport (BM)",null,null,null,null,1,"doc 14","GESO_QUA_DO_40_1","Dosage des antirétroviraux"]
[null,"ecouD","écouvillon embout dacron",null,null,null,null,1,"doc 15","GESO_QUA_DO_55_2"," Bon de prescription AES CHT"]
[null,"ecouMD","écouvillon tige métal embout dacron",null,null,null,null,2,"doc 16","GESO_LABO_DO_44_1","Bon de prescription grippe"]
[null,"pylori","milieu pylori",null,null,null,null,1,"doc 17"]
[null,"aprot","tube aprotine",null,null,null,null,1,"doc 18","GESO_QUA_DO_61_1","Score des 4T"]
[null,"lame",null,null,null,null,null,1,"doc 19","aucune référénce","CST FIV"]
[null,"ecouDouble","ecouvillon genexpert double tête",null,null,null,null,1,"doc 20","ENR-A19-005-01","CST Autoconservation sperme chri"]
[null,"scalpel",null,null,null,null,null,1,"doc 21","ENR-A19-015-01","CST Transfert"]
[null,"ecouecouG","Photo ecouvillon + milieu transport + tige blanche",null,null,null,null,1,"doc 22","ENR-A19-006-01","CST autoconservation sperme frais"]
[null,"hemoc",null,null,null,null,null,1,"doc 23","ENR-A19-004-01","CST autoconservation ovocytes"]
[null,"PSL",null,null,null,null,null,1,"doc 24"]
[null,"vs",null,null,null,null,null,1,"doc 25"]
[null,"oosafe5+02",null,null,null,null,null,1,"doc 26"]
[null,"kitcook",null,null,null,null,null,1,"doc 27"]
[null,"kitelios",null,null,null,null,null,1,"doc 28"]
[null,"oosafe5+3",null,null,null,null,null,1,"doc 29"]
[null,"oosafe14",null,null,null,null,null,1,"doc 30"]
[null,"JCD",null,null,null,null,null,1,"doc 31"]
[null,"borate",null,null,null,null,null,1,"doc 32"]
[null,"brun","tube urine sans borate",null,null,null,null,1,"doc 33"]
[null,"photo","+photo2 vide a utiliser si nécessaire",null,null,null,null,1,"doc 34"]
[null,null,null,null,null,null,null,1,"doc 35"]
[null,null,null,null,null,null,null,1,"doc 36"]
[null,null,null,null,null,null,null,1,"doc 37"]
[null,null,null,null,null,null,null,1,"doc 38"]
[null,null,null,null,null,null,null,1,"doc 39"]
[null,null,null,null,null,null,null,1,"doc 40"]

{"sheet":"Labos","index":1,"n_rows":513,"n_cols":45,"rows_kept":513,"cut":false,"hidden":true,"merged":[[0,2,0,4],[0,5,0,33]]}
[null," ",null,null,null,"Répertoire des analyses : Laboratoires du CHT Gaston Bourret",null,null,null,null,null,null,null,null,null,null,null,null,null,null,null,null,null,null,null,null,null,null,null,null,null,null,null,null,null,null,null,null,null,null,null,null,null,"Analyse","Laboratoire exécutant                       "]
["Service","Analyse","Code informatique","Abréviation = inutilisé","Nature du prélèvement","Contenant 1","Photo 1","Recommandations / Renseignements complémentaires","Type 1","T° 1","Avant transport 1","Délai 1","Contenant 2","photo2","inutile","Type 2","T° 2","Avant transport 2","Délai2","Contenant 3","inutile 3","Type 3","T° 3","Avant transport 3","Délai 3","Laboratoire exécutant                       ","Fréquence / Délais min. et max. de rendu de résultat (jours ouvrés)","Délais d’ajout (échantillon prétraité)","Principe de la méthode \n","Code acte","Fiche renseignement n°1","Fiche renseignement n°2","Et ou OU","Cotation",null,null,null,null,null,null,null,null,null,"*ca*"]
["LBM","Abcès (pus profond  kyste)","ABCES",null,"Collection purulente","Poudrier stérile","poud","-","-","20°C ± 5°C","-","< 2 heures","1 Ecouvillon 1 gélosé","ecouecouG",null,"-","20°C ± 5°C","-","< 24 heures","1 Ecouvillon",null,"-","5°C à 25°C","-","< 2 heures","Bactériologie","Fréquence : 24 heures sur 24  7j sur 7 \nDélai : de 48 heures à 1 semaine","-","Examen direct + Culture Bactérienne",null,null,null,"OU","B200"]
["LBM","Ac Anti antigènes nucléaires solubles  (titrage/Identification)","ENAT","ENA (titrage/Identification)","Sang","Tube sec (bouchon rouge) ","rouge","-","-","5°C à 20°C","-","<24 heures","Tube sec (bouchon rouge) ","rouge",null,"Serum décanté congelé","-20°C",null,">24 heures",null,null,null,null,null,null,"Biochimie","2 fois par semaine/ délai max : 5 jours","7 Jours","ELIA Phadia",1457,null,null,null,"B70 + B70",null,null,null,null,null,null,null,null,null,"Analyse","Laboratoire exécutant                       "]
["LBM","Ac Anti antigènes nucléaires solubles (dépistage)","ENA","ENA (dépistage)","Sang","Tube sec (bouchon rouge) ","rouge","dépistage SSA  SSB/La  Sm  U1RNP  Jo-1  SCL70  Centromère B (patient CHT uniquement : en cas de résultat positif une identification sera réalisée)","-","5°C à 20°C","-","<24 heures","Tube sec (bouchon rouge) ","rouge",null,"Serum décanté congelé","-20°C",null,">24 heures",null,null,null,null,null,null,"Biochimie","2 fois par semaine/ délai max : 5 jours","7 Jours","ELIA Phadia",1456,null,null,null,"B40 + B40",null,null,null,null,null,null,null,null,null,"Ac Anti antigènes nucléaires solubles  (titrage/Identification)","Biochimie"]
["LBM","Ac Anti beta 2 glycoprotéine 1 IgG","B2GG","B2GP1 IgG","Sang","Tube sec (bouchon rouge) ","rouge","-","-","5°C à 20°C","-","<24 heures","Tube sec (bouchon rouge) ","rouge",null,"Serum décanté congelé","-20°C","-",">24 heures",null,null,null,null,null,null,"Biochimie","2 fois par semaine/ délai max : 5 jours","7 Jours","ELIA Phadia",1460,null,null,null,"B70",null,null,null,null,null,null,null,null,null,"Ac Anti cardiolipine IgG","Biochimie"]
["LBM","Ac Anti beta 2 glycoprotéine 1 IgM","B2GM","B2GP1 IgM","Sang","Tube sec (bouchon rouge) ","rouge","-","-","5°C à 20°C","-","<24 heures","Tube sec (bouchon rouge) ","rouge",null,"Serum décanté congelé","-20°C","-",">24 heures",null,null,null,null,null,null,"Biochimie","2 fois par semaine/ délai max : 5 jours","7 Jours","ELIA Phadia",1460,null,null,null,"B70",null,null,null,null,null,null,null,null,null,"Ac Anti cardiolipine IgM","Biochimie"]
["LBM","Ac Anti cardiolipine IgG","ACCARG","Anti-cardiolipine IgG","Sang","Tube sec (bouchon rouge) ","rouge","-","-","5°C à 20°C","-","<24 heures","Tube sec (bouchon rouge) ","rouge",null,"Serum décanté congelé","-20°C","-",">24 heures",null,null,null,null,null,null,"Biochimie","2 fois par semaine/ délai max : 5 jours","7 Jours","ELIA Phadia",1460,null,null,null,"B70",null,null,null,null,null,null,null,null,null,"Ac Anti-cytoplasme des polynucléaires neutrophiles (ANCA) (MPO/PR3)","Biochimie"]
["LBM","Ac Anti cardiolipine IgM","ACCARM","Anti-cardiolipine IgM","Sang","Tube sec (bouchon rouge) ","rouge","-","-","5°C à 20°C","-","<24 heures","Tube sec (bouchon rouge) ","rouge",null,"Serum décanté congelé","-20°C","-",">24 heures",null,null,null,null,null,null,"Biochimie","2 fois par semaine/ délai max : 5 jours","7 Jours","ELIA Phadia",1460,null,null,null,"B70",null,null,null,null,null,null,null,null,null,"Ac Anti-nucléaires (=ACAN=FAN)","Biochimie"]
["LBM","Ac Anti SSA/Ro","SSA","SSA","Sang","Tube sec (bouchon rouge) ","rouge","-","-","5°C à 20°C","-","<24 heures","Tube sec (bouchon rouge) ","rouge",null,"Serum décanté congelé","-20°C","-",">24 heures",null,null,null,null,null,null,"Biochimie","2 fois par semaine/ délai max : 5 jours","7 Jours","ELIA Phadia",1457,null,null,null,"B70",null,null,null,null,null,null,null,null,null,"ACE (Antigène carcino-embryonnaire)","Biochimie"]
["LBM","Ac Anti-cytoplasme des polynucléaires neutrophiles (ANCA) (MPO/PR3)","ANCA2","ANCA","Sang","Tube sec (bouchon rouge) ","rouge","-","-","5°C à 25°C","-","< 4 heures",null,null,null,null,null,null,null,null,null,null,null,null,null,"Biochimie","2 fois par semaine/ délai max : 5 jours","-","ELIA Phadia",1463,null,null,null,"B70",null,null,null,null,null,null,null,null,null,"Angiostrongylose PCR (Angiostrongylus cantonensis)","Biologie Moléculaire"]
["LBM","Ac Anti-DNA natif","DNAN","ADN natif","Sang","Tube sec (bouchon rouge) ","rouge","-","-","5°C à 20°C","-","<24 heures","Tube sec (bouchon rouge) ","rouge",null,"Serum décanté congelé","-20°C","-",">24 heures",null,null,null,null,null,null,"Biochimie","2 fois par semaine/ délai max : 5 jours","7 Jours","ELIA Phadia",1455,null,null,null,"B70",null,null,null,null,null,null,null,null,null,"CA 125 ","Biochimie"]
["LBM","AC Anti-membrane basale glomérulaire","GBM","Anti MBG","Sang","Tube sec (bouchon rouge) ","rouge","-","-","5°C à 20°C","-","<24 heures","Tube sec (bouchon rouge) ","rouge",null,"Serum décanté congelé","-20°C","-",">24 heures",null,null,null,null,null,null,"Biochimie","2 fois par semaine/ délai max : 5 jours","7 Jours","ELIA Phadia",1497,null,null,null,"B70",null,null,null,null,null,null,null,null,null,"CA 15.3 ","Biochimie"]
["LBM","AC Anti-mitochondrie 2","ACM2","Mitochondrie","Sang","Tube sec (bouchon rouge) ","rouge","-","-","5°C à 20°C","-","<24 heures","Tube sec (bouchon rouge) ","rouge",null,"Serum décanté congelé","-20°C","-",">24 heures",null,null,null,null,null,null,"Biochimie","2 fois par semaine/ délai max : 5 jours","7 Jours","ELIA Phadia",1470,null,null,null,"B70",null,null,null,null,null,null,null,null,null,"CA 19.9 ","Biochimie"]
["LBM","Ac Anti-nucléaires (=ACAN=FAN)","ACAN2","ACAN","Sang","Tube sec (bouchon rouge) ","rouge","Patient CHT uniquement : en cas de dépistage positif un titrage des ac Anti Antigènes nucléaires solubles (ENA) sera réalisé.","-","5°C à 25°C","-","< 4 heures",null,null,null,"Serum décanté congelé",null,null,null,null,null,null,null,null,null,"Biochimie","2 fois par semaine/ délai max : 5 jours","-","ELIA Phadia",1453,null,null,null,"B40",null,null,null,null,null,null,null,null,null,"Calcium","Biochimie"]
["LBM","AC Anti-peptides citrullinés","CCP","CCP","Sang","Tube sec (bouchon rouge) ","rouge","-","-","5°C à 20°C","-","<24 heures","Tube sec (bouchon rouge) ","rouge",null,"Serum décanté congelé","-20°C","-",">24 heures",null,null,null,null,null,null,"Biochimie","2 fois par semaine/ délai max : 5 jours","7 Jours","ELIA Phadia",1827,null,null,null,"B60",null,null,null,null,null,null,null,null,null,"Calcium ionisé","Biochimie"]
["LBM","Ac Anti-Récepteur à la TSH (TRAK)","TRAB","TRAK (TRAB)","Sang","Tube sec (bouchon rouge) ","rouge","Pas de forte hémolyse.","-","5°C à 25°C",null,"<24 heures","Tube sec (bouchon rouge) ",null,null,"Serum décanté congelé","-20°C",null,"> 24 heures",null,null,null,null,null,null,"Biochimie","1 fois/semaine","3 jours","Alinity / Méthode : CMIA","1488",null,null,"OU","B115",null,null,null,null,null,null,null,null,null,"Calcium sur liquide biologique","Biochimie"]
["LBM","AC Anti-saccharomycès cerevisiae","ASCAG","Anti saccharomyces cerevisiae","Sang","Tube sec (bouchon rouge) ","rouge","-","-","5°C à 20°C","-","<24 heures","Tube sec (bouchon rouge) ","rouge",null,"Serum décanté congelé","-20°C","-",">24 heures",null,null,null,null,null,null,"Biochimie","2 fois par semaine/ délai max : 5 jours","7 Jours","ELIA Phadia","-",null,null,null,"60E",null,null,null,null,null,null,null,null,null,"Calcium urinaire","Biochimie"]
["LBM","Ac Anti-thyroglobuline  (Anti- TG)","ATG","Anti TG","Sang","Tube sec (bouchon rouge) ","rouge","-","-","5°C à 20°C","-","<24 heures","Tube sec (bouchon rouge) ","rouge",null,"Serum décanté congelé","-20°C","-",">24 heures",null,null,null,null,null,null,"Biochimie","1 fois/semaine","7 jours","PHADIA",1484,null,null,null,"B65",null,null,null,null,null,null,null,null,null,"Calprotectine","Biochimie"]
["LBM","Ac Anti-thyroperoxydase  (Anti-TPO)","ATPO","Anti TPO","Sang","Tube sec (bouchon rouge) ","rouge","-","-","5°C à 20°C","-","<24 heures","Tube sec (bouchon rouge) ","rouge",null,"Serum décanté congelé","-20°C","-",">24 heures",null,null,null,null,null,null,"Biochimie","1 fois/semaine","7 jours","PHADIA",1487,null,null,null,"B65",null,null,null,null,null,null,null,null,null,"Campylobacter sérologie","Sous-traitant Laboratoire CERBA"]
["LBM","AC Anti-Transglutaminase A","ACTGA","Anti transglutaminase A","Sang","Tube sec (bouchon rouge) ","rouge","-","-","5°C à 20°C","-","<24 heures","Tube sec (bouchon rouge) ","rouge",null,"Serum décanté congelé","-20°C","-",">24 heures",null,null,null,null,null,null,"Biochimie","2 fois par semaine/ délai max : 5 jours","7 Jours","ELIA Phadia",1828,null,null,null,"B60",null,null,null,null,null,null,null,null,null,"Candidose sérologie","Sous-traitant Laboratoire CERBA"]
["LBM","AC Anti-Transglutaminase G","ACTGG","Anti transglutaminase G","Sang","Tube sec (bouchon rouge) ","rouge","-","-","5°C à 20°C","-","<24 heures","Tube sec (bouchon rouge) ","rouge",null,"Serum décanté congelé","-20°C","-",">24 heures",null,null,null,null,null,null,"Biochimie","2 fois par semaine/ délai max : 5 jours","7 Jours","ELIA Phadia",1829,null,null,null,"B60",null,null,null,null,null,null,null,null,null,"Cannabis lait maternel","Toxicologie"]
["LBM","ACE (Antigène carcino-embryonnaire)","ACE","ACE","Sang","Tube sec (bouchon rouge)","rouge","Pas de forte hémolyse. Prévoir une quantité suffisante pour la sérothèque.","-","5°C à 25°C","-","< 8 heures","Tube sec (bouchon rouge)","rouge",null,"-","2-8°C","-","< 24 heures",null,null,"Sérum décanté congelé","-20°C","-",">24 heures","Biochimie","2 fois par semaine/ délai max : 5 jours","7 jours","Alinity / Méthode : CMIA",7327,null,null,null,"B55",null,null,null,null,null,null,null,null,null,"Cannabis Sanguin","Toxicologie"]
["LBM","Acide lactique/lactates","LACT/LACTA","Lactates","Sang","Tube fluoré (bouchon gris)","gris","Acheminer rapidement au laboratoire (<1h), Eviter d'utiliser un garrot. Bien remplir le tube. ",null,"5+/-3°C","-","< 1 heure","Tube fluoré (bouchon gris)","gris",null,"Plasma décanté","-20°C",null,"<3 jours",null,null,null,null,null,null,"Biochimie","tous les jours (24 heures/24) (24 heures/24) /1h30 urg ou 4h routine","3 jours","Alinity / Méthode : transformation de l'acide lactique en pyruvate","0530",null,null,null,"B7",null,null,null,null,null,null,null,null,null,"Cannabis urinaire (dépistage)","Biochimie"]
["LBM","Acide urique","ACUR","Uricémie","Sang","Tube hépariné (bouchon vert)","vert","Pas de forte hémolyse.","-","5°C à 25°C","-","<8 heures","Tube hépariné (bouchon vert)","vert",null,"Plasma hépariné décanté","2 - 8 °C","-","< 3 jours","Tube hépariné (bouchon vert)",null,"Plasma hépariné décanté","-20°C",null,"> 3 jours","Biochimie","tous les jours (24 heures/24)/1h30 urg ou 4h routine","3 jours","Alinity / Méthode : uricase  colorimétrique","0532",null,null,null,"B7",null,null,null,null,null,null,null,null,null,"Cannabis urinaire (dosage)","Toxicologie"]
["LBM","Acide urique urinaire","ACURU","Uricurie","Urine","Tube à urine chimie","brun","-","-","5°C à 25°C","-","<24 heures","Pot à urine","ecbu",null,"Urine ","5°C à 25°C","-","<24 heures","Pot à urine",null,"Urine ","2-8 °C","-",">24 heures","Biochimie","tous les jours (24 heures/24)/4h","2 jours","Alinity / Méthode : uricase  colorimétrique","0622",null,null,null,"B7",null,null,null,null,null,null,null,null,null,"Capacité de fixation en fer Coefficient de saturation en fer de la transferrine","Biochimie"]
["LBM","Acide urique urinaire 24h","ACURU","Uricurie 24h","Urine des 24 heures","Tube à urine chimie","brun","Au lever  éliminer les premières urines. Ensuite  recueillir la totalité des urines pendant 24 heures. Noter la diurèse. Ajuster le pH des urines entre 8 et 9 par ajout d'hydroxyde de sodium afin d'éviter la précipitation d'urate.","-","5°C à 25°C","-","<24 heures","Pot à urine","ecbu",null,"Urine des 24H ","5°C à 25°C","-","<24 heures","Pot à urine",null,"Urine des 24H ","2-8 °C","-",">24 heures","Biochimie","tous les jours (24 heures/24)/4h","2 jours","Alinity / Méthode : uricase  colorimétrique","0622",null,null,null,"B7",null,null,null,null,null,null,null,null,null,"Carbamazépine","Biochimie"]
["LBM","Acide valproique (Dépakine)","VALP","Dépakine","Sang","Tube sec (bouchon rouge) ","rouge","Pas de forte hémolyse. Prélever juste avant l'administration du médicament (taux résiduel). Ne pas utiliser de tube avec gel séparateur.","-","20 +/- 5°C","-","<4 heures","Tube sec (bouchon rouge) ","rouge",null,"Serum décanté","2-8°C","-","< 48 heures","Pot à urine",null,"Urine","<8°C","-",">24 heures","Biochimie","tous les jours (24 heures/24)/1h30 urg ou 4h routine","2 jours","Alinity / Méthode : PETINIA","0340",null,null,null,"B65",null,null,null,null,null,null,null,null,null,"Carboxyhémoglobine","Biochimie"]
["LBM","Acides biliaires","ACBIL","Acides biliaires","Sang","Tube sec (bouchon rouge) ","rouge","Prélèvement à jeun,  pas d'hémolyse.",null,"5°C à 25°C","-","<24 heures","Tube sec (bouchon rouge) ","rouge",null,"Serum décanté","-20°C","-",">24 heures","Pot à urine",null,"Urine","2-8°C","-",">24 heures","Biochimie","tous les jours (24 heures/24) (24 heures/24) /1h30 urg ou 4h routine","1 jour","Alinity / Méthode : Enzymatique colorimétrique","-",null,null,null,"HN 3938F",null,null,null,null,null,null,null,null,null,"Cartographie fongique ","Bactériologie"]
["LBM","Actinomycètes ","ACTIN",null,"Respiratoire / gynécologiques / abcès","Poudrier stérile","poud","-","-","20°C ± 5°C","-","< 2 heures","1 Ecouvillon 1 gélosé","ecouecouG",null,"-","20°C ± 5°C","-","< 24 heures","1 Ecouvillon",null,null,null,null,null,"Bactériologie","Fréquence : du lundi au dimanche  de 7H à 18 heures \nDélai : de 10 jours à 1 mois","-","Examen direct + Culture Bactérienne",null,null,null,"OU","B60",null,null,null,null,null,null,null,null,null,"CO2 (Réserve alcaline)","Biochimie"]
["LBM","Adénovirus  (test rapide de détection)","GEV","Adénovirus  (test rapide bandelette)","Selles","Pot à coproculture ","copro","La recherche de virus responsable de gastro-entérite virale est possible sur les selles conservées à 5°C ± 3°C jusqu'à un maximum de 24 heures.","-","5°C à 25°C","-","< 2 heures",null,null,null,null,null,null,null,null,null,"Urine","<8°C","-","<24 heures","Biologie Moléculaire","Fréquence : du lundi au vendredi\nDélai : 2h","-","Immunochromatographie",4267,null,null,null,"B70",null,null,null,null,null,null,null,null,null,"Dispositif intra-cavitaire ","Bactériologie"]
["LBM","Adénovirus sérologie","SADVP","ADV (Sérologie Adénovirus)","Sang","Tube sec (bouchon rouge) ","rouge","-","-","5°C à 25°C","-","< 4 heures",null,null,null,null,null,null,null,null,null,"Urine des 24H ","<8°C","-","<24 heures","Sous-traitant Laboratoire CERBA","Fréquence : transmis en France une fois par semaine\nDélai : de 15 jours à 1 mois","-","Fixation du complément",null,null,null,null,"B30",null,null,null,null,null,null,null,null,null,"Entérobactérie productrice de carbapénèmase (EPC) par culture","Bactériologie"]
["LBM","AFP (alpha foeto-protéine)","AFP","AFP","Sang","Tube sec (bouchon rouge)","rouge","Pas de forte hémolyse. Prévoir une quantité suffisante pour la sérothèque.","-","5°C à 25°C","-","< 8 heures","Tube sec (bouchon rouge)","rouge",null,"-","2-8°C","-","< 24 heures",null,null,"Urine","<8°C","-",">24 heures","Biochimie","2 fois par semaine/ délai max : 5 jours","7 jours","Alinity /Méthode : CMIA","0320",null,null,null,"B63",null,null,null,null,null,null,null,null,null,"Génétique onco-hématologique (caryotype  FISH  biologie moléculaire)","Sous-traitant Laboratoire CERBA"]
["LBM","Ag solubles : méningo  pneumocoque  H. influenzae  Strepto B  E. coli K1","AGS",null,"Liquide Céphalo-Rachidien ","Poudrier stérile","poud","-","-","5°C à 25°C","-","< 1 heure (urgence vitale)",null,null,null,null,null,null,null,null,null,"Urine des 24H ","<8°C","-",">24 heures","Bactériologie","Fréquence : 24 heures sur 24  7j sur 7 \nDélai : 2 heures","-","Agglutination",null,null,null,null,"4160F",null,null,null,null,null,null,null,null,null,"HLA B 5701 (test de susceptibilité à l'ABACAVIR)","Sous-traitant Laboratoire CERBA"]
["LBM","Ag solubles : méningo  pneumocoque  H. influenzae  Strepto B  E. coli K2","AGSSER",null,"Serum","Tube sec (bouchon rouge) ","rouge","-","-","5°C à 25°C","-","< 4 heures",null,null,null,null,null,null,null,null,null,"urine","<8°C","-",">24 heures","Bactériologie","Fréquence : 24 heures sur 24  7j sur 7 \nDélai : 4 heures","-","Agglutination",null,null,null,null,"4160F",null,null,null,null,null,null,null,null,null,"Liquide péricardique ","Bactériologie"]
["LBM","Albumine","ALB","Albumine","Sang","Tube sec (bouchon rouge) ","rouge","-","-","5°C à 25°C","-","<24 heures","Tube sec (bouchon rouge) ","rouge",null,"Serum décanté","-20°C","-",">24 heures",null,null,"Urine","-20°C","-",">1 heure","Biochimie","tous les jours (24 heures/24) (24 heures/24)/1h30 urg ou 4h routine","7 jours","Alinity / Méthode : Vert de bromocrésol (BCG)",1806,null,null,null,"B10",null,null,null,null,null,null,null,null,null,"Parasite : identification d'un arthropode","Bactériologie"]
["LBM","Amibe","RAMI",null,"Selles","Pot à coproculture ","copro","-","-","20°C ± 5°C","-","< 2 heures",null,null,null,null,null,null,null,null,null,"Urine des 24H ","<8°C","-",">24 heures","Bactériologie","Fréquence : 24 heures sur 24 heures  7j sur 7 \nDélai : 1 jour","-","Examen direct + Coloration MIF",null,null,null,null,"B50",null,null,null,null,null,null,null,null,null,"Parasite : Identification d'un ver ","Bactériologie"]
["LBM","Amibiase sérologie","SAMIB","Amibiase (Sérologie Amibes)","Sang","Tube sec (bouchon rouge) ","rouge","-","-","5°C à 25°C","-","< 4 heures",null,null,null,null,null,null,null,null,null,"Urine","<8°C",null,null,"Immuno-Sérologie","Fréquence : du lundi au vendredi \nDélai : 24 h","-","IHA",4301,null,null,null,"B90",null,null,null,null,null,null,null,null,null,"PCR Entérobactérie productrice de carbapénèmase (EPC)","Bactériologie"]
["LBM","Amikacine","AMI/AMIPM/ AMIVM","Amiklin","Sang","Tube sec (bouchon rouge) ","rouge","Préciser la date et l'heure de la dernière prise du médicament, et sa posologie. Ne pas utiliser de tubes avec gel séparateur.","-","5°C à 25°C","-","<24 heures","Tube sec (bouchon rouge) ","rouge",null,"Serum décanté","-20°C","-",">24 heures",null,null,"Urine","<8°C","-",">24 heures","Biochimie","tous les jours (24 heures/24)/1h30 urg ou 4h routine","7 jours","Alinity / Méthode : PETINIA","1650",null,null,null,"B70",null,null,null,null,null,null,null,null,null,"PCR HBV Recherche et quantification de l'ADN du virus de l'hépatite B (VHB)","Biologie Moléculaire"]
["LBM","Ammoniémie","AMMO","Ammonium","Sang","Tube hépariné (bouchon vert)","vert","Pas d’hémolyse. Bien remplir le tube. Sur glace ou décanté le plus rapidement possible.\nAcheminer immédiatement au laboratoire (<15 minutes)","-","5°C ± 3°C","-","< 15 minutes","Tube hépariné","vert",null,"Plasma hépariné décanté et congelé en moins de 15 minutes","-20°C",null,"< 3 semaines",null,null,"Urine des 24H ","<8°C","-",">24 heures","Biochimie","tous les jours (24 heures/24)/1h30 urg ou 4h routine","-","Alinity / Méthode : glutamate déshydrogénase","0536",null,null,null,"B35",null,null,null,null,null,null,null,null,null,"Phosphatase alcaline (PAL)","Biochimie"]
["LBM","Amylase","AMYL","Amylasémie","Sang","Tube hépariné (bouchon vert)","vert","-","-","5°C à 25°C","-","<24 heures","Tube hépariné (bouchon vert)","vert",null,"Plasma hépariné décanté","-20°C","-",">24 heures",null,null,"Urine des 24H ","2-8°C","-",">24 heures","Biochimie","tous les jours (24 heures/24)/1h30 urg ou 4h routine","24 heures","Alinity / Méthode : substrat CNPG3","1510",null,null,null,"B7",null,null,null,null,null,null,null,null,null,"Procalcitonine","Biochimie"]
["LBM","Amylase sur liquide biologique","AMYLL","Amylase liquide biologique","Liquide biologique","Poudrier","poud","-","-","5°C à 25°C","-","<24 heures","Poudrier stérile ","poud",null,"Liquide biologique","2-8°C","-",">24 heures",null,null,"Urine","2-8°C","-",">24 heures","Biochimie","tous les jours (24 heures/24)/4h","3 jours","Alinity / Méthode : substrat CNPG3","1511",null,null,null,"B7",null,null,null,null,null,null,null,null,null,"Synthèse intrathécale d’IGG transsudation","Biochimie"]
["LBM","Angiostrongylose PCR (Angiostrongylus cantonensis)","PCAGS","Angiostrongylose (PCR Angiostrongylus cantonensis)","LCR","Pot à urine stérile","poud","PCR réalisée si éosinophile dans le LCR > à 10e ou > à 10%","-","5°C à 25°C","-","< 4 heures",null,null,null,null,null,null,null,null,null,"urine","<8°C","-","<8 heures","Biologie Moléculaire","Fréquence : du lundi au vendredi\nDélai : 24 heures","-","PCR temps réel",null,null,null,null,"7800F",null,null,null,null,null,null,null,null,null,"Temps de céphaline activé (TCA)","Hématologie biologique"]
["LBM","Anguillule","ANGUIL",null,"Selles","Pot à coproculture ","copro","-","-","20°C ± 5°C","-","< 2 heures",null,null,null,null,null,null,null,null,null,"urine","<8°C","-",">24 heures","Bactériologie","Fréquence :  du lundi au vendredi  \nde 7H à 18 heures\nDélai : 1 jour","-","Examen direct  + méthode de concentration de Baerman",null,null,null,null,"B25",null,null,null,null,null,null,null,null,null,"Toxocarose sérologie","Sous-traitant Laboratoire CERBA"]
["LBM","Anti lla Dabigatran (Pradaxa®)","PRADA",null,"Sang ","Tube Citrate 9NC (bouchon bleu)","bleu","Traitement Anticoagulant obligatoire\nPréciser l'heure de prélèvement","Sang total","20°C ± 5°C","-","< 2 heures",{"$f":"F45","v":"Tube Citrate 9NC (bouchon bleu)"},null,null,"Plasma décanté","20°C ± 5°C","Centrifugation dans les 2h suivant le prélèvement","< 4 heures",{"$f":"M45","v":"Tube Citrate 9NC (bouchon bleu)"},{"$f":"O45","v":0},"Urine des 24H ","<8°C","-",">24 heures","Hématologie biologique","7J/7  24H/24\nUrgence: 1h30 \nDélai max: 4h","4 heures","Colorimétrie","/",null,null,null,"HN 4000 F"]
["LBM","Anti Xa Apixaban (Eliquis)","APIX",null,"Sang","Tube Citrate 9NC (bouchon bleu)","bleu","Traitement Anticoagulant obligatoire\nPréciser l'heure de prélèvement","Sang total","20°C ± 5°C","-","< 2 heures","Tube Citrate 9NC (bouchon bleu)",null,null,"Plasma décanté","20°C ± 5°C","Centrifugation dans les 2h suivant le prélèvement","7 jours","Tube Citrate 9NC (bouchon bleu)",0,"urine","<8°C","-",">24 heures","Hématologie biologique","7J/7  24H/24\nUrgence: 1h30 \nDélai max: 4h","7 jours","Colorimétrie","/",null,null,null,"HN 4000 F"]
["LBM","Anti Xa Danaparoïde (Orgaran®)","ORGARA",null,"Sang ","Tube Citrate 9NC (bouchon bleu)","bleu","Traitement Anticoagulant obligatoire\nPréciser l'heure de prélèvement\n","Sang total","20°C ± 5°C","-","< 4 heures","Tube Citrate 9NC (bouchon bleu)",null,null,"Plasma décanté","20°C ± 5°C","Centrifugation dans les 4h suivant le prélèvement","< 4 heures","Tube Citrate 9NC (bouchon bleu)",0,"Urine des 24H ","<8°C","-",">24 heures","Hématologie biologique","7J/7  24H/24\nUrgence: 1h30 \nDélai max: 4h"," 4 heures","Colorimétrie","/",null,null,null,"HN 4000 F"]
["LBM","Anti Xa HEPARINE HBPM","BA10",null,"Sang ","Tube Citrate 9NC (bouchon bleu)","bleu","Traitement Anticoagulant obligatoire\nPréciser l'heure de prélèvement\n","Sang total","20°C ± 5°C","-","< 6 heures","Tube Citrate 9NC (bouchon bleu)",null,null,"Plasma décanté","20°C ± 5°C","Centrifugation dans les 6h suivant le prélèvement","< 6 heures","Tube Citrate 9NC (bouchon bleu)",0,"Urine des 24H ","<8°C","-",">24 heures","Hématologie biologique","7J/7  24H/24\nUrgence: 1h30 \nDélai max: 4h","6 heures","Colorimétrie",186,null,null,null,"B30"]
["LBM","Anti Xa HEPARINE HNF","BHEP",null,"Sang ","Tube Citrate 9NC (bouchon bleu)","bleu","Traitement Anticoagulant obligatoire\nPréciser l'heure de prélèvement\n","Sang total","20°C ± 5°C","-","<  2heures\n","Tube Citrate 9NC (bouchon bleu)",null,null,"Plasma décanté","20°C ± 5°C","Centrifugation dans l'heure suivant le prélèvement","< 4 heures \n","Tube Citrate 9NC (bouchon bleu)",0,"Urine","<8°C","-",">24 heures","Hématologie biologique","7J/7  24H/24\nUrgence: 1h30 \nDélai max: 4h","6 heures","Colorimétrie",186,null,null,null,"B30"]
["LBM","Anti Xa Rivaroxaban (Xarelto®)","XARELT",null,"Sang ","Tube Citrate 9NC (bouchon bleu)","bleu","Traitement Anticoagulant obligatoire\nPréciser l'heure de prélèvement","Sang total","20°C ± 5°C","-","< 2 heures","Tube Citrate 9NC (bouchon bleu)",null,null,"Plasma décanté","20°C ± 5°C","Centrifugation dans les 2h suivant le prélèvement","7 jours","Tube Citrate 9NC (bouchon bleu)",0,"Urine des 24H ","<8°C","-",">24 heures","Hématologie biologique","7J/7  24H/24\nUrgence: 1h30 \nDélai max: 4h","7 jours","Colorimétrie","/",null,null,null,"HN 4000 F"]
["LBM","Anticoagulant circulant (ACC)","BACLUP",null,"Sang ","2 Tubes Citrate 9NC (bouchon bleu)","bleu","Traitement Anticoagulant obligatoire","Sang total","20°C ± 5°C","-","< 2 heures","2 Tubes Citrate 9NC (bouchon bleu)",null,null,"Plasma décanté","-20°C","Centrifugation et congélation dans les 2h suivant le prélèvement","Aucun",null,null,null,null,null,null,"Hématologie biologique","Délai max: 15 jours\nEn cas d'urgence  contacter le laboratoire ","Contacter le laboratoire","Chronométrie",1020,null,null,null,"B200"]
["LBM","Anticorps anti streptodornase (ASDOR)","ASDP",null,"Sang","Tube sec (bouchon rouge) ","rouge","Envoi en complément du dosage des ASLO","-","5°C à 25°C","-","< 4 heures",null,null,null,null,null,null,null,null,null,null,null,null,null,"Sous-traitant Laboratoire CERBA","Fréquence : Envoi en France une fois par semaine \nDélai : 24h à 7 jours","-","EnzymoImmunoanalyse",1323,null,null,null,"B20"]
["LBM","Antithrombine","AT3",null,"Sang ","Tube Citrate 9NC (bouchon bleu)","bleu","Traitement Anticoagulant obligatoire","Sang total","20°C ± 5°C","-","< 24heures",{"$f":"F53","v":"Tube Citrate 9NC (bouchon bleu)"},null,null,"Plasma décanté","20°C ± 5°C",{"$f":"K53","v":"-"},"< 24 heures",{"$f":"M53","v":"Tube Citrate 9NC (bouchon bleu)"},{"$f":"O53","v":0},"Urine des 24H ","<8°C","-",">24 heures","Hématologie biologique","7J/7  24H/24\nUrgence: 1h30 \nDélai max: 15 jours","24 heures","Colorimétrie",189,null,null,null,"B40"]
["LBM","Apposition de ganglion","BOM",null,"Ganglion","Apposition sur lame",null,"Identifier les lames au nom du patient.\nPrévoir un hémogramme le jour de la BOM pour examen en parallèle du Sang périphérique.\nRenseignements cliniques et indication du myélogramme indispensables.","Appositions sur lames","20°C ± 5°C","-","Aucun",null,null,null,null,null,null,null,null,null,"urine","<8°C","-",">24 heures","Hématologie biologique","Fréquence : tous les jours\nDélai : de 12 heures à 15 jours","-","Cytologie\nMicroscopie",1101,null,null,null,"B100"]
["LBM","Apposition de moelle osseuse (BOM)","BOM",null,"Moelle osseuse","Apposition sur lame",null,"Identifier les lames au nom du patient.\nPrévoir un hémogramme le jour de la BOM pour examen en parallèle du Sang périphérique.\nRenseignements cliniques et indication du myélogramme indispensables.","Appositions sur lames","20°C ± 5°C","-","Aucun",null,null,null,null,null,null,null,null,null,"Urine des 24H ","<8°C","-",">24 heures","Hématologie biologique","Fréquence : tous les jours\nDélai : de 12 heures à 15 jours ","-","Cytologie\nMicroscopie",1101,null,null,null,"B100"]
["LBM","ARN 16 S (PCR universelle en bactériologie)","ARN16S",null,"Prélèvement osseux  LCR…","Poudrier stérile","poud"," Recherche uniquement sur prélèvement stérile en culture.","-","20°C ± 5°C","-","< 2 heures",null,null,null,null,null,null,null,null,null,null,null,null,null,"Bactériologie - Sous-traitant CHU La Timone (Marseille)","Fréquence : transmis en France tous les mardis \nDélai : 10 à 20 jours","-","PCR",null,null,null,null,"B280"]
["LBM","ASLO (Ac Anti-streptolysine) sérologie streptocoque groupe A","ASLO","ASD (ASLO Sérologie strepto A)","Sang","Tube sec (bouchon rouge) ","rouge","-","-","5°C à 25°C","-","< 4 heures",null,null,null,null,null,null,null,null,null,null,null,null,null,"Immuno-Sérologie","Fréquence : du lundi au vendredi \nDélai : 24 heures à 5 jours","-","Immuno-turbidimétrie/neutralisation",1324,null,null,null,"B40"]
["LBM","Aspergillose recherche de l'Antigène","ASAGP","Ag (antigène aspergillaire aspergillus)","Sang / LBA","Tube Sec (bouchon rouge)","rouge","-","-","5°C à 25°C","-","< 4 heures","Poudrier stérile","poud",null,"-","5°C à 25°C","-","< 4 heures",null,null,null,null,null,null,"Sous-traitant Laboratoire CERBA","Fréquence : transmis en France une fois par semaine\nDélai : de 15 jours à 1 mois","-","EnzymoImmunoanalyse",4311,null,null,"OU","B50"]
["LBM","Aspergillose sérologie","ASPGP","Aspergillus (Sérologie aspergillaire anticorps) ","Sang","Tube sec (bouchon rouge) ","rouge","-","-","5°C à 25°C","-","< 4 heures",null,null,null,null,null,null,null,null,null,null,null,null,null,"Sous-traitant Laboratoire CERBA","Fréquence : transmis en France une fois par semaine\nDélai : de 15 jours à 1 mois","-","EnzymoImmunoanalyse + hémagglutination indirecte",4307,null,null,null,"B50+B50+B75"]
["LBM","Aspiration broncho-trachéale ","ASPIB",null,"Aspiration broncho-trachéale","Poudrier stérile","poud","-","-","20°C ± 5°C","-","< 2 heures",null,null,null,"-","5°C ± 3°C","-","< 12 heures",null,null,null,null,null,null,"Bactériologie","Fréquence : du lundi au dimanche  \nde 7H à 18 heures\nDélai : de 48 heures à 1 semaine","-","Examen direct + Culture Bactérienne",null,null,null,null,"B200"]
["LBM","Aspiration trachéale protégée ","ECBTP",null,"Aspiration trachéale protégée","Poudrier stérile","poud","1 ml d'aspiration.","-","20°C ± 5°C","-","< 2 heures",null,null,null,"-","5°C ± 3°C","-","< 12 heures",null,null,null,null,null,null,"Bactériologie","Fréquence : 24 heures sur 24  7j sur 7 \nDélai : de 48 heures à 1 semaine","-","Examen direct + Culture Bactérienne",null,null,null,null,"B200"]
["LBM","Autoconservation de spermatozoides","x","AUTOCONS","Sperme","Réceptacle JCD Bouchon bleu","JCD","Prévoir un rendez vous avec le laboratoire de BDR","Spermatozoides","20 ± 5°C","Transport en température ambiante","≤ 30 minutes","Réceptacle JCD Bouchon bleu",null,null,"Spermatozoides","34°C ± 1°C","Transport en température ambiante","≤ 30 minutes",null,null,null,null,null,null,"BDR","Fréquence: 5j/7j Délai: immédiat",null,"Examen direct",null,"doc 22",null,null,"BAMP 350"]
["LBM","Bactérie multi-résistante (SARM  BLSE  PARC  EPC  ERV) : dépistage","PRCLIN",null,"Nez et anus","1 écouvillon nasal et 2 rectaux","ecou","-","-","20°C ± 5°C","-","< 2 heures","écouvillons gélosés","ecouG",null,"-","20°C ± 5°C","-","< 24 heures",null,null,"-","5°C ± 3°C","-","< 12 heures","Bactériologie","Fréquence : du lundi au dimanche  \nde 7H à 18 heures\nDélai : de 48 heures à 1 semaine","-","Examen direct + Culture Bactérienne",null,null,null,"OU","B60 par BMR"]
["LBM","Bandelettes : cétones  Sang  pH  nitrites  leucocytes  pigments biliaires  densité  urobilinogène","CETO  HBU  PHU  NITRU  LEUCO  BILU  DENSU","BU Cétones pH Leuco Bilaires Urobilinogène","Urine","Tube à urine chimie","brun","-","-","5°C à 20°C","-","<24 heures","Pot à urine","ecbu",null,"Urine","5°C à 20°C","-","<24 heures","Pot à urine",null,"Urine","<8°C","-",">24 heures","Biochimie","tous les jours (24 heures/24)/4h","3 jours","bandelettes","620, 631, 647, 640, 647",null,null,null,"B5, B5, B7, B7, B5"]
["LBM","Bartonella henselae sérologie (griffe du chat)","MGCP","Bartonella henselae (Sérologie maladie griffe du chat bartonellose)","Sang","Tube sec (bouchon rouge) ","rouge","-","-","5°C à 25°C","-","< 4 heures",null,null,null,null,null,null,null,"Pot à urine",null,"Urine","2-8°C","-",">24 heures","Sous-traitant Laboratoire CERBA","Fréquence : transmis en France une fois par semaine\nDélai : de 15 jours à 1 mois","-","Immunofluorescence",1331,null,null,null,"B40/B90"]
["LBM","Beta 2Microglobuline ( β2 )","B2GLB","B2 Microglobuline","Sang","Tube sec (bouchon rouge) ","rouge","-","-","5°C à 20°C","-","<24 heures","Tube sec (bouchon rouge) ","rouge",null,"Serum décanté réfrigéré","5°C à 20°C","-",">24 heures","Pot à urine",null,null,null,null,null,"Biochimie","1 fois par semaine","3 jours","Alinity / Méthode: immunoturbidimétrie","0324",null,null,null,"B35"]
["LBM","Bilan Néonatal ","NEONAT",null,"Prélèvements pluri-orificiels : liquide gastrique + yeux + oreille + anus","Poudrier stérile (Liquide gastrique) + 3 écouvillons (yeux  oreille  anus)","poud","-","-","20°C ± 5°C","-","< 2 heures","3 Ecouvillons (yeux oreille anus)","ecou",null,"-","5°C ± 3°C","-","< 12 heures","Pot à urine",null,"-","20°C ± 5°C","-","< 24 heures avec des écouvillons gélosés","Bactériologie","Fréquence : 24 heures sur 24  7j sur 7\nDélai : de 48 heures à 1 semaine","-","Examen direct + Culture Bactérienne",null,null,null,"ET","B180"]
["LBM","Bilharziose sérologie","BIHLP","Billharziose (Sérologie schistosomiase)","Sang","Tube sec (bouchon rouge) ","rouge","-","-","5°C à 25°C","-","< 4 heures",null,null,null,null,null,null,null,null,null,null,null,null,null,"Sous-traitant Laboratoire CERBA","Fréquence : transmis en France une fois par semaine\nDélai : de 15 jours à 1 mois","-","EnzymoImmunoanalyse",4355,null,null,null,"B50/B75"]
["LBM","Bilirubine directe ","BILD","Bilirubine directe","Sang","Tube hépariné (bouchon vert)","vert","Pas d’hémolyse  Abri de la lumière","-","5°C à 25°C","-","<24 heures","Tube hépariné (bouchon vert)","vert",null,"Plasma hépariné décanté","2-8°C","-","<7 jours","Tube hépariné (bouchon vert)",null,"Plasma hépariné décanté","-20°C","-","<3 mois","Biochimie","tous les jours (24 heures/24)/1h30 urg ou 4h routine","7 jours","Alinity / Méthode : Diazoréaction","1601",null,null,null,"B10"]
["LBM","Bilirubine Totale","BILT","Bilirubine Totale","Sang","Tube hépariné (bouchon vert)","vert","Pas d’hémolyse  Abri de la lumière","-","5°C à 25°C","-","<8 heures","Tube hépariné (bouchon vert)","vert",null,"Plasma hépariné décanté","2-8°C","-","<7 jours","Tube hépariné (bouchon vert)",null,"Plasma hépariné décanté","-20°C","-","<3 mois","Biochimie","tous les jours (24 heures/24)/1h30 urg ou 4h routine","7 jours","Alinity / Méthode : Sel de diazonium","1601",null,null,null,"B10"]
["LBM","Biopsie testiculaire","x","BT","Testicule","Tube OOSAFE 5 ml","oosafe5+3","Tel 8392 laboratoire de BDR dès que le patient est anesthésié\n\nUtiliser un scalpet pour le prélèvement\n\nVérifier la présence de 3 mL de GMOPS+ dans le tube OOSAFE 5mL","Spermatozoides","20 ± 5°C","Transport avec mallette température ambiante","≤ 15 minutes","Tube OOSAFE 5 ml",null,null,"Spermatozoides","34°C ± 1°C","Transport avec mallette température ambiante","≤ 15 minutes",null,null,null,null,null,null,"BDR","Fréquence: 5j/7j Délai: immédiat",null,"Examen direct",null,"doc 20",null,null,"BAMP 500"]
["LBM","BK (recherche de tuberculose et  mycobactéries atypiques) - liquide d'ascite","BKASC",null,"Liquide d'ascite","Poudrier","poud","-","-","20°C ± 5°C","-","< 2 heures",null,null,null,"-","5°C ± 3°C","-","< 7 jours",null,null,null,null,null,null,"Bactériologie","Fréquence : du lundi au vendredi  \nde 7H à 18 heures   \nDélai : de 2 jours (ED) à 3 mois (Culture)","-","Examen direct (Auramine + Ziehl)  + Culture Bactérienne",null,null,null,null,"B90"]
["LBM","BK (recherche de tuberculose et  mycobactéries atypiques) - Sang","BKHEMS",null,"Sang ","Tube hépariné (bouchon vert)","vert","-","-","20°C ± 5°C","-","< 4 heures",null,null,null,null,null,null,null,null,null,null,null,null,null,"Bactériologie","Fréquence : du lundi au vendredi  \nde 7H à 18 heures   \nDélai : de 2 jours (ED) à 3 mois (Culture)","-","Examen direct (Auramine + Ziehl)  + Culture Bactérienne",null,null,null,null,"B80"]
["LBM","BK (recherche de tuberculose et  mycobactéries atypiques)- aspiration bronchique","BKASPB",null,"Aspiration Bronchique","Poudrier","poud","-","-","20°C ± 5°C","-","< 2 heures",null,null,null,"-","5°C ± 3°C","-","< 7 jours",null,null,null,null,null,null,"Bactériologie","Fréquence : du lundi au vendredi  \nde 7H à 18 heures   \nDélai : de 2 jours (ED) à 3 mois (Culture)","-","Examen direct (Auramine + Ziehl)  + Culture Bactérienne",null,null,null,null,"B90"]
["LBM","BK (recherche de tuberculose et  mycobactéries atypiques) -Aspiration Trachéale","BKASPT",null,"Aspiration Trachéale","Poudrier","poud","-","-","20°C ± 5°C","-","< 2 heures",null,null,null,"-","5°C ± 3°C","-","< 7 jours",null,null,null,null,null,null,"Bactériologie","Fréquence : du lundi au vendredi  \nde 7H à 18 heures   \nDélai : de 2 jours (ED) à 3 mois (Culture)","-","Examen direct (Auramine + Ziehl)  + Culture Bactérienne",null,null,null,null,"B90"]
["LBM","BK (recherche de tuberculose et  mycobactéries atypiques) -Expectoration","BKCRAC",null,"Expectoration","Poudrier","poud","-","-","20°C ± 5°C","-","< 2 heures",null,null,null,"-","5°C ± 3°C","-","< 7 jours",null,null,null,null,null,null,"Bactériologie","Fréquence : du lundi au vendredi  \nde 7H à 18 heures   \nDélai : de 2 jours (ED) à 3 mois (Culture)","-","Examen direct (Auramine + Ziehl)  + Culture Bactérienne",null,null,null,null,"B90"]
["LBM","BK (recherche de tuberculose et  mycobactéries atypiques)- Fragment biopsique","BKBIOP",null,"Fragment biopsique","Poudrier + 1ml d'eau physiologique","poud","Ajouter 1 ml d'eau physiologique pour la conservation de la biopsie.","-","20°C ± 5°C","-","< 2 heures",null,null,null,"-","5°C ± 3°C","-","< 7 jours",null,null,null,null,null,null,"Bactériologie","Fréquence : du lundi au vendredi  \nde 7H à 18 heures   \nDélai : de 2 jours (ED) à 3 mois (Culture)","-","Examen direct (Auramine + Ziehl)  + Culture Bactérienne",null,null,null,null,"B110"]
["LBM","BK (recherche de tuberculose et  mycobactéries atypiques)- Lavage Broncho-Alvéolaire","BKLBA",null,"Lavage Broncho-Alvéolaire","Poudrier","poud","-","-","20°C ± 5°C","-","< 2 heures",null,null,null,"-","5°C ± 3°C","-","< 7 jours",null,null,null,null,null,null,"Bactériologie","Fréquence : du lundi au vendredi  \nde 7H à 18 heures   \nDélai : de 2 jours (ED) à 3 mois (Culture)","-","Examen direct (Auramine + Ziehl)  + Culture Bactérienne",null,null,null,null,"B90"]
["LBM","BK (recherche de tuberculose et  mycobactéries atypiques)- LCR","BKLCR",null,"Liquide Céphalo-Rachidien ","Poudrier","poud","Examen à compléter par une PCR","-","20°C ± 5°C","-","< 2 heures",null,null,null,"-","5°C ± 3°C","-","< 7 jours",null,null,null,null,null,null,"Bactériologie","Fréquence : du lundi au vendredi  \nde 7H à 18 heures   \nDélai : de 2 jours (ED) à 3 mois (Culture)","-","Examen direct (Auramine + Ziehl)  + Culture Bactérienne",null,null,null,null,"B90"]
["LBM","BK (recherche de tuberculose et  mycobactéries atypiques) -liquide articulaire","BKART",null,"Liquide articulaire","Poudrier","poud","-","-","20°C ± 5°C","-","< 2 heures",null,null,null,"-","5°C ± 3°C","-","< 7 jours",null,null,null,null,null,null,"Bactériologie","Fréquence : du lundi au vendredi  \nde 7H à 18 heures   \nDélai : de 2 jours (ED) à 3 mois (Culture)","-","Examen direct (Auramine + Ziehl)  + Culture Bactérienne",null,null,null,null,"B90"]
["LBM","BK (recherche de tuberculose et  mycobactéries atypiques)- Liquide pleural","BKPLEU",null,"Liquide pleural","Poudrier","poud","-","-","20°C ± 5°C","-","< 2 heures",null,null,null,"-","5°C ± 3°C","-","< 7 jours",null,null,null,null,null,null,"Bactériologie","Fréquence : du lundi au vendredi  \nde 7H à 18 heures   \nDélai : de 2 jours (ED) à 3 mois (Culture)","-","Examen direct (Auramine + Ziehl)  + Culture Bactérienne",null,null,null,null,"B90"]
["LBM","BK (recherche de tuberculose et  mycobactéries atypiques)- Moelle osseuse","BKHEMO",null,"Moelle osseuse","Tube hépariné (bouchon vert)","vert","Examen à compléter par une PCR  (tube EDTA)","-","20°C ± 5°C","-","< 4 heures",null,null,null,null,null,null,null,null,null,null,null,null,null,"Bactériologie","Fréquence : du lundi au vendredi  \nde 7H à 18 heures   \nDélai : de 2 jours (ED) à 3 mois (Culture)","-","Examen direct (Auramine + Ziehl)  + Culture Bactérienne",null,null,null,null,"B80"]
["LBM","BK (recherche de tuberculose et  mycobactéries atypiques) -Tubage gastrique","BKTUB",null,"Tubage gastrique","Poudrier","poud","-","-","20°C ± 5°C","-","< 2 heures",null,null,null,"-","5°C ± 3°C","-","< 7 jours",null,null,null,null,null,null,"Bactériologie","Fréquence : du lundi au vendredi  \nde 7H à 18 heures   \nDélai : de 2 jours (ED) à 3 mois (Culture)","-","Examen direct (Auramine + Ziehl)  + Culture Bactérienne",null,null,null,null,"B90"]
["LBM","BK (recherche de tuberculose et  mycobactéries atypiques)- urines","BKURI",null,"Urines","Pot à urine","ecbu","-","-","20°C ± 5°C","-","< 2 heures",null,null,null,"-","5°C ± 3°C","-","< 7 jours",null,null,null,null,null,null,"Bactériologie","Fréquence : du lundi au vendredi  \nde 7H à 18 heures   \nDélai : de 2 jours (ED) à 3 mois (Culture)","-","Examen direct (Auramine + Ziehl)  + Culture Bactérienne",null,null,null,null,"B90"]
["LBM","Bouche  langue","BBOU",null,"Bouche","2 Ecouvillons ","ecou","-","-","20°C ± 5°C","-","< 2 heures","2 écouvillons gélosés","ecouG",null,"-","20°C ± 5°C","-","< 24 heures",null,null,"-","5°C ± 3°C","-","< 12 heures","Bactériologie"," Fréquence : du lundi au vendredi  \nde 7H à 18 heures\nDélai : de 48 heures à 1 semaine","-","Examen direct + Culture Bactérienne",null,null,null,"OU","B100"]
["LBM","Brossage bronchique ","BROSB",null,"Aspiration trachéale protégée","Poudrier stérile","poud","Brosse / KT.","-","20°C ± 5°C","-","< 2 heures",null,null,null,"-","5°C ± 3°C","-","< 12 heures",null,null,null,null,null,null,"Bactériologie","Fréquence : 24 heures sur 24  7j sur 7\nDélai : de 48 heures à 1 semaine","-","Examen direct + Culture Bactérienne",null,null,null,null,"B200"]
["LBM","Brucellose sérologie (wright + rose bengale)","BRUP","Brucellose (Sérologie fièvre méditerranéenne)","Sang","Tube sec (bouchon rouge) ","rouge","-","-","5°C à 25°C","-","< 4 heures",null,null,null,null,null,null,null,null,null,null,null,null,null,"Sous-traitant Laboratoire CERBA","Fréquence : transmis en France une fois par semaine\nDélai : de 15 jours à 1 mois","-","Agglutination",1305,null,null,null,"B45"]
["LBM","CA 125 ","CA125","CA125","Sang","Tube sec (bouchon rouge)","rouge","Pas de forte hémolyse. Prévoir une quantité suffisante pour la sérothèque.","-","5°C à 25°C","-","< 8 heures","Tube sec (bouchon rouge)","rouge",null,"-","2-8°C","-","< 24 heures",null,null,"Sérum décanté congelé","-20°C","-",">24 heures","Biochimie","2 fois par semaine/ délai max : 5 jours","7 jours","Alinity / Méthode : CMIA",7325,null,null,null,"B60"]
["LBM","CA 15.3 ","CA153","CA153","Sang","Tube sec (bouchon rouge)","rouge","Pas de forte hémolyse. Prévoir une quantité suffisante pour la sérothèque.","-","5°C à 25°C","-","< 8 heures","Tube sec (bouchon rouge)","rouge",null,"-","2-8°C","-","< 24 heures",null,null,"Sérum décanté congelé","-20°C","-",">24 heures","Biochimie","2 fois par semaine/ délai max : 5 jours","7 jours","Alinity / Méthode : CMIA",7321,null,null,null,"B55"]
["LBM","CA 19.9 ","CA199","CA199","Sang","Tube sec (bouchon rouge)","rouge","Pas de forte hémolyse. Prévoir une quantité suffisante pour la sérothèque.","-","5°C à 25°C","-","< 8 heures","Tube sec (bouchon rouge)","rouge",null,"-","2-8°C","-","< 24 heures",null,null,"Sérum décanté congelé","-20°C","-",">24 heures","Biochimie","2 fois par semaine/ délai max : 5 jours","7 jours","Alinity / Méthode : CMIA",7323,null,null,null,"B60"]
["LBM","Calcium","CA","Calcémie","Sang","Tube hépariné (bouchon vert)","vert","-","-","5°C à 25°C","-","<24 heures","Tube hépariné (bouchon vert)","vert",null,"Plasma hépariné décanté","-20°C","-",">24 heures",null,null,null,null,null,null,"Biochimie","tous les jours (24 heures/24)/1h30 urg ou 4h routine","7 jours","Alinity / Méthode : Arsenazo III","0578",null,null,null,"B7"]
["LBM","Calcium ionisé","CAION/ CAIONF","Calcium ionisé","Sang","Seringue héparinée","gazo","Absence de bulle d'air  transporter sur glace  acheminer rapidement au laboratoire","-","5+/-3°C","-","<1 heure","Tube hépariné sans gel (bouchon vert)","vert",null,"-","5+/-3°C","-","<1 heure","capillaire hépariné","Absence de bulle d'air  transporter sur glace  acheminer rapidement au laboratoire","-","5+/-3°C","-","<1 heure","Biochimie","tous les jours (24 heures/24)/20 min urgences ou 1h routine","-","ABL 800","-",null,null,null,"HN 2900F"]
["LBM","Calcium sur liquide biologique","CAL","Calcium sur liquide biologique","Liquide biologique","Poudrier","poud","-","-","5°C à 25°C","-","<24 heures","Poudrier","poud",null,"Liquide biologique","2-8°C","-",">24 heures",null,null,null,null,null,null,"Biochimie","tous les jours (24 heures/24)/4h","2 jours","Alinity / Méthode : Arsenazo III","-",null,null,null,"B7"]
["LBM","Calcium urinaire","CAU","Calciurie","Urine","Tube à urine chimie","brun","Urines échantillon ou urines de 24h. Préciser la diurèse si urines de 24h. Extérieur au CHT : en cas d'envoi différé, acidifier les urines à pH <2 avec HCL à 6mol/L. (1 à 2 mL d'HCL pour un échantillon, 20 à 30 mL d'HCL pour les urines de 24h)","-","5°C à 25°C","-","<24 heures","Pot à urine","ecbu",null,"Urine","5°C à 25°C","-","<24 heures","Pot à urine",null,"Urine","2-8 °C","-",">24 heures","Biochimie","tous les jours (24 heures/24)/4h","2 jours","Alinity / Méthode : Arsenazo III","0624",null,null,null,"B7"]
["LBM","Calprotectine","CALP","Calprotectine","Selles","Pot à coproculture","copro","Au frais  acheminement rapide au laboratoire - pas de selles liquide","-","5°C ± 3°C","-","< 6 heures",null,null,null,null,null,null,null,"Pot à urine",null,"Urine","2-8°C","-",">24 heures","Biochimie","Avant 12 heures  hors garde  WE  férié et pont\nDélai : 5 jours max","-","PHADIA Immunocap 250 Elia Immuno enzymo fluorométrie","-",null,null,null,"HN 8140 F"]
["LBM","Campylobacter sérologie","CAMPP","campylobacter (Sérologie)","Sang","Tube sec (bouchon rouge) ","rouge","-","-","5°C à 25°C","-","< 4 heures",null,null,null,null,null,null,null,"Pot à urine",null,null,null,null,null,"Sous-traitant Laboratoire CERBA","Fréquence : transmis en France une fois par semaine\nDélai : de 15 jours à 1 mois","-","Fixation du complément",1310,null,null,null,"B30/B45"]
["LBM","Candidose sérologie","CANDP","BDGLU (béta-D-glucane Sérologie) ","Sang","Tube sec (bouchon rouge) ","rouge","-","-","5°C à 25°C","-","< 4 heures",null,null,null,null,null,null,null,"Pot à urine",null,null,null,null,null,"Sous-traitant Laboratoire CERBA","Fréquence : transmis en France une fois par semaine\nDélai : de 15 jours à 1 mois","-","EnzymoImmunoanalyse + hémagglutination indirecte",4313,null,null,null,"B90"]
["LBM","Cannabis lait maternel","CANL",null,"Lait maternel","-",null,"1 mL minimum","-","5°C à 20°C","-","< 6 heures",null,null,null,null,null,null,null,null,null,null,null,null,null,"Toxicologie","En série 1 fois par semaine","-","GC-MS","0659",null,null,null,"B90"]
["LBM","Cannabis Sanguin","CANS",null,"Sang","Tube sec (bouchon rouge) ","rouge","4 mL minimum","Serum","5°C à 20°C","-","< 6 heures","Tube hépariné (bouchon vert)","vert",null,"Plasma","5°C à 20°C",null,null,null,null,null,null,null,null,"Toxicologie","En série 1 fois par semaine","-","GC-MS","1659",null,null,null,"B95"]
["LBM","Cannabis urinaire (dépistage)","CANNU2","Cannabis urinaire","Urine","Tube à urine chimie","brun","Tube ou pot bien rempli.","-","5°C à 20°C","-",">24 heures",null,"ecbu",null,"Urine","5°C à 20°C","-",">24 heures",null,null,null,null,null,null,"Biochimie","1 fois par semaine","-","bandelette urinaire  ","0659",null,null,null,"B90"]
["LBM","Cannabis urinaire (dosage)","CANNAU",null,"Urine","Pot à urine","ecbu","1 mL minimum","-","5°C à 20°C","-",">24 heures",null,null,null,null,null,null,null,null,null,null,null,null,null,"Toxicologie","En série 1 fois par semaine","-","GC-MS","0659",null,null,null,"B90"]
["LBM","Capacité de fixation en fer Coefficient de saturation en fer de la transferrine","TRFCO","Capacité de fixation en fer Coefficient de saturation en fer de la transferrine","Sang","Tube sec (bouchon rouge) ","rouge","-","-","5°C à 25°C","-","<24 heures","Tube sec (bouchon rouge) ","rouge",null,"Serum décanté","-20°C","-",">24 heures",null,null,null,null,null,null,"Biochimie","tous les jours (24 heures/24)/1h30 urg ou 4h routine","1 jour","Rapport entre le Fer et la Transférine","2000",null,null,null,"/"]
["LBM","Carbamazépine","CARBA","Tegretol","Sang","Tube sec (bouchon rouge) ","rouge","Pas de forte hémolyse. Ne pas utiliser de tube avec gel séparateur. Préciser la date et l'heure de la dernière prise du médicament, et sa posologie.","-","5°C à 25°C","-","<24 heures","Tube sec (bouchon rouge) ","rouge",null,"Serum décanté","-20°C","-",">24 heures",null,null,null,null,null,null,"Biochimie","tous les jours (24 heures/24)/1h30 urg ou 4h routine","7 jours","Immunoturbidimétrie-Alinity","0325",null,null,null,"B70"]
["LBM","Carboxyhémoglobine","COHB","COHb","Sang","Seringue héparinée","gazo","Absence de bulle d'air  transporter sur glace  acheminer rapidement au laboratoire","-","5+/-3°C","-","<1 heure","Tube hépariné sans gel (bouchon vert)","vert",null,"-","5+/-3°C","-","<1 heure","capillaire hépariné",null,"-","5+/-3°C","-","<1 heure","Biochimie","tous les jours (24 heures/24)/20 min urgences ou 1h routine","-","ABL 800","1680",null,null,null,"B35"]
["LBM","Cartographie fongique ","CART",null,"Multi-sites (bouche  aisselle  anus  urine  respiratoire)","3 écouvillons","ecou","Prélever sur écouvillon au niveau de la bouche  des aisselles  de l'anus et sur poudrier stérile pour les urines et les crachats","-","20°C ± 5°C","-","< 2 heures","2 Poudrier","poud",null,"-","5°C ± 3°C","-","< 12 heures",null,null,"-","20°C ± 5°C","-","< 24 heures avec des écouvillons gélosés","Bactériologie","Fréquence : du lundi au dimanche  \nde 7H à 18 heures\nDélai : de 48 heures à 1 semaine","-","Examen direct + Culture Fongique",null,null,null,"ET","B70 par site"]
["LBM","CDT","CDT","CDT","Sang","Tube sec (bouchon rouge) ","rouge","Acheminer au laboratoire directement après prélèvement","-","5°C à 20°C","-","<24 heures","Tube sec (bouchon rouge) ","rouge",null,"Serum décanté ","<8°C","-",">24 heures",null,null,null,null,null,null,"Biochimie","1 fois par semaine","6 jours","Capillaris","0779",null,null,null,"B55"]
["LBM","Cefazoline","CEFA",null,"Sang","Tube sec (bouchon rouge) ","rouge","1 mL minimum","Sérum","5°C ± 3°C","-","< 6 heures",null,null,null,null,null,null,null,null,null,null,null,null,null,"Toxicologie","Avant 12 heures  hors garde  WE  férié et pont\nDélai : 1 semaine","-","UPLC-DAD","M001",null,null,null,"4850 F"]
["LBM","Cefepime","CEFE",null,"Sang","Tube sec (bouchon rouge) ","rouge","1 mL minimum","Sérum","5°C ± 3°C","-","< 6 heures",null,null,null,null,null,null,null,null,null,null,null,null,null,"Toxicologie","Avant 12 heures  hors garde  WE  férié et pont\nDélai : 1 semaine","-","UPLC-DAD","M001",null,null,null,"4850 F"]
["LBM","Cefotaxime (Claforan)","CEFO",null,"Sang","Tube sec (bouchon rouge) ","rouge","1 mL minimum","Sérum","5°C ± 3°C","-","< 6 heures",null,null,null,null,null,null,null,null,null,null,null,null,null,"Toxicologie","Avant 12 heures  hors garde  WE  férié et pont\nDélai : 1 semaine","-","UPLC-DAD","M001",null,null,null,"4850 F"]
["LBM","Ceftazidime (Fortum)","CEFTA",null,"Sang","Tube sec (bouchon rouge) ","rouge","1 mL minimum","Sérum","5°C ± 3°C","-","< 6 heures",null,null,null,null,null,null,null,null,null,null,null,null,null,"Toxicologie","Avant 12 heures  hors garde  WE  férié et pont\nDélai : 1 semaine","-","UPLC-DAD","M001",null,null,null,"4850 F"]
["LBM","Ceftriaxone","CEFTRI",null,"Sang","Tube sec (bouchon rouge) ","rouge","1 mL minimum","Sérum","5°C ± 3°C","-","< 6 heures",null,null,null,null,null,null,null,null,null,null,null,null,null,"Toxicologie","Avant 12 heures  hors garde  WE  férié et pont\nDélai : 1 semaine","-","UPLC-DAD","M001",null,null,null,"4850 F"]
["LBM","Chaines légères κ","CHLKAP","Kappa (chaines légères)","Serum","Tube sec (bouchon rouge) ","rouge","Acheminer au laboratoire directement après prélèvement","-","5°C à 20°C","-","-",{"$f":"F112","v":"Tube sec (bouchon rouge) "},"rouge",null,"Serum décanté congelé","-20°C","-",null,null,null,null,null,null,null,"Sous-traitant Laboratoire CERBA","Fréquence : transmis en France une fois par semaine\nDélai : de 15 jours à 1 mois",null,"Turbidimétrie",null,null,null,null,"HN 4415F"]
["LBM","Chaines légères λ ","CHLLAM","Lambda (chaines légères)","Serum","Tube sec (bouchon rouge) ","rouge","Pas d’hémolyse\nAcheminer rapidement au laboratoire","-","5°C à 20°C","-","-",{"$f":"F113","v":"Tube sec (bouchon rouge) "},"rouge",null,"Serum décanté congelé","-20°C","-",null,null,null,null,null,null,null,"Sous-traitant Laboratoire CERBA","Fréquence : transmis en France une fois par semaine\nDélai : de 15 jours à 1 mois",null,"Turbidimétrie",null,null,null,null,"HN 4415F"]
["LBM","Chikungunya sérologie IgG + IgM","SCHIK","Chikungunya (Sérologie IgG + IgM)","Sang","Tube sec (bouchon rouge) ","rouge","Diagnostic tardif (apparition des IgM après J+5). \nRenseignements obligatoires : date de début des signes cliniques + préciser si retour récent de voyage. ","-","5°C à 25°C","-","< 4 heures",null,null,null,null,null,null,null,null,null,null,null,null,null,"Immuno-Sérologie","Fréquence: minimum 1 fois par semaine \nDélai : 1 semaine maximum","-","EnzymoImmunoanalyse",1254,null,null,null,"B90"]
["LBM","Chlamydiae pneumoniae sérologie IgG +IgM","CHLPP","Pneumoniae (Sérologie Chlamydiae)","Sang","Tube sec (bouchon rouge) ","rouge","En cas de suspicion d'infection récente privilégier la RT-PCR.","-","5°C à 25°C","-","< 4 heures",null,null,null,null,null,null,null,null,null,null,null,null,null,"Sous-traitant Laboratoire CERBA","Fréquence : transmis en France une fois par semaine\nDélai : de 15 jours à 1 mois","-","Immunofluorescence indirecte",1308,null,null,null,"B60 + B60"]
["LBM","Chlamydiae psittaci sérologie","SCHLPP","Chlamydiae (psittaci Sérologie)","Sang","Tube sec (bouchon rouge) ","rouge","-","-","5°C à 25°C","-","< 4 heures",null,null,null,null,null,null,null,null,null,null,null,null,null,"Sous-traitant Laboratoire CERBA","Fréquence : transmis en France une fois par semaine\nDélai : de 15 jours à 1 mois","-","Immunofluorescence indirecte",1309,null,null,null,"B60"]
["LBM","Chlamydiae trachomatis sérologie IgG","SCHP","Chlamydiae (trachomatis Sérologie IgG)","Sang","Tube sec (bouchon rouge) ","rouge","-","-","5°C à 25°C","-","< 4 heures",null,null,null,null,null,null,null,null,null,null,null,null,null,"Sous-traitant Laboratoire CERBA","Fréquence : transmis en France une fois par semaine\nDélai : de 15 jours à 1 mois","-","Enzymoimmunoanalyse",1307,null,null,null,"B40"]
["LBM","Chlore (CL) ionogramme","CL","CL-","Sang","Tube hépariné (bouchon vert)","vert","-","-","5°C à 25°C","-","<8 heures","Tube hépariné (bouchon vert)","vert",null,"Plasma hépariné décanté","-20°C","-",">8 heures",null,null,null,null,null,null,"Biochimie","tous les jours (24 heures/24)/1h30 urg ou 4h routine","7 jours si décanté","Alinity / Méthode : Electrodes sélectives d'ions diluées (indirectement)",1609,null,null,null,"B13 iono"]
["LBM","Chlore (CL) sur LCR","CLC","Cl- LCR","LCR","Poudrier","poud","Acheminer au laboratoire directement après prélèvement","-","5°C à 25°C","-","-",null,null,null,null,null,null,null,null,null,null,null,null,null,"Biochimie","tous les jours (24 heures/24)/1h30 urg ou 4h routine","7 jours","Alinity / Méthode : Electrodes sélectives d'ions diluées (indirectement)","-",null,null,null,"B13"]
["LBM","Chlore (CL) sur liquide biologique","CLL","CL- sur liquide biologique","Liquide biologique","Poudrier","poud","-","-","5°C à 25°C","-","<24 heures","Poudrier","poud",null,"Liquide biologique","<8°C","-","<24 heures",null,null,null,null,null,null,"Biochimie","tous les jours (24 heures/24)/1h30 urg ou 4h routine","7 jours","Alinity / Méthode : Electrodes sélectives d'ions diluées (indirectement)","-",null,null,null,"B13"]
["LBM","Chlore (CL) urinaire","CLU","CL- urinaire","Urine","Tube à urine chimie","brun","-","-","5°C à 25°C","-","<24 heures","Pot à urine","ecbu",null,"Urine","5°C à 25°C","-","<24 heures","Pot à urine",null,"Urine","<8°C","-",">24 heures","Biochimie","tous les jours (24 heures/24)/4h routine","7 jours","Alinity / Méthode : Electrodes sélectives d'ions diluées (indirectement)","-",null,null,null,"B13"]
["LBM","Chlore (CL) urinaire 24h","CL24","CL- urinaire 24h","Urine des 24 heures","Tube à urine chimie","brun","Au lever  éliminer les premières urines. Ensuite  recueillir la totalité des urines pendant 24 heures. Noter la diurèse.","-","5°C à 25°C","-","<24 heures","Pot à urine","ecbu",null,"Urine des 24H ","5°C à 25°C","-","<24 heures","Pot à urine",null,"Urine des 24H ","<8°C","-","<24 heures","Biochimie","lundi au vendredi (7-17h)/4h","7 jours","Alinity / Méthode : Electrodes sélectives d'ions diluées (indirectement)","-",null,null,null,"B13"]
["LBM","Cholestérol","CHOL","CHOL","Sang","Tube hépariné (bouchon vert)","vert","Prélèvement à jeun.","-","5°C à 25°C","-","<24 heures","Tube hépariné (bouchon vert)","vert",null,"Plasma hépariné décanté","-20°C","-",">24 heures","Pot à urine",null,null,null,null,null,"Biochimie","tous les jours (24 heures/24)/1h30 urg ou 4h routine","7 jours","Alinity / Méthode : Enzymatique","0580",null,null,null,"B5 "]
["LBM","Cholestérol HDL","HDL","HDL","Sang","Tube hépariné (bouchon vert)","vert","Prélèvement à jeun.","-","5°C à 25°C","-","<24 heures","Tube hépariné (bouchon vert)","vert",null,"Plasma hépariné décanté","-20°C","-",">24 heures","Pot à urine",null,null,null,null,null,"Biochimie","tous les jours (24 heures/24)/1h30 urg ou 4h routine","7 jours","Alinity / Méthode : Détergent sélectif et accélérateur","0996",null,null,null,"B27 bilan lipidique"]
["LBM","Cholestérol LDL","LDLD","LDL","Sang","Tube hépariné (bouchon vert)","vert","Acheminement rapide en moins de 3 heures. Remplir le tube. Prélèvement à jeun.","-","5°C à 25°C","-","<3 heures","Tube hépariné (bouchon vert)","vert",null,"Plasma hépariné décanté","2-8°C","-","> 3 heures et <5 jours",null,null,null,null,null,null,"Biochimie","tous les jours (24 heures/24)/1h30 urg ou 4h routine","5 jours","Alinity / Méthode : Détergent sélectif liquide","2001",null,null,null,"B20 "]
["LBM","Cholinestérase","CHE","Cholinestérase","Sang","Tube hépariné (bouchon vert)","vert","Pas d'hémolyse","-","5°C à 25°C","-","<24 heures","Tube hépariné (bouchon vert)","vert",null,"Plasma hépariné décanté","-20°C","-",">24 heures",null,null,null,null,null,null,"Biochimie","tous les jours (24 heures/24)/1h30 urg ou 4h routine","7 jours","Alinity / Méthode : Butyrylthiocholine à 37°C selon les recommandations de la DGKC","-",null,null,null,"HN 2626F"]
["LBM","Clostridium difficile (recherche de la toxine B et de toxine binaire)","GXCD",null,"Selles","Pot à coproculture","copro","-","-","20°C ± 5°C","-","< 2 heures ",null,null,null,"-","5°C ± 3°C","-","< 12 heures",null,null,null,null,null,null,"Bactériologie","Fréquence : 24 heures sur 24  7j sur 7\nDélai : 1 jour","-","PCR temps réel",null,null,null,null,"5200F"]
["LBM","Clostridium difficile (recherche de l'Antigène GAPD)","CLODCT",null,"Selles","Pot à coproculture","copro","-","-","20°C ± 5°C","-","< 2 heures",null,null,null,"-","5°C ± 3°C","-","< 12 heures",null,null,null,null,null,null,"Bactériologie","Fréquence : 24 heures sur 24  7j sur 7\nDélai : 1 jour","-","Immunochromatographie",null,null,null,null,"B80"]
["LBM","Clozapine","CLOZAP",null,"Sang","Tube sec (bouchon rouge) ","rouge","Proscrire les tubes avec gel séparateur. Envoi de préférence en matinée pour une prise en charge rapide du tube.","-","5°C ± 3°C","-","< 4 heures",null,null,null,null,null,null,null,null,null,null,null,null,null,"Biochimie","Avant 12 heures  hors garde  WE  férié et pont\nDélai : 1 semaine",null,"UPLC-DAD",1662,null,null,null,"B100"]
["LBM","CMV (Cytomégalovirus) sérologie IgG +IgM","SCMV","CMV (Cytomégalovirus Sérologie IgG + IgM 5ème maladie)","Sang","Tube sec (bouchon rouge) ","rouge","-","-","5°C à 25°C","-","< 4 heures",null,null,null,null,null,null,null,null,null,null,null,null,null,"Immuno-Sérologie","Fréquence : du lundi au vendredi \nDélai : 24 h","-","Chimiluminescence",1713,null,null,null,"B85"]
["LBM","CO2 (Réserve alcaline)","CO2","CO2 ","Sang","Tube hépariné (bouchon vert)","vert","Ne pas ouvrir le tube.","-","5°C ± 3°C","-","< 24heures","Tube hépariné (bouchon vert)","vert",null,"Plasma hépariné décanté","-20°C","-",">24 heures",null,null,null,null,null,null,"Biochimie","tous les jours (24 heures/24)/1h30 urg ou 4h routine","1 heure","Alinity / Méthode : PEP carboxylase","0571",null,null,null,"B7"]
["LBM","Coloration de PERLS","PERLS",null,"Moelle osseuse","Etalement sur lame","lame","-","Moelle osseuse","20°C ± 5°C","-","Aucun",null,null,null,null,null,null,null,null,null,null,null,null,null,"Hématologie biologique","Fréquence : tous les jours\nDélai : de 12 heures à 15 jours","-","Cytologie\nMicroscopie",1102,null,null,null,"B25"]
["LBM","Coloration des Myéloperoxidases (MPO)","MPO",null,"Sang total / Moelle osseuse","Tube EDTA (bouchon violet)","violet","-","Sang total","20°C ± 5°C","-","< 6 heures","Etalement sur lame","lame",null,null,null,null,"aucun délai pour étalements",null,null,null,null,null,null,"Hématologie biologique","Fréquence : tous les jours\nDélai : de 12 heures à 15 jours","-","Cytologie\nMicroscopie",1102,null,null,"ET","B25"]
["LBM","Complément C3","C3","C3","Sang","Tube sec (bouchon rouge) ","rouge","CHN + Wallis : décanter + congeler","-","5°C à 25°C","-","<24 heures","Tube sec (bouchon rouge) ","rouge",null,"Plasma hépariné décanté","-20°C","-",">24 heures",null,null,null,null,null,null,"Biochimie","tous les jours (24 heures/24)/4h routine","7 jours","Alinity / Méthode : Immuno-Turbidimétrie","1811",null,null,null,"B25"]
["LBM","Complément C4","C4","C4","Sang","Tube sec (bouchon rouge) ","rouge","CHN + Wallis : décanter + congeler","-","5°C à 25°C","-","<24 heures","Tube sec (bouchon rouge) ","rouge",null,"Plasma hépariné décanté","-20°C","-",">24 heures",null,null,null,null,null,null,"Biochimie","tous les jours (24 heures/24)/4h routine","2 jours","Alinity/ Méthode Immuno-Turbidimétrie","1812",null,null,null,"B25"]
["LBM","Compte d'Addis","ADDIS",null,"Urines","Pot à urine","ecbu","Urines sur 3 heures (vol. mini. = 80ml).","-","20°C ± 5°C","-","< 2 heures",null,null,null,"-","5°C ± 3°C","-","< 12 heures",null,null,null,null,null,null,"Bactériologie","Fréquence : du lundi au vendredi  \nde 7H à 18 heures\nDélai : 1 jour","-","Examen direct",null,null,null,null,"B25"]
["LBM","Conjonctive ","CONJ",null,"Conjonctive","2 Ecouvillons ","ecou","-","-","20°C ± 5°C","-","< 2 heures","2 écouvillons gélosés","ecouG",null,"-","20°C ± 5°C","-","< 24 heures",null,null,"-","5°C ± 3°C","-","< 12 heures","Bactériologie","Fréquence : du lundi au dimanche  \nde 7H à 18 heures\nDélai : de 48 heures à 1 semaine","-","Examen direct + Culture Bactérienne",null,null,null,"OU","B100"]
["LBM","Coproculture","COPRO",null,"Selles","Pot à coproculture","copro","-","-","20°C ± 5°C","-","< 2 heures",null,null,null,"-","5°C ± 3°C","-","< 12 heures",null,null,null,null,null,null,"Bactériologie","Fréquence : du lundi au dimanche  \nde 7H à 18 heures\nDélai : de 48 heures à 1 semaine","-","Examen direct + Culture Bactérienne",null,null,null,null,"B180"]
["LBM","Coqueluche sérologie","COLQLP","Coqueluche (Sérologie)","Sang","Tube sec (bouchon rouge) ","rouge","-","-","5°C à 25°C","-","< 4 heures",null,null,null,null,null,null,null,null,null,null,null,null,null,"Sous-traitant Laboratoire CERBA","Fréquence : transmis en France une fois par semaine\nDélai : de 15 jours à 1 mois","-","Immunoempreinte",null,null,null,null,"5500F"]
["LBM","Cornée ","CORNM",null,"Cornée","Milieux de culture ensemencés : PVX  Sabouraud en tube  bouillon Schaedler","scalpel","Prélèvement réalisé et ensemencé directement en ophtalmologie.","-","20°C ± 5°C","-","< 4 heures",null,null,null,null,null,null,null,null,null,null,null,null,null,"Bactériologie","Fréquence : 24 heures sur 24  7j sur 7\nDélai : de 48 heures à 1 semaine pour la bactériologie et de 10 jours à 20 jours pour la mycologie","-","Examen direct + Culture Bactérienne et Fongique",null,null,null,null,"B100 + B70"]
["LBM","Cortisol","CORT","Cortisol","Sang","Tube sec (bouchon rouge) ","rouge","Renseigner l'heure de prélèvement sur la demande.","-","5°C à 25°C","-","<8 heures","Tube sec (bouchon rouge) ","rouge",null,"Serum décanté","2-8°C","-",">24 heures",null,null,"Serum décanté","-20°C","-",">24 heures","Biochimie","tous les jours (24 heures/24)/1h30 urg ou 4h routine","7 jours","Alinity / Méthode : CMIA","0462",null,null,null,"B55"]
["LBM","Cortisol urinaire","CORTU","Cortisol urinaire","Urine","Tube à urine chimie","brun","-","-","5°C à 25°C","-","<8 heures","Pot à urine","ecbu",null,"Urine","5°C à 25°C","-","<8 heures","Pot à urine",null,"Urine","<8°C","-",">24 heures","Biochimie","tous les jours (24 heures/24)/1h30 urg ou 4h routine","7 ours","Alinity / Méthode : CMIA","0476",null,null,null,"B75"]
["LBM","Cortisol urinaire 24h","COR24","Cortisol urinaire 24h","Urine des 24 heures","Tube à urine chimie","brun","Au lever  éliminer les premières urines. Ensuite  recueillir la totalité des urines pendant 24 heures. Noter la diurèse.","-","5°C à 25°C","-","<8 heures","Pot à urine","ecbu",null,"Urine des 24H ","5°C à 25°C","-","<8 heures","Pot à urine",null,"Urine des 24H ","<8°C","-",">24 heures","Biochimie","tous les jours (24 heures/24)/1h30 urg ou 4h routine","7 jours","Alinity / Méthode : CMIA","0476",null,null,null,"B75"]
["LBM","Coxiella burnetti (fièvre Q) sérologie","FQP","FQ (fièvre Q Coxiella burnetti Sérologie)","Sang","Tube sec (bouchon rouge) ","rouge","-","-","5°C à 25°C","-","< 4 heures",null,null,null,null,null,null,null,"Pot à urine",null,null,null,null,null,"Sous-traitant Laboratoire CERBA","Fréquence : transmis en France une fois par semaine\nDélai : de 15 jours à 1 mois","-","Immunofluorescence indirecte",1316,null,null,null,"B40"]
["LBM","Coxsackies A et B - Enterovirus sérologie","SCOXSP","Coxsackies (Enterovirus Sérologie)","Sang","Tube sec (bouchon rouge) ","rouge","-","-","5°C à 25°C","-","< 4 heures",null,null,null,null,null,null,null,"Pot à urine",null,null,null,null,null,"Sous-traitant Laboratoire CERBA","Fréquence : transmis en France une fois par semaine\nDélai : de 15 jours à 1 mois","-","Fixation du complément",1721,null,null,null,"B40"]
["LBM","Crachat (ECBC)","ECBC",null,"Expectoration","Poudrier stérile","poud","Pour les enfants < 2 ans prescrire une aspiration bronchique en remplacement","-","20°C ± 5°C","-","< 2 heures",null,null,null,"-","5°C ± 3°C","-","< 12 heures",null,null,null,null,null,null,"Bactériologie"," Fréquence : du lundi au dimanche  \nde 7H à 18 heures\nDélai : de 48 heures à 1 semaine","-","Examen direct + Culture Bactérienne",null,null,null,null,"B200"]
["LBM","Créatine phosphokinase (CPK)","CKT","CPK","Sang","Tube hépariné (bouchon vert)","vert","Pas d'hémolyse","-","5°C à 25°C","-","<24 heures","Tube hépariné (bouchon vert)","vert",null,"Plasma hépariné décanté","2-8°C","-",">24 heures et <7 jours",null,null,null,null,null,null,"Biochimie","tous les jours (24 heures/24)/1h30 urg ou 4h routine","7 jours","Alinity / Méthode : NAC (N-acétyl-L-cystéine)","1520",null,null,null,"B7"]
["LBM","Créatinine Enzymatique","CREA","CREAT","Sang","Tube hépariné (bouchon vert)","vert","-","-","5°C à 25°C","-","<24 heures","Tube hépariné (bouchon vert)","vert",null,"Plasma hépariné décanté","-20°C","-",">24 heures",null,null,null,null,null,null,"Biochimie","tous les jours (24 heures/24)/1h30 urg ou 4h routine","7 jours","Alinity / Méthode : Enzymatique","0592",null,null,null,"B7"]
["LBM","Créatinine Enzymatique dialysat","CREADI","CREAT dialysat","Dialysat","Poudrier","poud","-","-","5°C à 25°C","-","<24 heures","Poudrier","poud",null,"Dialysat","<8°C","-",">24 heures",null,null,null,null,null,null,"Biochimie","lundi au vendredi (7-15h)/24 heures","6 jours","Alinity / Méthode : Enzymatique","-",null,null,null,"B7"]
["LBM","Créatinine Enzymatique urinaire","CREAU","CREAT urinaire","Urine","Tube à urine chimie","brun","Urines échantillon ou urines de 24h. Préciser la diurèse si urines de 24h.","-","5°C à 25°C","-","<24 heures","Pot à urine","ecbu",null,"urine","5°C à 25°C","-","<24 heures","Pot à urine",null,"urine","<8°C","-",">24 heures","Biochimie","tous les jours (24 heures/24)/4h","6 jours","Alinity / Méthode : Enzymatique","0627",null,null,null,"B7"]
["LBM","Créatinine: Clairance de la créatinine","DFGH/DFGF","Clairance Créatinine","Sang","Tube hépariné (bouchon vert)","vert","Préciser le poids du patient","-","5°C à 25°C","-","<24 heures",null,null,null,"Plasma hépariné",null,null,null,"Pot à urine",null,null,null,null,null,"Biochimie","tous les jours (24 heures/24)/1h30 urg ou 4h routine","7 jours","Rapport entre la créatinine  le poids et l'âge du patient","-",null,null,null,"/"]
["LBM","Cryoglobuline","CRYO","Cryoglobuline","Sang","3 Tubes secs de 5 ml sans activateur de coagulation (bouchon rouge) ","rouge","Dispositif de prélèvement à récupérer au laboratoire. Prélèvement à jeûn. Le prélèvement doit arriver au laboratoi avant midi., hors week-end et jours fériés.","-","37°","-","< 1 heure",null,null,null,"Sérum décanté réfrigéré",null,null,null,"Pot à urine",null,null,null,null,null,"Biochimie","lundi au vendredi (7-12h)/10 à 12j selon le résultat du test","3 jours","Dosage/Identification/ Hydrasys",1573,null,null,null,"B20"]
["LBM","Cryptocoque : ED + Ag. solubles + culture (LBA)","CRYPTL",null,"Lavage Broncho-Alvéolaire","Poudrier stérile","poud","-","-","20°C ± 5°C","-","< 4 heures",null,null,null,null,null,null,null,"Pot à urine",null,null,null,null,null,"Bactériologie","Fréquence : du lundi au dimanche  \nde 7H à 18 heures\nDélai : 4 heures pour l'ED et Ag / 48 heures à 1 semaine pour la culture","-","Examen direct + Culture fongique + Agglutination",null,null,null,null,"B50"]
["LBM","Cryptocoque : ED + Ag. solubles + culture (LCR)","CRYPTO",null,"Liquide Céphalo-Rachidien ","Poudrier stérile","poud","-","-","20°C ± 5°C","-","< 1 heure (urgence vitale)",null,null,null,null,null,null,null,null,null,null,null,null,null,"Bactériologie","Fréquence : 24 heures sur 24  7j sur 7\nDélai : 2 heures pour l'ED et Ag / 48 heures à 1 semaine pour la culture","-","Examen direct + Culture fongique + Agglutination",null,null,null,null,"B50"]
["LBM","Cryptocoque : ED + Ag. solubles + culture (serum)","CRYPTS",null,"Serum","Tube sec (bouchon rouge) ","rouge","-","-","20°C ± 5°C","-","< 4 heures",null,null,null,null,null,null,null,null,null,null,null,null,null,"Bactériologie","Fréquence : du lundi au dimanche  \nde 7H à 18 heures\nDélai : 4 heures pour l'ED et Ag / 48 heures à 1 semaine pour la culture","-","Examen direct + Culture fongique + Agglutination",null,null,null,null,"B50"]
["LBM","Cryptocoque : ED + Ag. solubles + culture (Urines)","CRYPTU",null,"Urines ","Pot à urine stérile","ecbu","-","-","20°C ± 5°C","-","< 4 heures",null,null,null,null,null,null,null,null,null,null,null,null,null,"Bactériologie","Fréquence : du lundi au dimanche  \nde 7H à 18 heures\nDélai : 4 heures pour l'ED et Ag / 48 heures à 1 semaine pour la culture","-","Examen direct + Culture fongique + Agglutination",null,null,null,null,"B50"]
["LBM","Cryptosporidies et/ou Microsporidies","SPORID",null,"Selles","Pot à coproculture","copro","-","-","20°C ± 5°C","-","< 2 heures",null,null,null,"-","5°C ± 3°C","-","< 12 heures",null,null,null,null,null,null,"Bactériologie"," Fréquence : du lundi au vendredi  \nde 7H à 18 heures\nDélai : 2 jours","-","Coloration + Immunochromatographie",null,null,null,null,"B60"]
["LBM","Culot urinaire","CULOT",null,"Urines","Pot à urine","ecbu","-","-","20°C ± 5°C","-","< 2 heures",null,null,null,"-","5°C ± 3°C","-","< 12 heures",null,null,null,null,null,null,"Bactériologie"," Fréquence : du lundi au vendredi  \nde 7H à 18 heures\nDélai : 1 jour","-","Examen direct",null,null,null,null,"B15"]
["LBM","Cyclosporine","CSA","Ciclosporine","Sang","Tube EDTA (bouchon violet)","violet","-","-","5°C à 25°C","-","<24 heures",null,null,null,"Sang total EDTA","2-8°C",null,"<7 jours",null,null,"Sang total EDTA","-20°C",null,">7 jours","Biochimie","1 fois par semaine (ou 24h si demande urgente motivée )","7 jours","Alinity /Méthode : CMIA","1054",null,null,null,"B70"]
["LBM","Cystatine C","CYSTAG","Cystatine C","Sang","Tube sec (bouchon rouge) ","rouge","-","-","5°C à 25°C","-","<24 heures",null,null,null,"Serum décanté","-20°C","-",">24 heures",null,null,null,null,null,null,"Biochimie","Tous les jours (en journée jusqu'à 15h)","7 jours","Alinity","-",null,null,null,"B10"]
["LBM","D dimères (DD)","DD/DDV",null,"Sang ","Tube Citrate 9NC (bouchon bleu)","bleu","Traitement Anticoagulant obligatoire\nPréciser l'heure de prélèvement\n","Sang total","20°C ± 5°C","-","< 24 heures",{"$f":"F161","v":"Tube Citrate 9NC (bouchon bleu)"},null,null,"Plasma décanté","20°C ± 5°C",{"$f":"K161","v":"-"},"< 24 heures",{"$f":"M161","v":"Tube Citrate 9NC (bouchon bleu)"},{"$f":"O161","v":0},{"$f":"P161","v":"Plasma décanté"},"-20°C",{"$f":"R161","v":"-"},"Aucun","Hématologie biologique","7J/7  24H/24\nUrgence: 1h30 \nDélai max: 4h","24 Heures","Turbidimétrie",1022,null,null,null,"B60"]
["LBM","Dalbavancine","DALBA",null,"Sang","Tube sec (bouchon rouge) ","rouge","1 mL minimum","Sérum","5°C ± 3°C","-",null,null,null,null,null,null,null,null,null,null,null,null,null,null,"Toxicologie","Avant 12 heures  hors garde  WE  férié et pont\nDélai : 1 semaine","-","UPLC-DAD","M001",null,null,null,"4850 F"]
["LBM","Dengue sérologie IgG + IgM","SDENG","Dengue (Sérologie IgG + IgM)","Sang","Tube sec (bouchon rouge) ","rouge","Diagnostic tardif (apparition des IgM après J+5). Renseignements obligatoires : date de début des signes cliniques + préciser si retour récent de voyage. ","-","5°C à 25°C","-","< 4 heures",null,null,null,null,null,null,null,null,null,null,null,null,null,"Immuno-Sérologie","Fréquence: minimum 1 fois par semaine \nDélai : 1 semaine maximum","-","EnzymoImmunoanalyse",1255,null,null,null,"B90"]
["LBM","Dengue: Sérotypage","ARBTRT","Sérotype (Dengue)","Sang","Tube sec (bouchon rouge) ","rouge","Réalisé uniquement en cas de PCR ou AgNs1 positifs","-","5°C à 25°C","-","< 4 heures",null,null,null,null,null,null,null,null,null,null,null,null,null,"Biologie Moléculaire","Fréquence : 1 fois /sem\nDélai : 7j","-","PCR temps réel",null,null,null,null,"7800F"]
["LBM","Dépistage moléculaire de S.aureus et de résistance à la méticilline","GXSA",null,"Sang","Flacon d'hémoculture ","hemoc","Test réalisé uniquement à partir de flacon d'hémoculture positif à cocci gram + en amas","-","20°C ± 5°C","-","< 4 heures ",null,null,null,null,null,null,null,null,null,null,null,null,null,"Bactériologie","Fréquence : du lundi au vendredi \nde 7H à 18 heures\nDélai : 1 jour ","-","PCR temps réel",null,null,null,null,"19760F"]
["LBM","Dépistage pré-opératoire : recherche de S. aureus","POP",null,"Nez","1 Ecouvillon ","ecou","Les autres sites (gorges  aisselle  périnée) ne sont plus préconisés.","-","20°C ± 5°C","-","< 2 heures","1 écouvillon gélosé","ecouG",null,"-","20°C ± 5°C","-","< 24 heures",null,null,"-","5°C ± 3°C","-","< 12 heures","Bactériologie","Fréquence : du lundi au dimanche \nde 7H à 18 heures\nDélai : de 48 heures à 1 semaine","-","Examen direct + Culture Bactérienne",null,null,null,"OU","B60 "]
["LBM","Digoxine","DIGO","Digoxine","Sang","Tube sec (bouchon rouge) ","rouge","Pas de forte hémolyse. Les échantillons soivent être prélevés 12 heures après l'administration de digoxine par voie orale ou 6heures après une IV. Ne pas utiliser de tubes avec gel séparateur. Préciser la date et l'heure de la dernière prise du médicament, et sa posologie.","-","5°C à 25°C","-","<24 heures","Tube sec (bouchon rouge) ","rouge",null,"Serum décanté","-20°C","-",">24 heures",null,null,null,null,null,null,"Biochimie","tous les jours (24 heures/24)/1h30 urg ou 4h routine","2 jours","Alinity / Méthode : PETINIA","0327",null,null,null,"B70"]
["LBM","Dispositif intra-cavitaire ","SOND",null,"Sonde urinaire ou d'intubation","Pot à urine stérile","ecbu","-","-","20°C ± 5°C","-","< 2 heures",null,null,null,"-","5°C ± 3°C","-","< 12 heures",null,null,null,null,null,null,"Bactériologie","Fréquence : du lundi au dimanche \nde 7H à 18 heures\nDélai : de 48 heures à 1 semaine","-","Examen direct + Culture Bactérienne",null,null,null,null,"B120"]
["LBM","Dispositif intra-tissulaire ","DRAIN",null,"Lame / redon / stérilet / prothèse","Poudrier stérile","poud","-","-","20°C ± 5°C","-","< 2 heures",null,null,null,"-","5°C ± 3°C","-","< 12 heures",null,null,null,null,null,null,"Bactériologie","Fréquence : du lundi au dimanche \nde 7H à 18 heures\nDélai : de 48 heures à 1 semaine","-","Examen direct + Culture Bactérienne",null,null,null,null,"B120"]
["LBM","Dispositif intra-vasculaire ","KT",null,"Cathéter / chambre implantable","Poudrier stérile","poud","-","-","20°C ± 5°C","-","< 2 heures",null,null,null,"-","5°C ± 3°C","-","< 12 heures",null,null,null,null,null,null,"Bactériologie","Fréquence : du lundi au dimanche \nde 7H à 18 heures\nDélai : de 48 heures à 1 semaine","-","Examen direct + Culture Bactérienne",null,null,null,null,"B150"]
["LBM","Dosage des Antirétroviraux","AR1VP","ARV (NUC NNUC IP antiprotéase inhibiteurs)","Sang","Tube sec (bouchon rouge  sans gel de séparation)","rouge"," Joindre au prélèvement   le formulaire dûment complété : Dosage des Antirétroviraux (GESO-QUA-DO-40).","-","5°C à 25°C","-","< 4 heures",null,null,null,null,null,null,null,null,null,null,null,null,null,"Sous-traitant Laboratoire CERBA","Fréquence : transmis en France une fois par semaine\nDélai : de 15 jours à 1 mois","-","LC-MS-MS",null,"doc 14",null,null,"B120"]
["LBM","EBV (virus d'Epstein Barr = mononucléose infectieuses) sérologie ","EBV","EBV (Sérologie mononucléose infectieuse MNI)  ","Sang","Tube sec (bouchon rouge) ","rouge","Recherche des Ac Anti-EBNA  Anti-VCA IgG et IgM.","-","5°C à 25°C","-","< 4 heures",null,null,null,null,null,null,null,null,null,null,null,null,null,"Immuno-Sérologie","Fréquence : du lundi au vendredi \nDélai : 24 h","-","Chimiluminescence","1716 + 1718",null,null,null,"B100+B55"]
["LBM","Echinococcose sérologie (kyste hydatique et échinococcose alvéolaire)","ECHIP","Echinococcose  (Sérologie kyste hydatique hydatidose)","Sang","Tube sec (bouchon rouge) ","rouge","-","-","5°C à 25°C","-","< 4 heures",null,null,null,null,null,null,null,null,null,null,null,null,null,"Sous-traitant Laboratoire CERBA","Fréquence : transmis en France une fois par semaine\nDélai : de 15 jours à 1 mois","-","EnzymoImmunoanalyse",4328,null,null,null,"B90"]
["LBM","Echovirus sérologie","SECHOP","Echovirus (Sérologie)","Sang","Tube sec (bouchon rouge) ","rouge","-","-","5°C à 25°C","-","< 4 heures",null,null,null,null,null,null,null,null,null,null,null,null,null,"Sous-traitant Laboratoire CERBA","Fréquence : transmis en France une fois par semaine\nDélai : de 15 jours à 1 mois","-","Fixation du complément",null,null,null,null,"1300F"]
["LBM","Electrophorèse de l'hémoglobine","EHB","Electrophorèse de l'hémoglobine","Sang","Tube EDTA (bouchon violet)","violet","-","-","5°C à 20°C","-","<24 heures","Tube EDTA (bouchon violet)","violet",null,"Sang total EDTA","<8°C","-",">24 heures",null,null,null,null,null,null,"Biochimie","1 fois par semaine (jeudi ou vendredi)","-","Capillaris","1113",null,null,null,"B60"]
["LBM","Electrophorèse des protéines","EPS","Electrophorèse des protéines","Sang","Tube sec (bouchon rouge) ","rouge","Eviter l'hémolyse.","-","5°C à 20°C","-","<24 heures","Tube sec (bouchon rouge) ","rouge",null,"Serum décanté","<8°C","-",">24 heures",null,null,null,null,null,null,"Biochimie","lundi au vendredi (7-15h)/24 heures hors WE","-","Capillaris","0570",null,null,null,"B53"]
["LBM","Electrophorèse des protéines (LCR)","EPLCR","Electrophorèse des protéines (LCR)","LCR + Sang","Pot à urine","poud","-","LCR","5°C à 20°C","-","<24 heures","Tube sec (bouchon rouge)","rouge",null,"serum","5°C à 20°C","-","< 24 heures","Poudrier et tube rouge",null,"LCR congelé + serum décanté congelé","-20°C","sérum à décanter",">24 heures","Biochimie","lundi au vendredi (7-15h)/24 heures hors WE","-","Hydrasis gel","0611",null,null,"ET","B70"]
["LBM","Entérobactérie productrice de carbapénèmase (EPC) par culture","PREPC",null,"Selles"," 1 Ecouvillon sec ","ecou","Respecter un délai de 72h entre chaque demande (effectuée au CHT ou à l'étranger) de mise en culture\n\nSinon demander une PCR EPC  ","-","20°C ± 5°C","-","< 2 heures","1 écouvillon gélosé","ecouG",null,"-","20°C ± 5°C","-","< 24 heures",null,null,"-","5°C ± 3°C","-","< 12 heures","Bactériologie","Fréquence : du lundi au dimanche \nde 7H à 18 heures\nDélai : de 48 heures à 1 semaine","-","Examen direct + Culture Bactérienne",null,null,null,"OU","B60 "]
["LBM","Entérocoque résistance à la vancomycine (ERV) par culture","PRVRE",null,"Selles","1 Ecouvillon sec ","ecou","Respecter un délai de 72h entre chaque demande (effectuée au CHT ou à l'étranger) de mise en culture\n\nSinon demander une PCR ERV  \n","-","20°C ± 5°C","-","< 2 heures","1 écouvillon gélosé","ecouG",null,"-","20°C ± 5°C","-","< 24 heures",null,null,"-","5°C ± 3°C","-","< 12 heures","Bactériologie","Fréquence : du lundi au dimanche  \nde 7H à 18 heures\nDélai : de 48 heures à 1 semaine","-","Examen direct + Culture Bactérienne",null,null,null,"OU","B60 "]
["LBM","Estradiol","E2","Estradiol","Sang","Tube sec (bouchon rouge) ","rouge",null,"-","5°C à 25°C","-","<24 heures","Tube sec (bouchon rouge) ","rouge",null,"Serum décanté congelé","-20°C","-",">24 heures",null,null,null,null,null,null,"Biochimie","2 fois par semaine/ délai max : 5 jours","7 jours si décanté","Alinity / Méthode : CMIA","0330",null,null,null,"B51"]
["LBM","Ethanol / Alcool","ETOH","Alcool éthylique","Sang","Tube sec (bouchon rouge) ","rouge","Ne pas utiliser d'alcool désinfectant lors du prélèvement.","Serum","5°C à 25°C","-","<24 heures","Tube sec (bouchon rouge) ","rouge",null,"Serum décanté","-20°C","-",">24 heures","Tube NaF (bouchon gris) de préférence","-","Sang total","4-25°C","-","<24 heures","Biochimie","tous les jours (24 heures/24)/1h30 urg ou 4h routine","7 jours","Alinity / Méthode : Enzymatique","0534",null,null,null,"B30"]
["LBM","Ethanol GC-FID","ETOHS",null,"sang","Tube NaF (bouchon gris)","gris","Pour dosage alcoolémie bébés, personnes décédées, et médico-légal.","Plasma","5°C à 20°C","-","-","Tube sec (bouchon rouge) ","rouge",null,"Sérum","5°C à 20°C","-","-",null,null,null,null,null,null,"Toxicologie","Avant 12 heures  hors garde  WE  férié et pont\nDélai : 1 semaine","-","GC-FID","0534",null,null,null,"B30"]
["LBM","Evaluation des sous-populations lymphocytaires B (CD19/CD20)","B19B20",null,"Sang total "," Tube EDTA (bouchon violet)","violet","Renseignements cliniques et indication de l'Immunophénotypage indispensables.","Sang total","20°C ± 5°C","-","< 72 heures",null,null,null,null,null,null,null,null,null,null,null,null,null,"Hématologie biologique","Fréquence : minimum 3x par semaine\nDélai : de 12 heures à 15 jours","-","Cytométrie en flux\n(3 Anticorps monoclonaux)",1103,null,null,null,"B300"]
["LBM","Evaluation des sous-populations lymphocytaires NK (CD16/CD56)","NK",null,"Sang total "," Tube EDTA (bouchon violet)","violet","Renseignements cliniques et indication de l'Immunophénotypage indispensables.","Sang total","20°C ± 5°C","-","< 72 heures",null,null,null,null,null,null,null,null,null,null,null,null,null,"Hématologie biologique","Fréquence : minimum 3x par semaine\nDélai : de 12 heures à 15 jours","-","Cytométrie en flux\n(4 Anticorps monoclonaux)",1103,null,null,null,"B300"]
["LBM","Evaluation des sous-populations lymphocytaires T (CD3/CD4/CD8)","T4T8",null,"Sang total / Liquide de ponction"," Tube EDTA (bouchon violet)","violet","Renseignements cliniques et indication de l'Immunophénotypage indispensables.","Sang total","20°C ± 5°C","-","< 72 heures",null,null,null,null,null,null,null,null,null,null,null,null,null,"Hématologie biologique","Fréquence : minimum 3x par semaine\nDélai : de 12 heures à 15 jours","-","Cytométrie en flux\n(4 Anticorps monoclonaux)",1122,null,null,null,"B80"]
["LBM","Facteur 10","F10",null,"Sang ","Tube Citrate 9NC (bouchon bleu)","bleu","Traitement Anticoagulant obligatoire\nPréciser l'heure de prélèvement","Sang total","20°C ± 5°C","-","< 24 heures",{"$f":"F186","v":"Tube Citrate 9NC (bouchon bleu)"},null,null,"Plasma décanté","20°C ± 5°C",{"$f":"K186","v":"-"},"< 24 heures",{"$f":"M186","v":"Tube Citrate 9NC (bouchon bleu)"},{"$f":"O186","v":0},"Plasma décanté","-20°C",{"$f":"R186","v":"-"},"Aucun","Hématologie biologique","Réalisé en série 1 à 3 fois/semaine\nUrgence vitale: 1h30 \nDélai max: 10 jours","24 heures","Chronométrie",1017,null,null,null,"B25"]
["LBM","Facteur 11","F11",null,"Sang ","Tube Citrate 9NC (bouchon bleu)","bleu","Traitement Anticoagulant obligatoire\nPréciser l'heure de prélèvement","Sang total","20°C ± 5°C","-","< 24 heures","Tube Citrate 9NC (bouchon bleu)",null,null,"Plasma décanté","20°C ± 5°C","-","< 24 heures","Tube Citrate 9NC (bouchon bleu)",0,"Plasma décanté","-20°C","-","Aucun","Hématologie biologique","Réalisé en série 1 à 3 fois/semaine\nUrgence vitale: 1h30 \nDélai max: 10 jours","24 heures","Chronométrie",180,null,null,null,"B50"]
["LBM","Facteur 12","F12",null,"Sang ","Tube Citrate 9NC (bouchon bleu)","bleu","Traitement Anticoagulant obligatoire\nPréciser l'heure de prélèvement","Sang total","20°C ± 5°C","-","< 24 heures","Tube Citrate 9NC (bouchon bleu)",null,null,"Plasma décanté","20°C ± 5°C","-","< 24 heures","Tube Citrate 9NC (bouchon bleu)",0,"Plasma décanté","-20°C","-","Aucun","Hématologie biologique","Réalisé en série\nNon réalisé en garde\nDélai: 1 à 15 jours","24 heures","Chronométrie",181,null,null,null,"B40"]
["LBM","Facteur 2","F2",null,"Sang ","Tube Citrate 9NC (bouchon bleu)","bleu","Traitement Anticoagulant obligatoire\nPréciser l'heure de prélèvement","Sang total","20°C ± 5°C","-","< 24 heures","Tube Citrate 9NC (bouchon bleu)",null,null,"Plasma décanté","20°C ± 5°C","-","< 24 heures","Tube Citrate 9NC (bouchon bleu)",0,"Plasma décanté","-20°C","-","Aucun","Hématologie biologique","Réalisé en série\nDélai max: 15 jours","24 heures","Chronométrie",1014,null,null,null,"B25"]
["LBM","Facteur 5","F5",null,"Sang ","Tube Citrate 9NC (bouchon bleu)","bleu","Traitement Anticoagulant obligatoire\nPréciser l'heure de prélèvement","Sang total","20°C ± 5°C","-","< 24 heures","Tube Citrate 9NC (bouchon bleu)",null,null,"Plasma décanté","20°C ± 5°C","-","< 24 heures","Tube Citrate 9NC (bouchon bleu)",0,"Plasma décanté","-20°C","-","Aucun","Hématologie biologique","7J/7  24H/24\nUrgence: 1h30 \nDélai max: 4h","24 heures","Chronométrie",1015,null,null,null,"B25"]
["LBM","Facteur 7","F7",null,"Sang ","Tube Citrate 9NC (bouchon bleu)","bleu","Traitement Anticoagulant obligatoire\nPréciser l'heure de prélèvement","Sang total","20°C ± 5°C","-","< 24 heures","Tube Citrate 9NC (bouchon bleu)",null,null,"Plasma décanté","20°C ± 5°C","-","< 24 heures","Tube Citrate 9NC (bouchon bleu)",0,"Plasma décanté","-20°C","-","Aucun","Hématologie biologique","Réalisé en série 1 à 3 fois/semaine\nUrgence vitale: 1h30 \nDélai max: 10 jours","24 heures","Chronométrie",1016,null,null,null,"B25"]
["LBM","Facteur 8","F8",null,"Sang ","Tube Citrate 9NC (bouchon bleu)","bleu","Traitement Anticoagulant obligatoire\nPréciser l'heure de prélèvement","Sang total","20°C ± 5°C","-","< 6 heures","Tube Citrate 9NC (bouchon bleu)",null,null,"Plasma décanté","20°C ± 5°C","-","< 6 heures","Tube Citrate 9NC (bouchon bleu)",0,"Plasma décanté","-20°C","-","Aucun","Hématologie biologique","Réalisé en série 1 à 3 fois/semaine\nUrgence vitale: 1h30 \nDélai max: 10 jours","6 heures","Chronométrie",178,null,null,null,"B50"]
["LBM","Facteur 9","F9",null,"Sang ","Tube Citrate 9NC (bouchon bleu)","bleu","Traitement Anticoagulant obligatoire\nPréciser l'heure de prélèvement","Sang total","20°C ± 5°C","-","< 6 heures","Tube Citrate 9NC (bouchon bleu)",null,null,"Plasma décanté","20°C ± 5°C","-","< 6 heures","Tube Citrate 9NC (bouchon bleu)",0,"Plasma décanté","-20°C","-","Aucun","Hématologie biologique","Réalisé en série 1 à 3 fois/semaine\nUrgence vitale: 1h30 \nDélai max: 10 jours","6 heures","Chronométrie",179,null,null,null,"B50"]
["LBM","Facteur rhumatoide IgM","FRM","FR IgM","Sang","Tube sec (bouchon rouge) ","rouge","-","-","5°C à 20°C","-","<24 heures","Tube sec (bouchon rouge) ","rouge",null,"Serum décanté congelé","-20°C","-",">24 heures",null,null,null,null,null,null,"Biochimie","2 fois par semaine/ délai max : 5 jours","7 Jours","ELIA Phadia","1451",null,null,null,"B35"]
["LBM","Facteur Willebrand Activité","WILACT",null,"Sang ","Tube Citrate 9NC (bouchon bleu)","bleu","Traitement Anticoagulant obligatoire\nPréciser l'heure de prélèvement","Sang total","20°C ± 5°C","-","< 6 heures",{"$f":"F195","v":"Tube Citrate 9NC (bouchon bleu)"},null,null,"Plasma décanté","20°C ± 5°C",{"$f":"K195","v":"-"},"< 6 heures",{"$f":"M195","v":"Tube Citrate 9NC (bouchon bleu)"},{"$f":"O195","v":0},{"$f":"P195","v":"Plasma décanté"},"-20°C",{"$f":"R195","v":"-"},"7 jours","Hématologie biologique","Réalisé en série\nDélai: 1 à 15 jours","6 heures ","Turbidimétrie",192,null,null,null,"B50"]
["LBM","Facteur Willebrand Antigène","WILAG",null,"Sang ","Tube Citrate 9NC (bouchon bleu)","bleu","Traitement Anticoagulant obligatoire\nPréciser l'heure de prélèvement","Sang total","20°C ± 5°C","-","< 6 heures",{"$f":"F196","v":"Tube Citrate 9NC (bouchon bleu)"},null,null,"Plasma décanté","20°C ± 5°C",{"$f":"K196","v":"-"},"< 6 heures",{"$f":"M196","v":"Tube Citrate 9NC (bouchon bleu)"},{"$f":"O196","v":0},{"$f":"P196","v":"Plasma décanté"},"-20°C",{"$f":"R196","v":"-"},"Aucun","Hématologie biologique","Réalisé en série\nDélai: 1 à 15 jours","6 heures ","Immuno-turbidimétrie",1013,null,null,null,"B40"]
["LBM","Fer","FER","Fer","Sang","Tube sec (bouchon rouge) ","rouge","Pas d'hémolyse","-","5°C à 25°C","-","<10 heures","Tube sec (bouchon rouge) ","rouge",null,"Serum décanté","-20°C","-",">24 heures",null,null,null,null,null,null,"Biochimie","tous les jours (24 heures/24)/1h30 urg ou 4h routine","7 jours","Alinity / Méthode : Férène","0548",null,null,null,"B7"]
["LBM","Ferritine","FRT","Ferritine","Sang","Tube sec (bouchon rouge)","rouge","Eviter l'hémolyse.","-","5°C à 25°C","-","<24 heures","Tube sec (bouchon rouge)","rouge",null,"Serum décanté","-20°C","-",">24 heures",null,null,null,null,null,null,"Biochimie","tous les jours (24 heures/24)/1h30 urg ou 4h routine","7 jours si décanté","Alinity / Méthode : CMIA","1213",null,null,null,"B33"]
["LBM","Fibrinogène","FIB",null,"Sang ","Tube Citrate 9NC (bouchon bleu)","bleu","Traitement Anticoagulant obligatoire\nPréciser l'heure de prélèvement","Sang total","20°C ± 5°C","-","< 24 heures",{"$f":"F199","v":"Tube Citrate 9NC (bouchon bleu)"},null,null,"Plasma décanté","20°C ± 5°C",{"$f":"K199","v":"-"},"< 24 heures",{"$f":"M199","v":"Tube Citrate 9NC (bouchon bleu)"},{"$f":"O199","v":0},{"$f":"P199","v":"Plasma décanté"},"-20°C",{"$f":"R199","v":"-"},"Aucun","Hématologie biologique","7J/7  24H/24\nUrgence: 1h30 \nDélai max: 4h","24 Heures","Chronométrie",174,null,null,null,"B18"]
["LBM","Filariose sérologie","FILAP","Filariose (Sérologie)","Sang","Tube sec (bouchon rouge) ","rouge","-","-","5°C à 25°C","-","< 4 heures",null,null,null,null,null,null,null,null,null,null,null,null,null,"Sous-traitant Laboratoire CERBA","Fréquence : transmis en France une fois par semaine\nDélai : de 15 jours à 1 mois","-","Electrosynérèse+ enzymoImmunoanalyse",4332,null,null,null,"B90"]
["LBM","Fluconazole","FLUCO",null,"Sang","Tube sec (bouchon rouge) ","rouge","1 mL minimum","Sérum","5°C ± 3°C","-","< 6 heures",null,null,null,null,null,null,null,null,null,null,null,null,null,"Toxicologie","Avant 12 heures  hors garde  WE  férié et pont\nDélai : 1 semaine","-","UPLC-DAD","M002",null,null,null,"4850 F"]
["LBM","Folates (Vitamine B9)","FOLATE","Vitamine B9","Sang","Tube sec (bouchon rouge) ","rouge","Prélever A JEUN. Pas d'hémolyse. Envoyer à l'abri de la lumière.","-","5°C à 25°C","-","<24 heures","Tube sec (bouchon rouge) ","rouge",null,"Serum décanté","-20°C","-",">24 heures",null,null,null,null,null,null,"Biochimie","tous les jours (24 heures/24)/1h30 urg ou 4h routine","7 jours à l'abri de la lumière","Alinity /Méthode : CMIA","1387",null,null,null,"B45"]
["LBM","Gale : recherche de sarcopte","PARAC",null,"Squames : grattage d'un sillon","Poudrier","poud","Appeler le service pour obtenir les modalités avant le prélèvement","-","20°C ± 5°C","-","< 4 heures","Squames entre lame / lamelle","lame",null,"-","20°C ± 5°C","-","< 4 heures",null,null,null,null,null,null,"Bactériologie"," Fréquence : du lundi au vendredi  \nde 7H à 18 heures\nDélai : 1 jour","-","Examen direct",null,null,null,"OU","B10"]
["LBM","Gamma Glutamyl Transférase   (GGT)","GGT","GGT","Sang","Tube hépariné (bouchon vert)","vert","-","-","5°C à 25°C","-","<24 heures","Tube hépariné (bouchon vert)","vert",null,"Plasma hépariné décanté","-20°C","-",">24 heures",null,null,null,null,null,null,"Biochimie","tous les jours (24 heures/24)/1h30 urg ou 4h routine","7 jours","Alinity / Méthode : Substrat L-Gamma-glutamyl-3-carboxy-4-nitronilide","0519",null,null,null,"B7"]
["LBM","Gazométrie","GAZO/GAZOV","GAZO","Sang","Seringue héparinée","gazo","Absence de bulle d'air,  transporter sur glace,  acheminer rapidement au laboratoire,","-","5°C à 20°C","-","<1 heure","Tube hépariné sans gel (bouchon vert)","vert",null,"-","5+/-3°C","-","<30 minutes","capillaire hépariné","Absence de bulle d'air  transporter sur glace  acheminer rapidement au laboratoire","-","5+/-3°C","-","<1 heure","Biochimie","tous les jours (24 heures/24)/20 min urgences ou 1h routine","-","ABL 800","0999",null,null,null,"B75"]
["LBM","Génétique onco-hématologique (caryotype  FISH  biologie moléculaire)","Suivant analyse(s) demandée(s)",null,"Sang total / Moelle osseuse","Suivant l'analyse demandée (GESO-QUA-DO-37)",null,"Prélèvement à faire parvenir au laboratoire le lundi. \nJoindre au prélèvement les formulaires dûment complétés :\n- Fiche de renseignements cliniques en onco-hématologie / conditions de prélèvements (GESO-LABO-DO-34).","-","20°C ± 5°C","-","< 4 heures",null,null,null,null,null,null,null,null,null,null,null,null,null,"Sous-traitant Laboratoire CERBA","Fréquence : transmis en France une fois par semaine\nDélai : de 15 jours à 1 mois","-","Cytogénétique onco-hématologique/Biologie moléculaire",null,"doc 4",null,null,"Suivant analyses (B800/B500/B1000/BHN)"]
["LBM","Gentamicine","GENTA/GENTP/GENTV","Gentamycine","Sang","Tube sec (bouchon rouge) ","rouge","Préciser la date et l'heure de la dernière prise du médicament, et sa posologie. Pour un taux résiduel, prélever juste avant l'administration. Pour un dosage au pic, prélever 30 minutes après une perfusion IV de 30 minutes. Ne pas utiliser de tubes avec gel séparateur.","-","5°C à 25°C","-","<24 heures","Tube sec (bouchon rouge) ","rouge",null,"Serum décanté","-20°C","-",">24 heures",null,null,null,null,null,null,"Biochimie","tous les jours (24 heures/24)/1h30 urg ou 4h routine",null,"Alinity / Méthode : PETINIA","1650",null,null,null,"B70"]
["LBM","Glucose","GLU","Glycémie","Sang","Tube hépariné (bouchon vert)","vert","Acheminer rapidement au laboratoire. Prélèvement à jeun.","Plasma","5°C à 25°C","-","<2 heures","Tube fluoré (bouchon gris)","gris",null,"Plasma hépariné décanté","5°C à 25°C","-","<24 heures","Tube fluoré (bouchon gris)","-","Plasma décanté congelé","Congélation -20°C","-",">24 heures","Biochimie","tous les jours (24 heures/24)/1h30 urg ou 4h routine","2 jours sur NaF","Alinity / Méthode : Hexokinase/G-6-PDH","0552",null,null,null,"B7"]
["LBM","Glucose sur LCR","GLUC","Glycorachie","LCR","Poudrier","poud","Acheminer au laboratoire directement après prélèvement","-","5°C à 25°C","-","<1 heure","Poudrier","poud",null,"LCR ","-20°C","-",">24 heures",null,null,null,null,null,null,"Biochimie","tous les jours (24 heures/24)/1h30 urg ou 4h routine","-","Alinity / Méthode : Hexokinase/G-6-PDH","0603",null,null,null,"B10"]
["LBM","Glucose sur liquide biologique","GLUL","Glucose sur liquide biologique","Liquide biologique","Poudrier","poud","-","-","5°C à 25°C","-","<1 heures","Poudrier","poud",null,"Liquide biologique","<8°C","-",">1 heure",null,null,null,null,null,null,"Biochimie","tous les jours (24 heures/24)/1h30 urg ou 4h routine","-","Alinity / Méthode : Hexokinase/G-6-PDH","-",null,null,null,"-"]
["LBM","Glucose urinaire","GLUU","Glycosurie","Urine","Tube à urine chimie","brun","-","-","5°C à 25°C","-","<1 heures","Pot à urine","ecbu",null,"Urine","5°C à 25°C","-","<1 heures","Pot à urine",null,"Urine","-20°C","-",">1 heure","Biochimie","tous les jours (24 heures/24)/Délai : 4h ","-","Alinity / Méthode : Hexokinase/G-6-PDH","2007",null,null,null,"B7"]
["LBM","Glucose urinaire 24h","GLU24","Glycosurie 24h","Urine des 24 heures","Tube à urine chimie","brun","Au lever  éliminer les premières urines. Ensuite  recueillir la totalité des urines pendant 24 heures. Noter la diurèse. Conserver les urines en ajoutant 5mL d'acide acétique glacial dans le récipient avant de commencer le prélèvement.","-","5°C à 25°C","-","<24 heures","Pot à urine","ecbu",null,"Urine des 24H ","5°C à 25°C","-","<24 heures","Pot à urine",null,"Urine des 24H ","<8°C","-",">24 heures","Biochimie","tous les jours (24 heures/24)/1h30 urg ou 4h routine","-","Alinity / Méthode : Hexokinase/G-6-PDH","2007",null,null,null,"B7"]
["LBM","Gorge  amygdales","BGOR",null,"Gorge / amygdales","2 Ecouvillons (1 sec + 1 gélosé)","ecouecouG","-","-","20°C ± 5°C","-","< 2 heures","écouvillons gélosés","ecouG",null,"-","20°C ± 5°C","-","< 24 heures",null,null,"-","5°C ± 3°C","-","< 12 heures","Bactériologie"," Fréquence : du lundi au dimanche  \nde 7H à 18 heures\nDélai : de 48 heures à 1 semaine","-","Examen direct + Culture Bactérienne",null,null,null,"OU","B100"]
["LBM","Grippe:Sous typage du virus de la grippe","TYPLC","Grippe (Sous typage Influenza Virus)","Respiratoire","2 écouvillons à décharger dans milieu de transport virus","ecouT","Réalisé en cas de dépistage de la grippe positif\nDifférenciation des virus B/ Yamagata  B/Victoria  A/H3N2  A/H1N1pdm","-","5°C à 25°C","-","< 48 heures",null,null,null,null,null,null,null,null,null,null,null,null,null,"Biologie Moléculaire","Fréquence : 1 fois /sem\nDélai : 7j","-","PCR temps réel",null,null,null,null,"13 000F"]
["LBM","Haptoglobine","HPT","Hapto","Sang","Tube sec (bouchon rouge) ","rouge","CHN + Wallis : décanter + congeler","-","5°C à 25°C","-","<24 heures","Tube sec (bouchon rouge) ","rouge",null,"Serum décanté","-20°C","-",">24 heures",null,null,null,null,null,null,"Biochimie","tous les jours (24 heures/24)/1h30 urg ou 4h routine","7 jours","Alinity  / Méthode Immuno-turbidimétrie","1813",null,null,null,"B20"]
["LBM","HCG","HCG","Beta-HCG","Sang","Tube sec (bouchon rouge) ","rouge","-","-","5°C à 25°C","-","<24 heures","Tube sec (bouchon rouge) ","rouge",null,"Serum décanté","-20°C","-",">24 heures",null,null,null,null,null,null,"Biochimie","tous les jours (24 heures/24)/1h30 urg ou 4h routine","24 Heures","Alinity /Méthode : CMIA","7402",null,null,null,"B30"]
["LBM","Helicobacter pylori ","HELIC",null,"Biopsie gastrique","Poudrier stérile (+ 1ml d'eau physiologique)","poud","Ajouter 1 ml d'eau physiologique pour la conservation de la biopsie.","-","5°C à 25°C","-","< 2 heures",null,null,null,null,null,null,null,null,null,null,null,null,null,"Bactériologie","Fréquence : du lundi au dimanche  \nde 7H à 18 heures \nDélai : 10 jours ","-","Examen direct + Culture Bactérienne",null,null,null,null,"B60"]
["LBM","Helicobacter pylori sérologie","HPYLS","Helicobacter (pylori Sérologie)","Sang","Tube sec (bouchon rouge) ","rouge","-","-","5°C à 25°C","-","< 4 heures",null,null,null,null,null,null,null,null,null,null,null,null,null,"Immuno-Sérologie","Fréquence : du lundi au vendredi  \nDélai : 5 jours","-","EnzymoImmunoanalyse",1311,null,null,null,"B60"]
["LBM","Hématocrite","HT",null,"Sang total "," Tube EDTA (bouchon violet)","violet","Peut être réalisé sur le même tube que la NFS.","Sang total","20°C ± 5°C","-","< 12 heures",null,null,null,null,null,null,null,null,null,null,null,null,null,"Hématologie biologique","7J/7  24H/24\nUrgence: 1h30 \nDélai max: 24h","-","Impédance - Photométrie- Fluorescence \nCytométrie en flux ",2108,null,null,null,"B7"]
["LBM","Hemochromatose Mutation C282Y du gène HFE","HFEH","HFE (hémochromatose)","Sang  ","1 Tubes EDTA (bouchon violet)","violet","Prélèvement à faire parvenir au laboratoire le lundi.\n Joindre au prélèvement les formulaires dûment complétés :\n- Fiche de consentement en vue d'un examen des caractéristiques génétiques (GESO-QUA-DO-92) \n- Fiche de renseignements en vue de l'examen des caractéristiques génétiques. Prédisposition génétique et pharmacogénétique (HLA  thrombophilie  hémochromatose …) [GESO-LABO-DO-35]","-","20°C ± 5°C","-","< 4 heures",null,null,null,null,null,null,null,null,null,null,null,null,null,"Sous-traitant Laboratoire CERBA","Fréquence : transmis en France une fois par semaine\nDélai : de 15 jours à 1 mois","-","PCR temps réel",null,"doc 1","doc 2",null,"B180"]
["LBM","Hemochromatose Mutation H63D du gène HFE","HFEH","HFE (hémochromatose)","Sang  ","1 Tubes EDTA (bouchon violet)","violet","Prélèvement à faire parvenir au laboratoire le lundi.\n Joindre au prélèvement les formulaires dûment complétés :\n- Fiche de consentement en vue d'un examen des caractéristiques génétiques (GESO-QUA-DO-92) \n- Fiche de renseignements en vue de l'examen des caractéristiques génétiques. Prédisposition génétique et pharmacogénétique (HLA  thrombophilie  hémochromatose …) [GESO-LABO-DO-35]","-","20°C ± 5°C","-","< 4 heures",null,null,null,null,null,null,null,null,null,null,null,null,null,"Sous-traitant Laboratoire CERBA","Fréquence : transmis en France une fois par semaine\nDélai : de 15 jours à 1 mois","-","PCR temps réel",null,"doc 1","doc 2",null,"7140F"]
["LBM","Hémoculture adulte ","HEMOA",null,"Sang","2 Flacons d'hémoculture : 1 aérobie (vert ou bleu) et 1 anaérobie (orange ou mauve)","hemoc","Remplir 10 ml par flacon  ne pas masquer le code à barre  dans l'idéal prélever 4 à 6 flacons en une seule fois (sauf si suspicion d'endocardite infectieuse).","-","20°C ± 5°C","-","< 4 heures ",null,null,null,null,null,null,null,null,null,null,null,null,null,"Bactériologie","Fréquence : 24 heures sur 24  7j sur 7 \nDélai : de 48 heures à 1 semaine (21 jours pour endocardite infectieuse)","-","Examen direct + Culture Bactérienne",null,null,null,null,"B80"]
["LBM","Hémoculture pédiatrique ","HEMP",null,"Sang","1 Flacon d'hémoculture aérobie (jaune)","aero","Remplir  de 1 à 4 ml par flacon  ne pas masquer le code à barre.","-","20°C ± 5°C","-","< 4 heures",null,null,null,null,null,null,null,null,null,null,null,null,null,"Bactériologie","Fréquence : 24 heures sur 24  7j sur 7 \nDélai : de 48 heures à à 1 semaine","-","Examen direct + Culture Bactérienne",null,null,null,null,"B80"]
["LBM","Hémoglobine glyquée HBA1C","A1C","HbA1c","Sang","Tube EDTA (bouchon violet)","violet","Tube EDTA dédié à cette analyse","Sang total","5°C à 20°C","-","<24 heures","Tube EDTA (bouchon violet)","violet",null,"Sang total","<8°C","-",">24 heures",null,null,null,null,null,null,"Biochimie","lundi au vendredi (7h-14h)/48-72h hors WE","-","Capillaris","1577",null,null,null,"B30"]
["LBM","Hémogramme (Numération-Formule-Sanguine NFS)","NFP",null,"Sang total "," Tube EDTA (bouchon violet)","violet","-","Sang total","20°C ± 5°C","-","< 12 heures",null,null,null,null,null,null,null,null,null,null,null,null,null,"Hématologie biologique","7J/7  24H/24\nUrgence: 1h30 \nDélai max: 24h","-","Impédance - Photométrie- Fluorescence \nCytométrie en flux - Microscopie","1104-1105-1106",null,null,null,"B29 + B100 (si diagnostic) ou B50 (si suivi)"]
["LBM","Hépatite A IgG (avant vaccination = contrôle de l'immunité)","HAVT","VHA (Hépatite A totaux  vaccination immunité HAV)","Sang","Tube sec (bouchon rouge) ","rouge","Les sérologies Hépatites A IgG et IgM ne sont pas cumulables.","-","5°C à 25°C","-","< 4 heures",null,null,null,null,null,null,null,null,null,null,null,null,null,"Immuno-Sérologie","Fréquence : du lundi au vendredi \nDélai : 24 h","-","Chimiluminescence",1736,null,null,null,"B60"]
["LBM","Hépatite A IgM (diagnostic infection aiguë)","HAVM","VHA (Hépatite A IgM  aiguë HAV)","Sang","Tube sec (bouchon rouge) ","rouge","Les sérologies Hépatites A IgG et IgM ne sont pas cumulables.","-","5°C à 25°C","-","< 4 heures",null,null,null,null,null,null,null,null,null,null,null,null,null,"Immuno-Sérologie","Fréquence : du lundi au vendredi \nDélai : 24 h","-","Chimiluminescence",350,null,null,null,"B60"]
["LBM","Hépatite B (IgM Anti HBc) (diagnostic d'hépatite B aiguë)","HBCMT","VHB (Hépatite B IgM aiguë réactivation HBV)","Sang","Tube sec (bouchon rouge) ","rouge","-","-","5°C à 25°C","-","< 4 heures",null,null,null,null,null,null,null,null,null,null,null,null,null,"Immuno-Sérologie","Fréquence : du lundi au vendredi \nDélai : 24 h","-","Chimiluminescence",352,null,null,null,"B60"]
["LBM","Hépatite B : avant vaccination                          (Ac Anti-HBs + Ac Anti HBc) ","HBAVAC","VHB (Hépatite B avant vaccination HBV)","Sang","Tube sec (bouchon rouge) ","rouge","-","-","5°C à 25°C","-","< 4 heures",null,null,null,null,null,null,null,null,null,null,null,null,null,"Immuno-Sérologie","Fréquence : du lundi au vendredi \nDélai : 24 h","-","Chimiluminescence","323 + 0351",null,null,null,"B55 +B55"]
["LBM","Hépatite B : contrôle de guérison                  (Ag HBs + Ac Anti HBs)","HBGU","VHB (Hépatite B guérison HBV)","Sang","Tube sec (bouchon rouge) ","rouge","-","-","5°C à 25°C","-","< 4 heures",null,null,null,null,null,null,null,null,null,null,null,null,null,"Immuno-Sérologie","Fréquence : du lundi au vendredi \nDélai : 24 h","-","Chimiluminescence","322 + 0323",null,null,null,"B52 + B55"]
["LBM","Hépatite B : contrôle de l'immunité après vaccination (Ac Anti-HBs)","HBVAC","VHB (Hépatite B après vaccination HBV)","Sang","Tube sec (bouchon rouge) ","rouge","-","-","5°C à 25°C","-","< 4 heures",null,null,null,null,null,null,null,null,null,null,null,null,null,"Immuno-Sérologie","Fréquence : du lundi au vendredi \nDélai : 24 h","-","Chimiluminescence",323,null,null,null,"B55"]
["LBM","Hépatite B : Infection récente (Ag HBs + Ac Anti HBc IgM)","HBR","VHB (Hépatite B IgM aiguë réactivation HBV)","Sang","Tube sec (bouchon rouge) ","rouge","-","-","5°C à 25°C","-","< 4 heures",null,null,null,null,null,null,null,null,null,null,null,null,null,"Immuno-Sérologie","Fréquence : du lundi au vendredi \nDélai : 24 h","-","Chimiluminescence","322 + 0352",null,null,null,"B52 + B60"]
["LBM","Hépatite B : marqueurs sérologiques           (Ag HBs + Ac Anti-HBs + Ac Anti HBc)","HBB","VHB (Hépatite B marqueurs HBV)","Sang","Tube sec (bouchon rouge) ","rouge","-","-","5°C à 25°C","-","< 4 heures",null,null,null,null,null,null,null,null,null,null,null,null,null,"Immuno-Sérologie","Fréquence : du lundi au vendredi \nDélai : 24 h","-","Chimiluminescence","322 + 0323 + 0351",null,null,null,"B52 + B55 +B55"]
["LBM","Hépatite B : suivi d'une hépatite chronique (Ac Anti Hbe  AgHBe)","HBSC","VHB (Hépatite B Suivi HBE  HBV)","Sang","Tube sec (bouchon rouge) ","rouge","A compléter par une quantification de l'ADN du virus de l'hépatite B.","-","5°C à 25°C","-","< 4 heures",null,null,null,null,null,null,null,null,null,null,null,null,null,"Immuno-Sérologie","Fréquence : du lundi au vendredi \nDélai : 24 h","-","Chimiluminescence","353 + 0354",null,null,null,"B70 +B70"]
["LBM","Hépatite B : surveillance grossesse (AgHBs)","HBS","VHB (Hépatite B dépistage antigène HBV)","Sang","Tube sec (bouchon rouge) ","rouge","Réalisé 7j/7 et 24 heures/24 en cas de demande urgente (maternité  réanimation)\ndemande à faire par téléphone au laboratoire de garde","-","5°C à 25°C","-","< 4 heures",null,null,null,null,null,null,null,null,null,null,null,null,null,"Immuno-Sérologie","Fréquence : du lundi au vendredi \nDélai : 24 h\nDemandes Urgentes : 24 heures/24 7J/7 en 1h30","-","Chimiluminescence",322,null,null,null,"B52"]
["LBM","Hépatite C (Génotypage) ","GHVCP","VHC (Génotypage Virus Hépatite C HCV ) ","Sang","2 Tubes EDTA (bouchon violet)","violet","Uniquement suivi des patient positifs en sérologie.\nEn cas d'impossibilité d'envoi des échantillons dans les 4 heures post-prélèvement  le plasma doit être décanté puis transporté congelé (- 20°C ± 5°C) jusqu'à réception au laboratoire.","-","5°C à 25°C","-","< 4 heures",null,null,null,null,null,null,null,null,null,null,null,null,null,"Sous-traitant Laboratoire CERBA","Fréquence : transmis en France une fois par semaine\nDélai : de 15 jours à 1 mois","-","PCR + hybridation",4125,null,null,null,"B350"]
["LBM","Hépatite C sérologie (dépistage) ","HCV","VHC (Hépatite C Sérologie dépistage HCV) ","Sang","Tube sec (bouchon rouge) ","rouge","-","-","5°C à 25°C","-","< 4 heures",null,null,null,null,null,null,null,null,null,null,null,null,null,"Immuno-Sérologie","Fréquence : du lundi au vendredi \nDélai : 24 h","-","Chimiluminescence",3784,null,null,null,"B55"]
["LBM","Hépatite D (Delta) sérologie IgM","IGMDP","Delta (Sérologie Hépatite aiguë anticorps IgM)","Sang","Tube sec (bouchon rouge) ","rouge","-","-","5°C à 25°C","-","< 4 heures",null,null,null,null,null,null,null,null,null,null,null,null,null,"Sous-traitant Laboratoire CERBA","Fréquence : transmis en France une fois par semaine\nDélai : de 15 jours à 1 mois","-","EnzymoImmunoanalyse",null,null,null,null,"B70"]
["LBM","Hépatite Delta Anticorps totaux","ACDTP","Delta (Sérologie anticorps hépatite D)","Sang","Tube sec (bouchon rouge) ","rouge","-","-","5°C à 25°C","-","< 4 heures",null,null,null,null,null,null,null,null,null,null,null,null,null,"Sous-traitant Laboratoire CERBA","Fréquence : transmis en France une fois par semaine\nDélai : de 15 jours à 1 mois","-","EnzymoImmunoanalyse",1740,null,null,null,"B70"]
["LBM","Hépatite Delta Antigène","DELTP","Delta (Sérologie Hépatite anticorps totaux)","Sang","Tube sec (bouchon rouge) ","rouge","-","-","5°C à 25°C","-","< 4 heures",null,null,null,null,null,null,null,null,null,null,null,null,null,"Sous-traitant Laboratoire CERBA","Fréquence : transmis en France une fois par semaine\nDélai : de 15 jours à 1 mois","-","EnzymoImmunoanalyse",1742,null,null,null,"B70"]
["LBM","Hépatite E ARN viral","PCVHE","VHE (charge virale ARN)","Sang","Tube EDTA (bouchon violet)","violet","-","-","5°C à 25°C","-","< 4 heures","Tube sec (bouchon rouge) ","rouge",null,null,"5°C à 25°C",null,"< 4 heures",null,null,null,null,null,null,"Biologie Moléculaire","Fréquence :  une fois par semaine\nDélai : 15 jours ","-","PCR temps réel",null,null,null,"OU","7 800F"]
["LBM","Hépatite E sérologie (IgM + IgG)","HEV","VHE (Sérologie IgM HEV aiguë)","Sang","Tube sec (bouchon rouge) ","rouge","-","-","5°C à 25°C","-","< 4 heures",null,null,null,null,null,null,null,null,null,null,null,null,null,"Immuno-Sérologie","Fréquence : du lundi au vendredi \nDélai : 24 h","-","Chimiluminescence",1743,null,null,null,"B70 "]
["LBM","Histoplasme","HISTOP",null,"Aspiration / LBA / PDP","Poudrier stérile","poud","-","-","20°C ± 5°C","-","< 2 heures",null,null,null,"-","5°C ± 3°C","-","< 12 heures",null,null,null,null,null,null,"Bactériologie","Fréquence : 24 heures sur 24  7j sur 7\nDélai : de 1 jour (ED) à 1 mois (culture)","-","Examen direct + Culture ",null,null,null,null,"B100"]
["LBM","HLA B 5701 (test de susceptibilité à l'ABACAVIR)","B5701P","HLAB5701 (ABC Abacavir)","Sang","Tube EDTA (bouchon violet)","violet","Prélèvement à faire parvenir au laboratoire le lundi.\n Joindre au prélèvement les formulaires dûment complétés :\n- Fiche de consentement en vue d'un examen des caractéristiques génétiques (GESO-QUA-DO-92) \n- Fiche de renseignements en vue de l'examen des caractéristiques génétiques. Prédisposition génétique et pharmacogénétique (HLA  thrombophilie  hémochromatose …) [GESO-LABO-DO-35]","-","5°C à 25°C","-","< 4 heures",null,null,null,null,null,null,null,null,null,null,null,null,null,"Sous-traitant Laboratoire CERBA","Fréquence : transmis en France une fois par semaine\nDélai : de 15 jours à 1 mois","-","PCR temps réel",1691,"doc 1","doc 2",null,"B200"]
["LBM","Homocystéine","HOMOC","Homocystéine","Sang","Tube sec (bouchon rouge) ","rouge","Traitement Anticoagulant obligatoire","-","5°C à 25°C","-","<1 heure","Tube sec (bouchon rouge) ","rouge",null,"Serum décanté congelé","-20°C","-",">1 heures",null,null,null,null,null,null,"Biochimie","1 fois par semaine","-","Alinity /Méthode : CMIA","-",null,null,null,"6563F"]
["LBM","Hormone folliculo-stimulante (FSH)","FSH","FSH","Sang","Tube sec (bouchon rouge) ","rouge","Dans le cadre de FIV  dosage réalisé hors horaires habituels","-","5°C à 25°C","-","<24 heures","Tube sec (bouchon rouge) ","rouge",null,"Serum décanté congelé","-20°C","-",">24 heures",null,null,null,null,null,null,"Biochimie","2 fois par semaine/ délai max : 5 jours","24 Heures","Alinity /Méthode : CMIA","0473",null,null,null,"B51"]
["LBM","Hormone lutéinisante (LH)","LH","LH","Sang","Tube sec (bouchon rouge) ","rouge","-","-","5°C à 25°C","-","<24 heures","Tube sec (bouchon rouge) ","rouge",null,"Serum décanté congelé","-20°C","-",">24 heures",null,null,null,null,null,null,"Biochimie","2 fois par semaine/ délai max : 5 jours","24 Heures","Alinity /Méthode : CMIA","0472",null,null,null,"B51"]
["LBM","HPV Recherche d'HPV oncogènes (Papillomavirus)","PCHPV","HPV (PCR oncogènes Papillomavirus)","génital","Kit PreservCyt + brosse cervex",null,"Kit à récupérer auprès du laboratoire de microbiologie du CHT","-","5°C à 25°C","-","< 4 heures",null,null,null,null,null,null,null,null,null,null,null,null,null,"Biologie Moléculaire","A la demande du lundi au vendredi \nDélai : 2h","-","PCR temps réel",4127,null,null,null,"B 140"]
["LBM","HSV (Herpes Simplex Virus) contrôle d'immunité  (IgG)","HSV","HSV (Sérologie Herpès Simplex Virus HSV1 HSV2)","Sang","Tube sec (bouchon rouge) ","rouge","La sérologie peut être réalisée en urgence à la demande du prescripteur auprès du biologiste.","-","5°C à 25°C","-","< 4 heures",null,null,null,null,null,null,null,null,null,null,null,null,null,"Immuno-Sérologie","Fréquence : 1 fois par semaine le lundi\nDélai : 7 jours","-","EnzymoImmunoanalyse",1744,null,null,null,"B50"]
["LBM","Hydroxychloroquine","OHCHLO",null,"Plasma","Tube EDTA (bouchon violet)","violet","2 mL minimum","Plasma","5°C ± 3°C","-","< 6 heures",null,null,null,null,null,null,null,null,null,null,null,null,null,"Toxicologie","Avant 12 heures  hors garde  WE  férié et pont\nDélai : 1 semaine","-","UPLC-DAD","M003",null,null,null,"4850 F"]
["LBM","IGA","IGA/IGAP","IgA","Sang","Tube sec (bouchon rouge) ","rouge","-","-","5°C à 25°C","-","<24 heures","Tube sec (bouchon rouge) ","rouge",null,"Serum décanté","-20°C","-",">24 heures",null,null,null,null,null,null,"Biochimie","tous les jours (24 heures/24)/Délai : 4h ","7 jours","Alinity  / Méthode Immuno-turbidimétrie  ","1814",null,null,null,"B25"]
["LBM","IgE spécifiques","IGESP","IgE spécifiques","Sang","Tube sec (bouchon rouge) ","rouge","-","-","5°C à 20°C","-","<24 heures","Tube sec (bouchon rouge) ","rouge",null,"Serum décanté congelé","-20°C","-",">24 heures",null,null,null,null,null,null,"Biochimie","1 fois par semaine","7 Jours","ELIA Phadia","0966 / 1205 / 1204 ",null,null,null,"B51"]
["LBM","IgE Totales","IGE","IgE Totales","Sang","Tube sec (bouchon rouge) ","rouge","-","-","5°C à 20°C","-","<24 heures","Tube sec (bouchon rouge) ","rouge",null,"Serum décanté congelé","-20°C","-",">24 heures",null,null,null,null,null,null,"Biochimie","1 fois par semaine","7 Jours","ELIA Phadia","1200",null,null,null,"B40"]
["LBM","IGG","IGG/IGGP","IGG","Sang","Tube sec (bouchon rouge) ","rouge","-","-","5°C à 25°C","-","<24 heures","Tube sec (bouchon rouge) ","rouge",null,"Serum décanté","-20°C","-",">24 heures",null,null,null,null,null,null,"Biochimie","tous les jours (24 heures/24)/Délai : 4h ","7 jours","Alinity  / Méthode Immuno-turbidimétrie  ","1815",null,null,null,"B25"]
["LBM","IGG sur LCR","IGGC","IGG sur LCR","LCR","Poudrier","poud","Acheminer au laboratoire directement après prélèvement","-","5°C à 20°C","-","-","Poudrier","poud",null,"LCR congelé","-20°C","-",">24 heures",null,null,null,null,null,null,"Biochimie","lundi au vendredi (7-17h)/24 heures","3 jours","Alinity","1614",null,null,null,"B25"]
["LBM","IGM","IGM/IGMP","IGM","Sang","Tube sec (bouchon rouge) ","rouge","-","-","5°C à 25°C","-","<24 heures","Tube sec (bouchon rouge) ","rouge",null,"Serum décanté","-20°C","-",">24 heures",null,null,null,null,null,null,"Biochimie","tous les jours (24 heures/24)/Délai : 4h ","7 jours","Alinity  / Méthode Immuno-turbidimétrie  ","1816",null,null,null,"B25"]
["LBM","Immuno- Electrophorèse des protéines","IFIX","Immunotypage immunofixation des protéines","Sang","Tube sec (bouchon rouge) ","rouge","Eviter l'hémolyse.","-","5°C à 20°C","-","<24 heures","Tube sec (bouchon rouge) ","rouge",null,"Serum décanté ","<8°C","-",">24 heures",null,null,null,null,null,null,"Biochimie","lundi au vendredi (7-14h)/délai : 24-48h selon résultat","3 jours","Capillaris","1571",null,null,null,"B160"]
["LBM","Immunophénotypage leucémie aiguë "," ",null,"Sang total / Moelle osseuse"," Tube EDTA (bouchon violet)","violet","Renseignements cliniques et indication de l'Immunophénotypage indispensables.","Sang total / moelle osseuse","20°C ± 5°C","-","< 72 heures",null,null,null,null,null,null,null,null,null,null,null,null,null,"Hématologie biologique","Fréquence : minimum 3x par semaine\nDélai : de 12 heures à 15 jours","-","Cytométrie en flux\n(>8 Anticorps monoclonaux)",1103,null,null,null,"B300"]
["LBM","Immunophénotypage lymphocytaire (T/B/NK)\n (+/- recherche de monoclonalité B)","TBNK",null,"Sang total / Moelle osseuse"," Tube EDTA (bouchon violet)","violet","Renseignements cliniques et indication de l'Immunophénotypage indispensables.","Sang total / moelle osseuse","20°C ± 5°C","-","< 72 heures",null,null,null,null,null,null,null,null,null,null,null,null,null,"Hématologie biologique","Fréquence : minimum 3x par semaine\nDélai : de 12 heures à 15 jours","-","Cytométrie en flux\n(>8 Anticorps monoclonaux)",1103,null,null,null,"B300"]
["LBM","Insémination artificielle avec conjoint","x","IAC","Sperme","Cathéthers échogène ELLIOS ","kitelios","Rendez vous donné par le laboratoire","Spermatozoides",null,"Pas de transport","immédiat",null,null,null,null,null,null,null,null,null,null,null,null,null,"BDR","Fréquence: 5j/7j Délai: immédiat",null,"Examen direct",null,"doc 19","doc 21",null,"BAMP 150"]
["LBM","Iohexol","IOHEXB",null,"Sang","Tube sec (bouchon rouge) ","rouge","1 mL de sang minimum - Age + Taille + Poids à renseigner obligatoirement - Respecter le protocole de prélèvements établi et noter les heures et/ou temps de prélèvements exacts sur le bon de prescription et sur les tubes","Sérum décanté","5°C ± 3°C","-","< 6 heures",null,null,null,null,null,null,null,null,null,null,null,null,null,"Toxicologie","Avant 12 heures  hors garde  WE  férié et pont\nDélai : 1 semaine","-","UPLC-DAD",null,null,null,null,"HN 13000 F"]
["LBM","Ionogramme",11,"Iono","Sang","Tube hépariné (bouchon vert)","vert","Acheminer rapidement au laboratoire","-","5°C à 20°C",null,"<4h",null,null,null,null,null,null,null,null,null,null,null,null,null,"Biochimie","tous les jours (24 heures/24)/1h30 urg ou 4h routine","4 heures","Alinity  / Electrodes sélectives",1609,null,null,null,"B13"]
["LBM","Ionogramme urinaire","U2","Iono urinaire","Urine","Tube à urine chimie","brun","Acheminer rapidement au laboratoire","-","5°C à 20°C",null,"<4h","Pot à urine","ecbu",null,"Urine","5°C à 20°C",null,"<4h","Pot à urine",null,"Urine","<8°C",null,null,"Biochimie","tous les jours (24 heures/24)/1h30 urg ou 4h routine","4 heures","Alinity  / Electrodes sélectives",1621,null,null,null,"B12"]
["LBM","Lactate déshydrogénase (LDH )","LDH","LDH","Sang","Tube hépariné (bouchon vert)","vert","Pas d'hémolyse. Bien remplir le tube.","-","5°C à 25°C","-","<24 heures","Tube hépariné (bouchon vert)","vert",null,"Plasma hépariné décanté","-20°C","-",">24 heures",null,null,"Urine","<8°C","-",">24 heures","Biochimie","tous les jours (24 heures/24)/1h30 urg ou 4h routine","3 jours","Alinity / Méthode : transformation de lactate en pyruvate","0521",null,null,null,"B7"]
["LBM","Lactate déshydrogénase (LDH ) sur liquide biologique","LDHL","LDH sur liquide biologique","Liquide biologique","Poudrier","poud","-","-","5°C à 25°C","-","<24 heures","Poudrier","poud",null,"Liquide biologique","<8°C","-",">24 heures",null,null,null,null,null,null,"Biochimie","tous les jours (24 heures/24)/1h30 urg ou 4h routine","3 jours","Alinity / Méthode : transformation de lactate en pyruvate","1521",null,null,null,"B7"]
["LBM","Legionelle (urine) : Antigène soluble","BLEG",null,"Urine","Pot à urine stérile","ecbu","Analyse non réalisée pour le service des urgences (sauf justification et appel du médecin)","-","20°C ± 5°C","-","< 2 heures",null,null,null,"-","5°C ± 3°C","-","< 12 heures",null,null,null,null,null,null,"Bactériologie","Fréquence : 24 heures sur 24  7j sur 7\nDélai : 2 heures","-","Immunochromatographie",null,null,null,null,"B100"]
["LBM","Légionellose sérologie","LEGIP","Légionellose (Sérologie)","Sang","Tube sec (bouchon rouge) ","rouge","-","-","5°C à 25°C","-","< 4 heures",null,null,null,null,null,null,null,null,null,null,null,null,null,"Sous-traitant Laboratoire CERBA","Fréquence : transmis en France une fois par semaine\nDélai : de 15 jours à 1 mois","-","Immunoflorescence indirecte",1337,null,null,null,"B120"]
["LBM","Leishmaniose sérologie","LEISP","Leishmaniose (Sérologie)","Sang","Tube sec (bouchon rouge) ","rouge","-","-","5°C à 25°C","-","< 4 heures",null,null,null,null,null,null,null,null,null,null,null,null,null,"Sous-traitant Laboratoire CERBA","Fréquence : transmis en France une fois par semaine\nDélai : de 15 jours à 1 mois","-","Immunofluorescence + EnzymoImmunoanalyse",4344,null,null,null,"B90"]
["LBM","Lèpre : recherche de bacille de Hansen  (dépistage)","BHLES",null,"Lésion","Appositions sur lame","lame","Lame fixée au moment du prélèvement.","-","20°C ± 5°C","-","Pas de délai",null,null,null,null,null,null,null,null,null,null,null,null,null,"Bactériologie","Fréquence : du lundi au vendredi  \nde 7H à 18 heures\nDélai : 2 jours","-","Coloration de Ziehl",null,null,null,null,"B30"]
["LBM","Lèpre : recherche de bacille de Hansen (dépistage et suivi)","BH",null," Oreilles et mucus nasal","Appositions sur lame","lame","Lame fixée au moment du prélèvement.","-","20°C ± 5°C","-","Pas de délai",null,null,null,null,null,null,null,null,null,null,null,null,null,"Bactériologie","Fréquence : du lundi au vendredi  \nde 7H à 18 heures\nDélai : 2 jours","-","Coloration de Ziehl",null,null,null,null,"B90"]
["LBM","Leptospirose Sérologie IgM","SLEP","Leptospirose (Sérologie IgM)","Sang","Tube sec (bouchon rouge) ","rouge","Diagnostic tardif (apparition des IgM après J+5). Renseignements obligatoires : date de début des signes cliniques. ","-","5°C à 25°C","-","< 4 heures",null,null,null,null,null,null,null,null,null,null,null,null,null,"Immuno-Sérologie","Fréquence: minimum 1 fois par semaine ","-","EnzymoImmunoanalyse",4718,null,null,null,"B40"]
["LBM","Lipase","LIPA","Lipasémie","Sang","Tube hépariné (bouchon vert)","vert","-","-","5°C à 25°C","-","<24 heures","Tube hépariné (bouchon vert)","vert",null,"Plasma hépariné décanté","-20°C","-",">24 heures",null,null,null,null,null,null,"Biochimie","tous les jours (24 heures/24)/1h30 urg ou 4h routine","7 jours","Alinity / Méthode: colorimétrique","0524",null,null,null,"B9"]
["LBM","Liquide articulaire ","LART",null,"Liquide articulaire","Poudrier stérile + tube EDTA (bouchon violet) pour la cytologie","poud","tube EDTA (bouchon violet) pour la cytologie","-","20°C ± 5°C","-","< 2 heures","Tube EDTA (bouchon violet)","violet",null,"-","20°C ± 5°C","-","< 2 heures (conservation jusqu'à 12h à 5°C ± 3°C )","poudrier stérile",null,"-","5°C ± 3°C","-","< 12 heures","Bactériologie","Fréquence : 24 heures sur 24  7j/7 \nDélai : de 48 heures à 2 semaines","-","Examen direct + Culture Bactérienne",null,null,null,"ET","B200"]
["LBM","Liquide biliaire","LKBI",null,"Liquide biliaire","Poudrier stérile","poud","-","-","20°C ± 5°C","-","< 2 heures",null,null,null,"-","5°C ± 3°C","-","< 12 heures",null,null,null,null,null,null,"Bactériologie","Fréquence : 24 heures sur 24  7j/7 \nDélai : de 48 heures à 2 semaines","-","Examen direct + Culture Bactérienne",null,null,null,null,"B200"]
["LBM","Liquide biologique (préciser origine)","LUAUT",null,"Liquide biologique","Poudrier stérile","poud","-","-","20°C ± 5°C","-","< 2 heures",null,null,null,"-","5°C ± 3°C","-","< 12 heures",null,null,null,null,null,null,"Bactériologie","Fréquence : 24 heures sur 24  7j/7 \nDélai : de 48 heures à 2 semaines","-","Examen direct + Culture Bactérienne",null,null,null,null,"B200"]
["LBM","Liquide bronchoalvéolaire (LBA)","LBA",null,"LBA","Poudrier stérile","poud","-","-","20°C ± 5°C","-","< 2 heures",null,null,null,"-","5°C ± 3°C","-","< 12 heures",null,null,null,null,null,null,"Bactériologie","Fréquence : 24 heures sur 24  7j/7 \nDélai : de 48 heures à 1 semaine","-","Examen direct + Culture Bactérienne",null,null,null,null,"B200"]
["LBM","Liquide céphalo-rachidien (LCR)","LCR",null,"LCR","Poudrier stérile","poud","-","-","20°C ± 5°C","-","< 1 heure (urgence vitale)",null,null,null,null,null,null,null,null,null,null,null,null,null,"Bactériologie","Fréquence : 24 heures sur 24  7j/7 \nDélai : 1 heure (numération) à 1 semaine (culture)","-","Examen direct + Culture Bactérienne",null,null,null,null,"B200"]
["LBM","Liquide d'ascite ","LASC",null,"Liquide d'ascite","Poudrier stérile + tube EDTA (bouchon violet) pour la cytologie","poud","-","-","20°C ± 5°C","-","< 2 heures","Tube EDTA (bouchon violet)","violet",null,"-","20°C ± 5°C","-","< 2 heures (conservation jusqu'à 12h à 5°C ± 3°C )","poudrier stérile",null,"-","5°C ± 3°C","-","< 12 heures","Bactériologie","Fréquence : 24 heures sur 24  7j/7 \nDélai : de 48 heures à 2 semaines","-","Examen direct + Culture Bactérienne",null,null,null,"ET","B200"]
["LBM","Liquide de dialyse péritonéale","DPCA",null,"Liquide de DPCA","Poudrier stérile","poud","-","-","20°C ± 5°C","-","< 2 heures",null,null,null,"-","5°C ± 3°C","-","< 12 heures",null,null,null,null,null,null,"Bactériologie","Fréquence : 24 heures sur 24  7j/7 \nDélai : de 48 heures à 2 semaines","-","Examen direct + Culture Bactérienne",null,null,null,null,"B110"]
["LBM","Liquide gastrique","LGAS",null,"Liquide gastrique","Poudrier stérile","poud","-","-","20°C ± 5°C","-","< 2 heures",null,null,null,"-","5°C ± 3°C","-","< 12 heures",null,null,null,null,null,null,"Bactériologie","Fréquence : 24H sur 24  7j sur 7\nDélai : de 48 heures à 1 semaine","-","Examen direct + Culture Bactérienne",null,null,null,null,"B150"]
["LBM","Liquide péricardique ","LCAR",null,"Liquide péricardique","Poudrier stérile + tube EDTA (bouchon violet) pour la cytologie","poud","-","-","20°C ± 5°C","-","< 2 heures","Tube EDTA (bouchon violet)","violet",null,"-","20°C ± 5°C","-","< 2 heures (conservation jusqu'à 12h à 5°C ± 3°C )","poudrier stérile",null,"-","5°C ± 3°C","-","< 12 heures","Bactériologie","Fréquence : 24 heures sur 24  7j/7 \nDélai : de 48 heures à 2 semaines","-","Examen direct + Culture Bactérienne",null,null,null,"ET","B200"]
["LBM","Liquide pleural","LPLEU",null,"Liquide pleural","Poudrier stérile + tube EDTA (bouchon violet) pour la cytologie","poud","-","-","20°C ± 5°C","-","< 2 heures","Tube EDTA (bouchon violet)","violet",null,"-","20°C ± 5°C","-","< 2 heures (conservation jusqu'à 12h à 5°C ± 3°C )","poudrier stérile",null,"-","5°C ± 3°C","-","< 12 heures","Bactériologie","Fréquence : 24 heures sur 24  7j/7 \nDélai : de 48 heures à 2 semaines","-","Examen direct + Culture Bactérienne",null,null,null,"ET","B200"]
["LBM","Lithium","LI","Lithiémie","Sang","Tube sec (bouchon rouge) ","rouge","Ne pas utiliser de tube avec gel séparateur.","-","5°C à 25°C","-","<24 heures","Tube sec (bouchon rouge) ","rouge",null,"Serum décanté réfrigéré","2-8°C","-","<7jours","Tube sec (bouchon rouge) ",null,"Serum décanté congelé","-20°C","-",">7 jours","Biochimie","1 fois par semaine (ou urgence motivée)","7 jours","Alinity / Méthode: colorimétrique","0557",null,null,null,"B20"]
["LBM","Lochies ","LOCHIE",null,"Lochies","Poudrier stérile","poud","-","-","20°C ± 5°C","-","< 2 heures (conservation jusqu'à 12h à 5°C ± 3°C et jusqu'à 24 heures avec des écouvillons gélosés)","2 Ecouvillons","ecou",null,"-","20°C ± 5°C","-","< 2 heures (conservation jusqu'à 12h à 5°C ± 3°C et jusqu'à 24 heures avec des écouvillons gélosés)",null,null,null,null,null,null,"Bactériologie","Fréquence : du lundi au dimanche  \nde 7H à 18 heures\nDélai : de 48 heures à 21 jours","-","Examen direct + Culture Bactérienne",null,null,null,"OU","B100"]
["LBM","Lyme (Borreliose) sérologie IgM + IgG","BORRP","lyme (Sérologie Borréliose)","Sang","Tube sec (bouchon rouge) ","rouge","-","-","5°C à 25°C","-","< 4 heures",null,null,null,null,null,null,null,null,null,null,null,null,null,"Sous-traitant Laboratoire CERBA","Fréquence : transmis en France une fois par semaine\nDélai : de 15 jours à 1 mois","-","EnzymoImmunoanalyse",1301,null,null,null,"B60 + B60"]
["LBM","Magnésium","MG","Mg","Sang","Tube hépariné (bouchon vert)","vert","Pas d'hémolyse.","-","5°C à 25°C","-","<24 heures","Tube hépariné (bouchon vert)","vert",null,"Plasma hépariné décanté","-20°C","-",">24 heures",null,null,null,null,null,null,"Biochimie","tous les jours (24 heures/24)/1h30 urg ou 4h routine","7 jours","Alinity / Méthode : Enzymatique","0584",null,null,null,"B7"]
["LBM","Magnésium urinaire","MGU","Mg urines","Urine","Tube à urine chimie","brun","Extérieur au CHT : en cas d'envoi différé, acidifier les urines à pH <2 (cf urines de 24 heures).","-","5°C à 25°C","-","<24 heures","Pot à urine","ecbu",null,"Urine","5°C à 25°C","-","<24 heures","Pot à urine",null,"Urine","<8°C","-",">24 heures","Biochimie","tous les jours (24 heures/24)/1h30 urg ou 4h routine","3 jours","Alinity / Méthode : Enzymatique",2012,null,null,null,"B15"]
["LBM","Magnésium urinaire 24 h","MG24","Mg urines 24h","Urine des 24 heures","Tube à urine chimie","brun","Préciser la diurèse. Recueillir les échantillons dans un récipient contenant de l'acide borique ou 20 à 30 mL d'HCl 6N afin d'éviter une précipitation des complexes de magnésium. Ne pas utiliser plus \nde 2.5 mL d'HCl 6N par 100 mL d'urine. Ne pas dépasser 10 g/L d'acide borique.","-","5°C à 25°C","-","<24 heures","Pot à urine","ecbu",null,"Urine des 24H ","5°C à 25°C","-","<24 heures","Pot à urine",null,"Urine des 24H ","<8°C","-",">24 heures","Biochimie","tous les jours (24 heures/24)/1h30 urg ou 4h routine","3 jours","Alinity / Méthode : Enzymatique",2012,null,null,null,"B15"]
["LBM","Meropenem","MERO",null,"Sang","Tube sec (bouchon rouge) ","rouge","1 mL minimum","Sérum","5°C ± 3°C","-","< 6 heures",null,null,null,null,null,null,null,null,null,null,null,null,null,"Toxicologie","Avant 12 heures  hors garde  WE  férié et pont\nDélai : 1 semaine","-","UPLC-DAD","M001",null,null,null,"4850 F"]
["LBM","Méthanol","MOHS",null,"Sang","Tube NaF (bouchon gris)","gris","1 mL minimum","Plasma","5°C à 20°C","-","< 6 heures","Tube sec (bouchon rouge)","rouge",null,"Sérum","5°C à 20°C","-","< 6 heures",null,null,null,null,null,null,"Toxicologie","Avant 12 heures  hors garde  WE  férié et pont\nDélai : 1 semaine","-","GC-FID","0534",null,null,null,"B30"]
["LBM","Methémoglobine","MTHB","MetHb","Sang","Seringue héparinée","gazo","Absence de bulle d'air  transporter sur glace  acheminer rapidement au laboratoire","-","5+/-3°C","-","<1 heure","Tube hépariné sans gel (bouchon vert)","vert",null,"-","5+/-3°C","-","<1 heure","capillaire hépariné","Absence de bulle d'air  transporter sur glace  acheminer rapidement au laboratoire","-","5+/-3°C","-","<1 heure","Biochimie","tous les jours (24 heures/24)/20 min urgences ou 1h routine","-","ABL 800","0559",null,null,null,"B25"]
["LBM","Methotrexate","MTX",null,"Sang","Tube hépariné (bouchon vert)","vert","Renseigner le type de perfusion reçue par le patient","Plasma","5°C ± 3°C","-","< 6 heures",null,null,null,null,null,null,null,null,null,null,null,null,null,"Toxicologie","Avant 12 heures  hors garde  WE  férié et pont\nDélai : 1 semaine","-","UPLC-DAD",1655,null,null,null,"B80"]
["LBM","Microalbumine","ALB24","Albuminurie 24h","Urine des 24 heures","Tube à urine chimie","brun","Au lever  éliminer les premières urines. Ensuite  recueillir la totalité des urines pendant 24 heures. Noter la diurèse.","-","5°C à 25°C","-","<24 heures","Pot à urine","ecbu",null,"Urine des 24H ","5°C à 25°C","-","<24 heures","Pot à urine",null,"Urine des 24H ","2-8°C","-",">24 heures","Biochimie","tous les jours (24 heures/24)/1h30 urg ou 4h routine","6 jours","Alinity / Méthode : Turbidimétrique/Immuno-turbidimétrique",1133,null,null,null,"B15"]
["LBM","Microalbumine","ALBU","Albuminurie","Urine","Tube à urine chimie","brun","Urine échantillon : à prélever en milieu de jet","-","5°C à 25°C","-","<24 heures","Pot à urine","ecbu",null,"Urine","5°C à 25°C","-","<24 heures","Pot à urine",null,"Urine","2-8°C","-",">24 heures","Biochimie","tous les jours (24 heures/24)/1h30 urg ou 4h routine","6 jours","Alinity / Méthode : Turbidimétrique/Immuno-turbidimétrique",1133,null,null,null,"B15"]
["LBM","Midazolam","MIDA",null,"Sang","Tube sec (bouchon rouge) ","rouge","4 mL minimum","Sérum","5°C ± 3°C","-","< 6 heures",null,null,null,null,null,null,null,null,null,null,null,null,null,"Toxicologie","Avant 12 heures  hors garde  WE  férié et pont\nDélai : 1 semaine","-","UPLC-DAD","1667",null,null,null,"B70"]
["LBM","Monomères de fibrine","FM",null,"Sang ","Tube Citrate 9NC (bouchon bleu)","bleu","Traitement Anticoagulant obligatoire\nPréciser l'heure de prélèvement\n","Sang total","20°C ± 5°C","-","< 4 heures",{"$f":"F296","v":"Tube Citrate 9NC (bouchon bleu)"},null,null,"Plasma décanté","20°C ± 5°C",{"$f":"K296","v":"-"},"< 4 heures",{"$f":"M296","v":"Tube Citrate 9NC (bouchon bleu)"},{"$f":"O296","v":0},{"$f":"P296","v":"Plasma décanté"},"-20°C",{"$f":"R296","v":"-"},"Aucun","Hématologie biologique","7J/7  24H/24\nUrgence: 1h30 \nDélai max: 4h","4 heures","Turbidimétrie","/",null,null,null,"HN 2200 F"]
["LBM","MTBI (marqueurs traumtisme cranien léger : GFAP et UCH-L1)","MTBI",null,"Sang","Tube hépariné (bouchon vert)","vert","Doit être prélevé obligatoirement dans les 12 heures suivant la lésion. Pas de forte hémolyse. Acheminer immédiatement au laboratoire",null,"5°C à 25°C",null,"<4 heures","Tube hépariné (bouchon vert)",null,null,"Plasma hépariné décanté","-20°C",null,"> 4 heures",null,null,null,null,null,null,"Biochimie","tous les jours (24 heures/24)/1h30 urg ou 4h routine","-","Alinity / Méthode : CMIA","E042",null,null,null,"3880F"]
["LBM","Mutation Facteur II 20210G>A","MUT2P",null,"Sang  "," Tube EDTA (bouchon violet)","violet"," Joindre au prélèvement les formulaires dûment complétés :\n- Fiche de consentement en vue d'un examen des caractéristiques génétiques (GESO-QUA-DO-92) \n- Fiche de renseignements en vue de l'examen des caractéristiques génétiques. Prédisposition génétique et pharmacogénétique (HLA  thrombophilie  hémochromatose …) [GESO-LABO-DO-35]","Sang total","20°C ± 5°C","-","< 4 heures",null,null,null,null,null,null,null,null,null,null,null,null,null,"Hématologie biologique","5J/7  (Lundi au vendredi)\nNon réalisé en garde\nDélai max: 7 jours","-","PCR temps réel",1029,"doc 1","doc 2",null,"B100"]
["LBM","Mutation Facteur V leiden","MUT5P",null,"Sang  "," Tube EDTA (bouchon violet)","violet"," Joindre au prélèvement les formulaires dûment complétés :\n- Fiche de consentement en vue d'un examen des caractéristiques génétiques (GESO-QUA-DO-92) \n- Fiche de renseignements en vue de l'examen des caractéristiques génétiques. Prédisposition génétique et pharmacogénétique (HLA  thrombophilie  hémochromatose …) [GESO-LABO-DO-35]","Sang total","20°C ± 5°C","-","< 4 heures",null,null,null,null,null,null,null,null,null,null,null,null,null,"Hématologie biologique","5J/7  (Lundi au vendredi)\nNon réalisé en garde\nDélai max: 7 jours","-","PCR temps réel",1030,"doc 1","doc 2",null,"B100"]
["LBM","Mutation Facteurs II + V","MUT2+5",null,"Sang  "," Tube EDTA (bouchon violet)","violet","Prélèvement à faire parvenir au laboratoire le lundi. \nJ Joindre au prélèvement les formulaires dûment complétés :\n- Fiche de consentement en vue d'un examen des caractéristiques génétiques (GESO-QUA-DO-92) \n- Fiche de renseignements en vue de l'examen des caractéristiques génétiques. Prédisposition génétique et pharmacogénétique (HLA  thrombophilie  hémochromatose …) [GESO-LABO-DO-35]","Sang total","20°C ± 5°C","-","< 4 heures",null,null,null,null,null,null,null,null,null,null,null,null,null,"Hématologie biologique","5J/7  (Lundi au vendredi)\nNon réalisé en garde\nDélai max: 7 jours","-","PCR temps réel",1031,"doc 1","doc 2",null,"B150"]
["LBM","Mycologie peau et phanères","MYCO",null,"Squames / ongles / poils / cheveux","Poudrier stérile avec produit de grattage (squames)","poud","-","-","20°C ± 5°C","-","Pas de délai",null,null,null,null,null,null,null,null,null,null,null,null,null,"Bactériologie"," Fréquence : du lundi au vendredi  \nde 7H à 18 heures \nDélai : 21 jours à 2 mois","-","Examen direct + Culture Fongique",null,null,null,null,"B70"]
["LBM","Mycologie respiratoire","MYCO",null,"Crachat / aspiration / LBA / PDP","Poudrier stérile","poud","-","-","20°C ± 5°C","-","< 2 heures",null,null,null,"-","5°C ± 3°C","-","< 12 heures",null,null,null,null,null,null,"Bactériologie"," Fréquence : ddu lundi au dimanche  \nde 7H à 18 heures \nDélai : 10 jours à 1 mois","-","Examen direct + Culture Fongique",null,null,null,null,"B70"]
["LBM","Mycoplasma pneumoniae sérologie IgM","SMPMP","Mycoplasma (Sérologie IgM pneumoniae)","Sang","Tube sec (bouchon rouge) ","rouge","En cas de suspicion d'infection récente privilégier la RT-PCR.","-","5°C à 25°C","-","< 4 heures",null,null,null,null,null,null,null,null,null,null,null,null,null,"Sous-traitant Laboratoire CERBA","Fréquence : transmis en France une fois par semaine\nDélai : de 15 jours à 1 mois","-","EnzymoImmunoanalyse",1247,null,null,null,"B50"]
["LBM","Mycoplasmes uro-génitaux (M. hominis et Ureaplasma urealyticum) sérologie","SMYCOP","Mycoplasmes (uro-génitaux Sérologie Mycoplasma hominis et Ureaplasma urealyticum)","Sang","Tube sec (bouchon rouge) ","rouge","-","-","5°C à 25°C","-","< 4 heures",null,null,null,null,null,null,null,null,null,null,null,null,null,"Sous-traitant Laboratoire CERBA","Fréquence : transmis en France une fois par semaine\nDélai : de 15 jours à 1 mois","-","Inhibition métabolique",null,null,null,null,"46 euros"]
["LBM","Mycoplasmes uro-génitaux (PV)","MYCOP",null,"Prélèvement Gynécologique / Pelvien","1 Ecouvillon sec","ecou","-","-","20°C ± 5°C","-","< 2 heures",null,null,null,"-","5°C ± 3°C","-","< 12 heures",null,null,null,null,null,null,"Bactériologie","Fréquence : du lundi au dimanche  \nde 7H à 18 heures \nDélai : 48 heures","-","Culture Bactérienne",null,null,null,null,"B40"]
["LBM","Mycoplasmes uro-génitaux (Sperme)","MYCOPS",null,"Sperme","1 Ecouvillon sec","ecou","-","-","20°C ± 5°C","-","< 2 heures","Poudrier stérile","poud",null,"-","20°C ± 5°C","-","< 2 heures",null,null,"-","5°C ± 3°C","-","< 12 heures","Bactériologie","Fréquence : du lundi au dimanche  \nde 7H à 18 heures  \nDélai : 48 heures","-","Culture Bactérienne",null,null,null,"OU","B40"]
["LBM","Mycoplasmes uro-génitaux (Urètre)","MYCOPZ",null,"Prélèvement Urétral","1 Ecouvillon sec","ecou","-","-","20°C ± 5°C","-","< 2 heures",null,null,null,"-","5°C ± 3°C","-","< 12 heures",null,null,null,null,null,null,"Bactériologie","Fréquence : du lundi au dimanche  \nde 7H à 18 heures \nDélai : 48 heures","-","Culture Bactérienne",null,null,null,null,"B40"]
["LBM","Mycoplasmes uro-génitaux (Urines)","MYCOPU",null,"Urines ","1 Ecouvillon sec","ecou","-","-","20°C ± 5°C","-","< 2 heures","Pot à urine stérile","ecbu",null,"-","20°C ± 5°C","-","< 2 heures",null,null,"-","5°C ± 3°C","-","< 12 heures","Bactériologie","Fréquence : du lundi au dimanche  \nde 7H à 18 heures \nDélai : 48 heures","-","Culture Bactérienne",null,null,null,"OU","B40"]
["LBM","Myélogramme","MYEL",null,"Moelle osseuse","Tube EDTA (bouchon violet)","violet","Frottis minces ± tube EDTA avec du suc médullaire (ne pas trop remplir pour ne pas diluer le prélèvement). Identifier les lames au nom du patient. Prévoir un hémogramme le jour du myélogramme pour examen en parallèle du Sang périphérique.\nRenseignements cliniques et indication du myélogramme indispensables.","Moelle osseuse","20°C ± 5°C","-","< 6 heures","Etalement sur lame (minimum 3)","lame",null,null,"20°C ± 5°C","-","aucun délai pour étalements",null,null,null,null,null,null,"Hématologie biologique","Fréquence : tous les jours\nDélai : de 12 heures à 15 jours","-","Cytologie\nMicroscopie",1101,null,null,"ET","B100"]
["LBM","Nez","BNEZ",null,"Nez","2 Ecouvillons (1 sec + 1 gélosé)","ecouecouG","-","-","20°C ± 5°C","-","< 2 heures","écouvillons gélosés","ecouG",null,"-","20°C ± 5°C","-","< 24 heures",null,null,"-","5°C ± 3°C","-","< 12 heures","Bactériologie"," Fréquence : du lundi au dimanche  \nde 7H à 18 heures\nDélai : de 48 heures à 1 semaine","-","Examen direct + Culture Bactérienne",null,null,null,"OU","B100"]
["LBM","NSE","NSE",null,"Sang","Tube sec (bouchon rouge) ","rouge","Acheminer immédiatement au laboratoire. En cas d'envoi différé, la centrifugation et séparation du sérum doit avoir lieu dans les 60 minutes après le prélèvement. Pas d'hémolyse.",null,"5°C à 25°C",null,"<30 minutes","Tube sec (bouchon rouge) ","rouge",null,"Serum décanté ","2-8°C","-","<48 heures",null,null,null,null,null,null,"Biochimie","lundi au dimanche(7h-17h)","24 heures","Alinity / Méthode : CMIA","0814",null,null,null,"B79"]
["LBM","Numération des plaquettes ","PLT",null,"Sang total "," Tube EDTA (bouchon violet)","violet","Peut être réalisé sur le même tube que la NFS.","Sang total","20°C ± 5°C","-","< 12 heures",null,null,null,null,null,null,null,null,null,null,null,null,null,"Hématologie biologique","7J/7  24H/24\nUrgence: 1h00\nDélai max: 24h","-","Impédance - Photométrie- Fluorescence \nCytométrie en flux - Microscopie",1107,null,null,null,"B15"]
["LBM","Numération des plaquettes sur tube citraté","PLTCIT",null,"Sang total ","Tube Citrate 9NC (bouchon bleu)","bleu","-","Sang total","20°C ± 5°C","-","< 12 heures",null,null,null,null,null,null,null,null,null,null,null,null,null,"Hématologie biologique","7J/7  24H/24\nUrgence: 1h00\nDélai max: 24h","-","Impédance - Photométrie- Fluorescence \nCytométrie en flux - Microscopie",1107,null,null,null,"B15"]
["LBM","Ofloxacine","OFLO",null,"Sang","Tube sec (bouchon rouge) ","rouge","1 mL minimum","Sérum","5°C ± 3°C","-","< 6 heures",null,null,null,null,null,null,null,null,null,null,null,null,null,"Toxicologie","Avant 12 heures  hors garde  WE  férié et pont\nDélai : 1 semaine","-","UPLC-DAD","M001",null,null,null,"4850 F"]
["LBM","Oreille externe","OREILC",null,"Oreille externe","2 Ecouvillons (1 sec + 1 gélosé)","ecouecouG","-","-","20°C ± 5°C","-","< 2 heures","écouvillons gélosés","ecouG",null,"-","20°C ± 5°C","-","< 24 heures",null,null,"-","5°C ± 3°C","-","< 12 heures","Bactériologie"," Fréquence : du lundi au dimanche  \nde 7H à 18 heures\nDélai : de 48 heures à 1 semaine","-","Examen direct + Culture Bactérienne",null,null,null,"OU","B120"]
["LBM","Oreille moy. Tympan percé","OREILP",null,"Oreille moyenne","2 Ecouvillons (1 sec + 1 gélosé)","ecouecouG","-","-","20°C ± 5°C","-","< 2 heures","Poudrier stérile","poud",null,"-","20°C ± 5°C","-","< 2 heures",null,null,"-","5°C ± 3°C","-","< 12 heures","Bactériologie","Fréquence : 24 heures sur 24  7j sur 7 \nDélai : de 48 heures à 1 semaine","-","Examen direct + Culture Bactérienne",null,null,null,"OU","B200"]
["LBM","Oreillons sérologie","ORP","Oreillons (Sérologie)","Sang","Tube sec (bouchon rouge) ","rouge","-","-","5°C à 25°C","-","< 4 heures",null,null,null,null,null,null,null,null,null,null,null,null,null,"Sous-traitant Laboratoire CERBA","Fréquence : transmis en France une fois par semaine\nDélai : de 15 jours à 1 mois","-","EnzymoImmunoanalyse",1756,null,null,null,"B120"]
["LBM","Os","OS",null,"Biopsie osseuse","Poudrier stérile","poud","Prélever un minimum de 5 biopsies osseuses.","-","20°C ± 5°C","-","< 2 heures",null,null,null,"-","5°C ± 3°C","-","< 12 heures",null,null,null,null,null,null,"Bactériologie","Fréquence : 24 heures sur 24  7j sur 7 \nDélai : de 48 heures à 2 semaines","-","Examen direct + Culture Bactérienne",null,null,null,null,"B200"]
["LBM","Osmolalité","OSMS","Osmolalité","Sang","Tube hépariné (bouchon vert)","vert","-","-","5°C à 20°C","-","<24 heures","Tube hépariné (bouchon vert)","vert",null,"Plasma hépariné décanté","-20°C","-",">24 heures",null,null,null,null,null,null,"Biochimie","tous les jours (24 heures/24)/1h30 urg ou 4h routine","-","GONOTEC Cryocongelation","1607",null,null,null,"B15"]
["LBM","Oxacilline","OXA",null,"Sang","Tube sec (bouchon rouge) ","rouge","1 mL minimum","Sérum","5°C ± 3°C","-","< 6 heures",null,null,null,null,null,null,null,null,null,null,null,null,null,"Toxicologie","Avant 12 heures  hors garde  WE  férié et pont\nDélai : 1 semaine","-","UPLC-DAD","M001",null,null,null,"4850 F"]
["LBM","Oxyure","OXYUR",null,"Marge anale","Scotch sur la marge anale",null,"Appliquer le scotch sur la marge anale puis déposer sur une lame avec une goutte d'eau physiologique.","-","20°C ± 5°C","-","< 4 heures",null,null,null,null,null,null,null,null,null,null,null,null,null,"Bactériologie"," Fréquence : du lundi au dimanche  \nde 7H à 18 heures\nDélai : 1 jour","-","Examen direct",null,null,null,null,"B10"]
["LBM","Paludisme sérologie","SPAL","Paludisme (Sérologie)","Sang","Tube sec (bouchon rouge) ","rouge","En cas de suspicion d'une infection récente réaliser une recherche directe (frottis/goutte épaisse).","-","5°C à 25°C","-","< 4 heures",null,null,null,null,null,null,null,null,null,null,null,null,null,"Immuno-Sérologie","Fréquence : 1 fois par semaine  \nle lundi\nDélai : 7 jours","-","EnzymoImmunoanalyse",4353,null,null,null,"B50"]
["LBM","Paracétamol\nAcétaminophène","PAR","Paracétamol","Sang","Tube sec (bouchon rouge) ","rouge","-","-","5°C à 25°C","-","<24 heures","Tube sec (bouchon rouge) ","rouge",null,"Serum décanté congelé","-20°C","-",">24 heures",null,null,null,null,null,null,"Biochimie","tous les jours (24 heures/24)/1h30 urg ou 4h routine","7 jours","Alinity ","1661",null,null,null,"B70"]
["LBM","Parainfluenzae virus (I  II  III) sérologie","SPAR1P","Parainfluenzae (virus Sérologie) ","Sang","Tube sec (bouchon rouge) ","rouge","-","-","5°C à 25°C","-","< 4 heures",null,null,null,null,null,null,null,null,null,null,null,null,null,"Sous-traitant Laboratoire CERBA","Fréquence : transmis en France une fois par semaine\nDélai : de 15 jours à 1 mois","-","Fixation du complément",1761,null,null,null,"B30 + B30 + B30"]
["LBM","Parasite : identification d'un arthropode","PARAC",null,"Acarien","Poudrier","poud","Décrire le site de capture.","-","20°C ± 5°C","-","< 24 heures",null,null,null,null,null,null,null,null,null,null,null,null,null,"Bactériologie","Fréquence : du lundi au vendredi  \nde 7H à 18 heures \nDélai : 1 jour","-","Examen direct (macro ou microscopique)",null,null,null,null,"B10"]
["LBM","Parasite : Identification d'un ver ","PARAV",null,"Ver","Poudrier","poud","Décrire le site de capture.","-","20°C ± 5°C","-","< 24 heures",null,null,null,null,null,null,null,null,null,null,null,null,null,"Bactériologie","Fréquence : du lundi au vendredi  \nde 7H à 18 heures \nDélai : 1 jour","-","Examen direct (macro ou microscopique)",null,null,null,null,"B10"]
["LBM","Parasites extra-digestifs","PARAUT",null,"Liquide biologique ou biopsie","Poudrier","poud","-","-","20°C ± 5°C","-","< 24 heures",null,null,null,null,null,null,null,null,null,null,null,null,null,"Bactériologie","Fréquence : du lundi au vendredi  \nde 7H à 18 heures \nDélai : 1 jour","-","Examen direct",null,null,null,null,"B30"]
["LBM","Parasitologie des selles ","PARA",null,"Selles","Pot à coproculture","copro","-","-","20°C ± 5°C","-","< 2 heures",null,null,null,null,null,null,null,null,null,null,null,null,null,"Bactériologie","Fréquence : du lundi au vendredi  \nde 7H à 18 heures \nDélai : 2 jours","-","Examen direct (concentration Bailanger + MIF)",null,null,null,null,"B95"]
["LBM","Parathormone (PTH)","PTH","PTH","Sang","Tube sec (bouchon rouge) ","rouge","Prélever à jeun. Pas de forte hémolyse. Ne pas utiliser de tube avec gel séparateur.","-","2-8°C","-","<4 heures","Tube sec (bouchon rouge) ","rouge",null,"Serum décanté congelé","-20°C","-",">4 heures",null,null,null,null,null,null,"Biochimie","2 fois par semaine/ délai max : 5 jours","2 jours entre 2 et 8°C décanté","Alinity / Méthode : CMIA","0983",null,null,null,"B60"]
["LBM","Parvovirus B19 sérologie","PARVP2","B19 (Sérologie Parvovirus )","Sang","Tube sec (bouchon rouge) ","rouge","-","-","5°C à 25°C","-","< 4 heures",null,null,null,null,null,null,null,null,null,null,null,null,null,"Sous-traitant Laboratoire CERBA","Fréquence : transmis en France une fois par semaine\nDélai : de 15 jours à 1 mois","-","EnzymoImmunoanalyse",1763,null,null,null,"B120"]
["LBM","PCR Adénovirus","PCADV","Adénovirus (PCR ADV)","LCR / Sang / prélèvement respiratoire / selles / prélèvements de conjonctive","Tube EDTA (bouchon violet)","violet","-","-","5°C à 25°C","-","< 4 heures","Poudrier stérile","poud",null,"-","5°C à 25°C","-","< 4 heures",null,null,null,null,null,null,"Sous-traitant Laboratoire CERBA","Fréquence : transmis en France une fois par semaine\nDélai : de 15 jours à 1 mois","-","PCR temps réel",null,null,null,null,"15600F"]
["LBM","PCR Bartonella - Biopsie",{"$f":"C331","v":"PCADV"},"Adénovirus (PCR ADV)","Biopsie","Poudrier stérile","poud",{"$f":"H331","v":"-"},"-","5°C à 25°C","-","< 4 heures",null,null,null,null,null,null,null,null,null,null,null,null,null,"Biologie Moléculaire","Fréquence :  1 fois par semaine","-","PCR temps réel",null,null,null,null,"10 400F"]
["LBM","PCR Bartonella Sang","PCBH","Bartonella (PCR Sang Griffe du chat Bartonellose)\nPCR ( Sang Griffe du chat Bartonellose","Sang","Tube EDTA (bouchon violet)","violet","-","-","5°C à 25°C","-","< 4 heures",null,null,null,null,null,null,null,null,null,null,null,null,null,"Biologie Moléculaire","Fréquence :  1 fois par semaine","-","PCR temps réel",null,null,null,null,"10 400F"]
["LBM","PCR Chikungunya","PCCHK","Chikungunya (PCR CHIK)","Sang","Tube sec (bouchon rouge) ","rouge","Diagnostic précoce (de J+0 à J7). \nRenseignements obligatoires : date de début des signes cliniques + préciser si retour récent de voyage. ","-","5°C à 25°C","-","< 4 heures",null,null,null,null,null,null,null,null,null,null,null,null,null,"Biologie Moléculaire","Fréquence : du lundi au vendredi\nDélai : 24 h","-","PCR temps réel",null,null,null,null,"7 800F"]
["LBM","PCR Chlamydiae pneumoniae","PCCHPN","Chlamydiae pneumoniae (PCR intracellulaire)","Aspiration nasopharyngée","Pot à urine stérile","poud","-","-","5°C à 25°C","-","< 4 heures",null,null,null,null,null,null,null,null,null,null,null,null,null,"Biologie Moléculaire","Fréquence : sur demande du lundi au vendredi\nDélai :  24 heures à 7 jours","-","PCR temps réel",null,null,null,null,"5 200F"]
["LBM","PCR Chlamydiae trachomatis","PCCHL","CT (PCR Chlamydiae trachomatis IST)","Génital / urinaire /sperme/ oculaire / respiratoire (nouveau né)/Rectal","Ecouvillon dacron","ecouD","Prélèvement génital : écouvillon en dacron ou rayon (tige en plastique) au niveau de l'urètre ou du vagin. PCR gonocoque réalisée en systématique en parallèle.\nUrine : récupérer le 1 er jet urinaire","-","5°C à 25°C","-","< 4 heures","Pot à urine stérile (urines)","ecbu",null,"-","5°C à 25°C","-","< 4 heures",null,null,null,null,null,null,"Biologie Moléculaire","Fréquence : 1 fois par semaine le jeudi \nDélai : 24h à 7 jours","-","PCR temps réel","5257/5302/5303",null,null,"OU","B100/ B120 2 sites / B140 3 sites"]
["LBM","PCR CMV (Cytomégalovirus)","PCCMV","CMV (PCR Cytomegalovirus 5ème maladie)","Urine / LCR / biopsies / liquide de ponction / Sang / prélèvement respiratoire","Pot à urine stérile","poud","Quantification virale réalisée sur Tube EDTA (Sang total) uniquement.","-","5°C à 25°C","-","< 4 heures","Tube EDTA (bouchon violet)","violet",null,"-","5°C à 25°C","-","< 4 heures",null,null,null,null,null,null,"Biologie Moléculaire","Fréquence : 2 fois par semaine \n le mardi et le jeudi et à la demande pour les examens urgents\nDélai : 24 h à 3 jours","-","PCR temps réel",4505,null,null,"OU","18 200F/ suivi patients greffés:B350"]
["LBM","PCR Coqueluche","PCCOQ","Coqueluche (PCR)","Respiratoire","Pot à urine stérile (aspiration naso-pharyngée)","poud","Ecouvillon nasal : privilégier un écouvillonnement des deux narines à l'aide d'un écouvillon en dacron ou rayon (tige en plastique).","-","5°C à 25°C","-","< 4 heures","Ecouvillon nasal","ecouD",null,"-","5°C à 25°C","-","< 4 heures",null,null,null,null,null,null,"Biologie Moléculaire","Fréquence : 2 fois par semaine \n le mardi et le jeudi et à la demande pour les examens urgents (enf <6 mois)\nDélai : 24 h","-","PCR temps réel",5258,null,null,"OU","B140"]
["LBM","PCR de criblage du SARS-CoV-2","PCVAR","Criblage (PCR SARS-CoV-2 COVID19)","nasopharyngé / aspiration bronchique / LBA / salive","Ecouvillon tige dacron","ecouD","uniquement sur échantillon positif en SARS-CoV-2 avec Ct<28\nrecherche des mutations N501Y L452R E484K E484Q Del 69-70","-","5°C à 25°C","-","< 4 heures","Poudrier stérile","poud",null,"-","5°C à 25°C","-","< 4 heures",null,null,null,null,null,null,"Biologie Moléculaire","A la demande du lundi au vendredi \nDélai : 4h","-","PCR temps réel",null,null,null,"OU","10 400F"]
["LBM","PCR Dengue","PCRD","Dengue (PCR)","Sang","Tube sec (bouchon rouge) ","rouge","Diagnostic précoce (de J+0 à J7). Renseignements obligatoires : date de début des signes cliniques + préciser si retour récent de voyage. ","-","5°C à 25°C","-","< 4 heures",null,null,null,null,null,null,null,null,null,null,null,null,null,"Biologie Moléculaire","Fréquence : du lundi au vendred\nDélai : 1 à 2j","-","PCR temps réel",null,null,null,null,"7 800F"]
["LBM","PCR EBV LCR","PCEBL","EBV (PCR Epstein Barr Virus LCR)"," LCR","Pot à urine stérile","poud","-","-","20°C ± 5°C","-","< 4 heures",null,null,null,null,null,null,null,null,null,null,null,null,null,"Biologie Moléculaire","Fréquence : mardi et jeudi et à la demande pour les examens urgents\nDélai : 24 heures à 5 jours","-","PCR temps réel",null,null,null,null,"12 000F"]
["LBM","PCR EBV Sang","PCEBV","EBV (PCR Epstein Barr Virus sang)"," Sang","Tube EDTA (bouchon violet) ","violet","-","-","20°C ± 5°C","-","< 4 heures",null,null,null,null,null,null,null,null,null,null,null,null,null,"Biologie Moléculaire","Fréquence : mardi et jeudi et à la demande pour les examens urgents\nDélai : 24 heures à 5 jours","-","PCR temps réel",null,null,null,null,"12 000F"]
["LBM","PCR Entérobactérie productrice de carbapénèmase (EPC)","GXEPC",null,"Selles","1 Ecouvillon double bouchon rouge avec milieu de conservation ","ecouDouble","Ecouvillon double (spécifique pour la PCR) à récupérer au laboratoire de Bactériologie\n\nRecommandée si \n> dans les 72h après demande de culture EPC (effectuée au CHT ou à l'étranger)\n> errerur exceptionnelle de placement d'un patient dans le mauvais service\n\nA modifier en culture EPC si absence de culture dans les 72h auparavant","-","20°C ± 5°C","-","< 24 heures",null,null,null,null,null,null,null,null,null,null,null,null,null,"Bactériologie","Fréquence : du lundi au dimanche \nde 7H à 18 heures\nDélai : de 2 heures à  48 heures (confimration par culture si PCR +)","-","PCR temps réel",null,null,null,null,"19760F"]
["LBM","PCR Entérocoque résistance à la vancomycine (ERV)","GXERV",null,"Selles","1 Ecouvillon double bouchon rouge avec milieu de conservation ","ecouDouble","Ecouvillon double (spécifique pour la PCR) à récupérer au laboratoire de Bactériologie\n\nA réaliser si : \n> dans les 72h après une culture en ERV (effectuée au CHT ou à l'étranger)\n> erreur exceptionnelle de placement d'un patient dans le mauvais service\n\nA modifier en culture ERV si absence de culture réalisée 72h auparavant ","-","20°C ± 5°C","-","< 24 heures",null,null,null,null,null,null,null,null,null,null,null,null,null,"Bactériologie","Fréquence : du lundi au dimanche \nde 7H à 18 heures\nDélai : de 2 heures à  48 heures (confimration par culture si PCR +)","-","PCR temps réel",null,null,null,null,"19760F"]
["LBM","PCR Entérovirus","PCEV","Entérovirus (PCR)","LCR / Selles / Respiratoire","Pot à urine stérile","poud","Demandes de PCR sur LCR présentant plus de 10 éléments Blancs : réalisation en urgence","-","5°C à 25°C","-","< 4 heures",null,null,null,null,null,null,null,null,null,null,null,null,null,"Biologie Moléculaire","Fréquence LCR  : délai : 3h pour demandes urgentes si non délai = 24 heures\nFréquence : le mardi et à la demande pour les examens urgents\nDélai : 24 h à 5 jours","-","PCR temps réel",null,null,null,null,"26 000F"]
["LBM","PCR Fièvre Jaune","PCFJ","Fièvre jaune (PCR)","Sang","Tube EDTA (bouchon violet)","violet","Demande réalisée uniquement si retour de voyage en zone d'endémie","-","5°C à 25°C","-","< 4 heures",null,null,null,null,null,null,null,null,null,null,null,null,null,"Biologie moléculaire","Fréquence : à la demande du lundi au vendredi\nDélai : 24 h","-","PCR temps réel",null,null,null,null,"18 000F"]
["LBM","PCR Gonocoque (Neisseria gonorrhoeae)","PCNG","Gonocoque (PCR Neisseria gonorrhoeae)","Urinaire / Génital/ Rectal/ liquide articulaire","Ecouvillon dacron","ecouD","Prélèvement génital : écouvillon en dacron ou rayon (tige en plastique) au niveau de l'urètre (homme) ou du vagin. \nPrélèvement d'urine : récupérer le 1er jet urinaire. ","-","5°C à 25°C","-","< 4 heures","Pot à urine stérile","poud",null,"-","5°C à 25°C","-","< 4 heures",null,null,null,null,null,null,"Biologie Moléculaire","Fréquence : 1 fois par semaine le jeudi \nDélai : 24h à 7 jours","-","PCR temps réel",5301,null,null,"OU","B100/ B120 2 sites / B140 3 sites"]
["LBM","PCR Grippe A  B  H1N1pdm (RT-PCR)","PCGR","Grippe (PCR)","Respiratoire","2 écouvillons à décharger dans milieu de transport virus","ecouT","Kit de prélèvement à récupérer au laboratoire. \nDocuments liés : Bon de prescription grippe (GESO-LABO-DO-44).","-","5°C à 25°C","-","< 48 heures",null,null,null,null,null,null,null,null,null,null,null,null,null,"Biologie Moléculaire","Fréquence : du lundi au vendredi\nDélai : 24 heures à 5 jours","-","PCR temps réel",null,"doc 16",null,null,"12 000F"]
["LBM","PCR Grippe A  B  H1N1pdm / SARS CoV2 Duplex (RT-PCR)","COVINF",null,"Respiratoire","2 écouvillons à décharger dans milieu de transport virus","ecouT","Kit de prélèvement à récupérer au laboratoire. \nDocuments liés : Bon de prescription grippe (GESO-LABO-DO-44).",null,"5°C à 25°C",null,"< 48 heures",null,null,null,null,null,null,null,null,null,null,null,null,null,"Biologie Moléculaire","Fréquence : du lundi au vendredi\nDélai : 24 heures à 5 jours",null,"PCR temps réel",5271,"doc 16",null,null,"B200 + 12 000F"]
["LBM","PCR HBV Recherche et quantification de l'ADN du virus de l'hépatite B (VHB)","PCHBV","VHB (charge virale PCR HBV ADN virus de l'hépatite B)","Sang","Tube EDTA (bouchon violet)","violet","Documents liés : Bon de prescription grippe (GESO-QUA-DO-42).","-","5°C à 25°C","15-25°C pendant 24h ou 2-8°C pendant 3J","< 24 heures","Pot à urine stérile","poud",null,"15-25°C pendant 24h ou 2-8°C pendant 3J","5°C à 25°C",null,"< 24 heures",null,null,null,null,null,null,"Biologie Moléculaire","A la demande du lundi au vendredi \nDélai : 4h","-","PCR temps réel",4120,null,null,"OU","B150"]
["LBM","PCR HCV Recherche qualitative de l'ARN du virus de l'hépatite C","PCHCV","VHC (charge virale PCR HCV ARN virus de l'hépatite C)","Sang","Tube EDTA (bouchon violet)","violet","Laboratoires extérieurs : plasma EDTA (1 mL)","-","5°C à 25°C","-","< 4 heures","Pot à urine stérile","poud",null,"-","5°C à 25°C","-","< 4 heures",null,null,null,null,null,null,"Biologie Moléculaire","A la demande du lundi au vendredi \nDélai : 2h","-","PCR temps réel",4123,null,null,"OU","B180"]
["LBM","PCR HCV Recherche QUANTITATIVE de l'ARN du virus de l'hépatite C","PCHCVQ","VHC (charge virale PCR HCV ARN virus de l'hépatite C)","Sang","Tube EDTA (bouchon violet)","violet","Laboratoires extérieurs : plasma EDTA (1 mL)","-","5°C à 25°C","-","< 4 heures","Pot à urine stérile","poud",null,"-","5°C à 25°C","-","< 4 heures",null,null,null,null,null,null,"Biologie Moléculaire","A la demande du lundi au vendredi \nDélai : 2h","-","PCR temps réel",4124,null,null,"OU","B220"]
["LBM","PCR Helicobacter pylori : recherche et résistance à la Clarithromycine","PCHP","Helicobacter (pylori PCR résistance Chlarithromycine)","Biopsie","Milieu de transport PYLORI / ou Pot à urine stérile ","pylori","Milieu de transport à récupérer au laboratoire\nLaboratoires extérieurs : pot stérile + transport -20°C","-","5°C à 25°C","-","<1 heure",null,null,null,null,null,null,null,null,null,null,null,null,null,"Biologie Moléculaire","Fréquence : du lundi au vendredi \nDélai : 24 h","-","PCR temps réel",null,null,null,null,"2 500 F"]
["LBM","PCR Hépatite D (Delta)","ARNHDP","VHD (charge virale Delta)","Sang","2 Tubes EDTA (bouchon violet)","violet","En cas d'impossibilité d'envoi des échantillons dans les 4 heures post-prélèvement  le plasma doit être décanté puis transporté congelé (- 20°C ± 5°C) jusqu'à réception au laboratoire.","-","5°C à 25°C","-","< 4 heures",null,null,null,null,null,null,null,null,null,null,null,null,null,"Sous-traitant Laboratoire CERBA","Fréquence : transmis en France une fois par semaine\nDélai : de 15 jours à 1 mois","-","PCR temps réel",4119,null,null,null,"B220"]
["LBM","PCR HSV (Herpes Simplex Virus 1 et 2)","PCHER","HSV (PCR Herpès Simplex Virus HSV1 HSV2)","LCR  / Respiratoire / Cutané / Génital / Oculaire","Ecouvillon avec milieu de transport","ecouT","Prélèvement génital  de vésicule ou ophtalmo : prélever avec écouvillon en dacron ou rayon (tige en plastique) et replacer l'écouvillon dans son étui.","-","5°C à 25°C","-","< 4 heures","Pot à urine stérile","poud",null,"-","5°C à 25°C","-","< 4 heures",null,null,null,null,null,null,"Biologie Moléculaire","Fréquence : du lundi au vendredi\nDélai : 24 heures à 5 jours","-","PCR temps réel",null,null,null,"OU","6 760F"]
["LBM","PCR Legionelle (Legionella spp)","PCLG","Legionelle (PCR Legionella spp legionellose)","Respiratoire","Pot à urine stérile","poud","-","-","20°C ± 5°C","-","< 4 heures",null,null,null,null,null,null,null,null,null,null,null,null,null,"Biologie Moléculaire"," Fréquence : sur demande du lundi au vendredi\nDélai : 24 heures","-","PCR temps réel",null,null,null,null,"12 000F"]
["LBM","PCR Leptospirose","LAMP","Leptospirose (PCR)","Sang / Urine","Tube EDTA  (bouchon violet)","violet","Diagnostic précoce J0 à J10 (Sang). \nRenseigner la date d'apparition des signes cliniques. ","sang","5°C à 25°C","-","< 4 heures","pourdrier stérile","ecbu",null,"urine","5°C à 25°C","-","< 4 heures",null,null,null,null,null,null,"Biologie Moléculaire","Fréquence :  2 fois /semaine \nDu lundi au vendredi pour les patients hospitalisés en réanimation ou SI ou Soin critique  et sur appel.\nDélais : 24 heures à 5 jours","-","PCR temps réel",5262,null,null,"OU","B100"]
["LBM","PCR Multiplex Panel Gastro","PCGI","Multiplex (Gastro entérite PCR)","Selles","Pot à coproculture","coprop","Uniquement sur selles liquides\nPCR Campylobacter  clostridium  Shigella  salmonelle  Yersinia  Vibrio parahemolyticus  vulnificus  cholerae EIEC  EAEC  EPEC  ETEC STEC  E.coli O157 ADV  Astrovirus Norovirus  Rotavirus  Sapovirus  Cryptosporidium  Cyclospora  Entamoeba histolytica  Giardia intestinalis","-","5°C à 25°C","-","< 4 heures",null,null,null,null,null,null,null,null,null,null,null,null,null,"Biologie Moléculaire","A la demande 24 heures/24 7J/7 \nDélai : 2h","-","PCR temps réel",null,null,null,null,"B335"]
["LBM","PCR Multiplex Panel Méningite/Encéphalite","PCME","Multiplex (PCR Panel Méningé Méningite/Encéphalite )","LCR","Pot à urine stérile","poud","Uniquement sur demande au près du biologiste.\nPCR E. coli  H. influenzae  S. agalactiae méningocoque  pneumocoque  Listeria  cryptocoque  Enterovirus  CMV  HHV6  Paréchovirus  VZV  HSV","-","5°C à 25°C","-","< 4 heures",null,null,null,null,null,null,null,null,null,null,null,null,null,"Biologie Moléculaire","A la demande 24 heures/24 7J/7 \nDélai : 2h","-","PCR temps réel",null,null,null,null,"35 000F"]
["LBM","PCR Multiplex Panel Pneumoplus","PCPN+","Multiplex (PCR Panel respiratoire bactério + viro)","Respiratoire","Pot à urine stérile","poud","Uniquement sur demande auprès du biologiste.\nPCR ADV  Coronavirus  MERS Cov  hMPV  Rhinovirus  Entérovirus  grippe  Parainfluenza virus  VRS  Coqueluche  Chlamydia pneumoniae  Mycoplasma pneumoniae  Acinetobacter  Klebsiella  E.coli  enterobacter  haemophilus  moraxella  proteus  pseudomonas  serratia  staphylocoque  streptocoque","-","5°C à 25°C","-","< 4 heures",null,null,null,null,null,null,null,null,null,null,null,null,null,"Biologie Moléculaire","A la demande 24 heures/24 7J/7 \nDélai : 2h","-","PCR temps réel",null,null,null,null,"45 000F"]
["LBM","PCR Multiplex Panel Respiratoire","PCRP","Multiplex (PCR Panel Virus Respiratoires)","Respiratoire","Pot à urine stérile","poud","Uniquement sur demande auprès du biologiste.\nPCR ADV  Coronavirus  MERS Cov  hMPV  Rhinovirus  Entérovirus  grippe  Parainfluenza virus  VRS  Coqueluche  Chlamydia pneumoniae  Mycoplasma pneumoniae","-","5°C à 25°C","-","< 4 heures",null,null,null,null,null,null,null,null,null,null,null,null,null,"Biologie Moléculaire","A la demande 24 heures/24 7J/7 \nDélai : 2h","-","PCR temps réel",null,null,null,null,"37 960F"]
["LBM","PCR Mycobacterium tuberculosis (tuberculose) BK","PCBK","BK (PCR Mycobacterium tuberculosis tuberculose)","LCR / biopsies / liquide de ponction / moelle / prélèvement respiratoire","Poudrier stérile","poud","Un résultat négatif ne permet pas d'exclure une tuberculose. A compléter par une recherche du BK en culture.","-","5°C à 25°C","-","< 4 heures","Tube EDTA (bouchon violet)","violet",null,"-","5°C à 25°C","-","< 4 heures",null,null,null,null,null,null,"Biologie Moléculaire","Fréquence : mardi et jeudi et à la demande pour les examens urgents\nDélai : 24 heures à 5 jours","-","PCR temps réel",4102,null,null,"OU","B250"]
["LBM","PCR Mycoplasma genitalium","PCMYG","MG (PCR mycoplasma genitalium IST)","Urinaire / Génital","Ecouvillon dacron","ecouD","Prélèvement génital : écouvillon en dacron ou rayon (tige en plastique) au niveau de l'urètre (homme) ou du col.\nPrélèvement d'urine : récupérer le 1er jet urinaire. ","-","5°C à 25°C","-","< 4 heures","Pot à urine stérile","ecbu",null,"-","5°C à 25°C","-","< 4 heures",null,null,null,null,null,null,"Biologie Moléculaire","Fréquence : le jeudi\nDélai : 24 heures à 7 jours","-","PCR temps réel",null,null,null,"OU","8 400F"]
["LBM","PCR Mycoplasma groupe Haemofelis (maladie des roussettes)","PCCMH","Roussettes (PCR Mycoplasma Haemofelis)","Sang","Tube EDTA (bouchon violet)","violet","Laboratoires Extérieurs : Sang total EDTA","-","5°C à 25°C","-","< 4 heures","Pot à urine stérile","poud",null,"-","5°C à 25°C","-","< 4 heures",null,null,null,null,null,null,"Biologie Moléculaire","Fréquence :  à la demande pour les examens urgents\nDélai : 24 heures à 5 jours","-","PCR temps réel",null,null,null,"OU","10 400F"]
["LBM","PCR Mycoplasma pneumoniae","PCMYP","Mycoplasma (PCR  pneumoniae intracellulaire)","Aspiration nasopharyngée","Pot à urine stérile","poud","-","-","5°C à 25°C","-","< 4 heures",null,null,null,null,null,null,null,null,null,null,null,null,null,"Biologie Moléculaire"," Fréquence : sur demande du lundi au vendredi\nDélai : 24 heures","-","PCR temps réel",null,null,null,null,"5 200F"]
["LBM","PCR Nipah/Hendra","NIPH",null,"LCR / Serum/ Prélèvement respiratoire","Tube sec (bouchon rouge)","rouge","Uniquement sur demande auprès du biologiste.","-","5°C à 25°C","-","< 4 heures","Poudrier stérile","poud",null,"-","5°C à 25°C","-","< 4 heures",null,null,null,null,null,null,"VIDRL Melbourne","Fréquence : sur demande\nDélai : 15 jours","-","PCR temps réel",null,null,null,null,"HN 1000"]
["LBM","PCR Paréchovirus","PCPEV","Paréchovirus (PCR) ","LCR / Sang / prélèvement respiratoire ","Tube EDTA (bouchon violet)","violet","-","-","5°C à 25°C","-","< 4 heures","Poudrier stérile","poud",null,"-","5°C à 25°C","-","< 4 heures",null,null,null,null,null,null,"Sous-traitant Laboratoire CERBA","Fréquence :  à la demande pour les examens urgents\nDélai : 24 heures à 5 jours","-","PCR temps réel",null,null,null,null,"10400F"]
["LBM","PCR Pneumocoque","PCSP","PNO (PCR Pneumocoque)","Respiratoire / Sang / urine","Tube EDTA  Pot à urine stérile (urine)","violet","-","-","5°C à 25°C","-","< 4 heures","Pot à urine stérile","ecbu",null,null,null,null,null,null,null,null,null,null,null,"Biologie Moléculaire","Fréquence :  à la demande du lundi au vendredi","-","PCR temps réel",null,null,null,"OU","20 400F"]
["LBM","PCR Pneumocystose","PCPJI","Pneumocystose (PCR)","Respiratoire","Pot à urine stérile","poud","-","-","5°C à 25°C","-","< 4 heures",null,null,null,null,null,null,null,null,null,null,null,null,null,"Biologie Moléculaire"," Fréquence : le mardi et sur demande\nDélai : 24 heures","-","PCR temps réel",null,null,null,null,"12 000F"]
["LBM","PCR Polyomavirus BK","PCBVS /PCBVU","BK virus (PCR Polyomavirus BKV)","Sang / Urines","Tube EDTA (bouchon violet)","violet","Plasma EDTA ","-","5°C à 25°C","-","< 4 heures","Pot à urine stérile","poud",null,"-","5°C à 25°C","-","< 4 heures",null,null,null,null,null,null,"Biologie Moléculaire","Fréquence : mardi\nDélai : 2 jours à 5 jours","-","PCR temps réel",null,null,null,"OU","B615"]
["LBM","PCR Polyomavirus JC","PCJCP","JC (PCR Polyomavirus) ","Sang","Tube EDTA (bouchon violet)","violet","-","-","5°C à 25°C","-","< 4 heures",null,null,null,null,null,null,null,null,null,null,null,null,null,"Sous-traitant Laboratoire CERBA","Fréquence : transmis en France une fois par semaine\nDélai : de 15 jours à 1 mois","-","PCR temps réel",null,null,null,null,"21350F"]
["LBM","PCR Ross River","PCRRV","RRV (PCR Ross River) ","Sang","Tube sec (bouchon rouge) ","rouge","Laboratoires Extérieurs : sérum","-","5°C à 25°C","-","< 4 heures",null,null,null,null,null,null,null,null,null,null,null,null,null,"Biologie Moléculaire","Fréquence : du lundi au vendredi \nDélai : 24 h","-","PCR temps réel",null,null,null,null,"7800F"]
["LBM","PCR Rougeole","PCROU","Rougeole (PCR)","Naso-pharyngé","Ecouvillon tige dacron","ecouD","Décharger l'écouvillon dans milieur de transport virus (à récupérer au laboratoire)","-","5°C à 25°C","-","< 4 heures",null,null,null,null,null,null,null,null,null,null,null,null,null,"Biologie Moléculaire","A la demande du lundi au vendredi \nDélai : 4h","-","PCR temps réel",null,null,null,null,"12 000F"]
["LBM","PCR SARS-CoV-2","PCNCOV","COVID (PCR SARS-CoV-2 COVID19)","nasopharyngé / aspiration bronchique / LBA","Ecouvillon tige dacron","ecouD","-","-","5°C à 25°C","-","< 4 heures","Poudrier stérile","poud",null,"-","5°C à 25°C","-","< 4 heures","Ecouvillon avec milieu de transport",null,"-","5°C à 25°C","-","< 48 heures","Biologie Moléculaire","A la demande du lundi au vendredi \nDélai : 24h\nDemande en urgence <2 heures","-","PCR temps réel",5271,null,null,"OU","B200 OU 10 400F"]
["LBM","PCR SARS-CoV-2 (salive)","PCSCOV","COVID (PCR SARS-CoV-2 COVID19 Salive)","Respiratoire","échantillon salivaire (uniquement en dépistage ciblé personnes asymptomatique)","poud","-","-","5°C à 25°C","-","< 4 heures",null,null,null,null,null,null,null,null,null,null,null,null,null,"Biologie Moléculaire","A la demande du lundi au vendredi \nDélai : 24h\nDemande en urgence <2 heures","-","PCR temps réel",5271,null,null,null,"B200 OU 10 400F"]
["LBM","PCR Staphylococcus aureus : Recherche du gène PVL","PCPVL","PVL (PCR Staphylococcus  aureus Leucocidine Panton Valentine)","Souche bactérienne de S. aureus","/",null,"Recherche réalisée uniquement sur demande auprès du biologiste.","-","5°C à 25°C","-","< 4 heures",null,null,null,null,null,null,null,null,null,null,null,null,null,"Biologie Moléculaire"," Fréquence : sur demande du lundi au vendredi\nDélai : 48 heures","-","PCR temps réel",null,null,null,null,"10 400F"]
["LBM","PCR Toxoplasmose","PCTOXP","Toxoplasmose (PCR)","Sang / Biopsie / LBA / LCR / Humeur aqueuse","Tube EDTA (bouchon violet)","violet","-","-","5°C à 25°C","-","< 4 heures","Poudrier stérile","poud",null,"-","5°C à 25°C","-","< 4 heures",null,null,null,null,null,null,"Sous-traitant Laboratoire CERBA","Fréquence : transmis en France une fois par semaine\nDélai : de 15 jours à 1 mois","-","PCR temps réel",4508,null,null,null,"11500F"]
["LBM","PCR Toxoplasmose (prénatal)","PTOXAP","Toxoplasmose (PCR prénatal)","Liquide amniotique / Sang fœtal","Tube EDTA (bouchon violet)","violet","A prélèver idéalement un lundi. \nJoindre les documents dûment complétés : \n- Diagnostic prénatal  prescription et renseignements clinique (GESO-QUA-DO-38).\n- Information et consentement de la femme enceinte à la réalisation du prélèvement et d’examens  en vue d’un diagnostic prénatal in utero (GESO-QUA-DO-39).","Sang fœtal","5°C à 25°C","-","< 4 heures",null,null,null,null,null,null,null,null,null,null,null,null,null,"Sous-traitant Laboratoire CERBA","Fréquence : transmis en France une fois par semaine\nDélai : de 15 jours à 1 mois","-","PCR temps réel",4063,"doc 5","doc 6",null,"B600"]
["LBM","PCR Varicelle - Zona (VZV)","PCVZV","VZV (PCR Varicelle - Zona Virus) ","LCR / Respiratoire / Cutané","Ecouvillon avec milieu de transport","ecouT","Pour les  vésicules : écouvillonner le plancher de la vésicule avec un écouvillon pour PCR (Dacron ou rayon tige plastique) et le replacer dans son étui.","-","5°C à 25°C","-","< 4 heures","Poudrier stérile","poud",null,"-","5°C à 25°C","-","< 4 heures",null,null,null,null,null,null,"Biologie Moléculaire"," Fréquence : sur demande du lundi au vendredi\nDélai : 24 heures","-","PCR temps réel",null,null,null,"OU","15 000F"]
["LBM","PCR Whipple (maladie de) : Trophyrema whipplei","WHIPP","Whipple (PCR Trophyrema whipplei)","Sang","Tube EDTA (bouchon violet)","violet","-","-","5°C à 25°C","-","< 4 heures",null,null,null,null,null,null,null,null,null,null,null,null,null,"Sous-traitant Laboratoire CERBA","Fréquence : transmis en France une fois par semaine\nDélai : de 15 jours à 1 mois","-","PCR temps réel",null,null,null,null,"14310F"]
["LBM","Peau  phanères","PEAU",null,"Peau (lésion séche) ou phanères","2 Ecouvillons (1 sec + 1 gélosé)","ecouecouG","-","-","20°C ± 5°C","-","< 2 heures","écouvillons gélosés","ecouG",null,"-","20°C ± 5°C","-","< 24 heures",null,null,"-","5°C ± 3°C","-","< 12 heures","Bactériologie","Fréquence : du lundi au dimanche  de 7H à 18 heures\nDélai : de 48 heures à 1 semaine","-","Examen direct + Culture Bactérienne",null,null,null,"OU","B110"]
["LBM","Penicilline G","PENIG",null,"Sang","Tube sec (bouchon rouge) ","rouge","1 mL minimum","Sérum","5°C ± 3°C","-","< 6 heures",null,null,null,null,null,null,null,null,null,null,null,null,null,"Toxicologie","Avant 12 heures  hors garde  WE  férié et pont\nDélai : 1 semaine","-","UPLC-DAD","M001",null,null,null,"4850 F"]
["LBM","Peptide natriurétique (BNP)","BNP","BNP","Sang","Tube EDTA dédié à cette analyse (bouchon violet)","violet","Pas de forte hémolyse,  Pas de tubes en verre. Acheminer rapidement au laboratoire","-","5°C à 25°C","-","<4 heures","Tube EDTA dédié à cette analyse (bouchon violet)","violet",null,"Plasma EDTA","2-8°C","-","<24heures",null,null,"Plasma EDTA","-20°C","-",">24heures","Biochimie","tous les jours (24 heures/24)/1h30 urg ou 4h routine","1 jour","Alinity / Méthode : CMIA","1821",null,null,null,"B84"]
["LBM","pH liquide biologique","PHL","pH liquide biologique","Liquide biologique","Poudrier","poud","-","-","5°C à 20°C","-","<24 heures","Poudrier","poud",null,"Liquide biologique","<8°C","-","<8 heures",null,null,null,null,null,null,"Biochimie","tous les jours (24 heures/24)/1h30 urg ou 4h routine","-","bandelettes","-",null,null,null,"/"]
["LBM","pH Urinaire","PHU","pH urinaire","Urine","Tube à urine chimie","brun","-","-","5°C à 20°C","-","<24 heures","Pot à urine","ecbu",null,"urine","5°C à 20°C","-","<24 heures","Pot à urine",null,"urine","<8°C","-","<8 heures","Biochimie","tous les jours (24 heures/24)/1h30 urg ou 4h routine","-","bandelettes","0630",null,null,null,"/"]
["LBM","Phénitoïne","PHENI","Phénitoïne","Sang","Tube sec (bouchon rouge) ","rouge","Pas de forte hémolyse. Ne pas utiliser de tube avec gel séparateur. Préciser la date et l'heure de la dernière prise du médicament, et sa posologie.","-","5°C à 25°C","-","<24 heures","Tube sec (bouchon rouge) ","rouge",null,"Serum décanté congelé","-20°C","-",">24 heures",null,null,null,null,null,null,"Biochimie","tous les jours (24 heures/24)/1h30 urg ou 4h routine","7 jours","Alinity / Méthode : Immunoenzymatique","0332",null,null,null,"B55"]
["LBM","Phénobarbital","PHENO","Phénobarbital","Sang","Tube sec (bouchon rouge) ","rouge","Pas de forte hémolyse. Ne pas utiliser de tube avec gel séparateur. Préciser la date et l'heure de la dernière prise du médicament, et sa posologie.","-","5°C à 25°C","-","<24 heures","Tube sec (bouchon rouge) ","rouge",null,"Serum décanté congelé","-20°C","-",">24 heures",null,null,null,null,null,null,"Biochimie","tous les jours (24 heures/24)/1h30 urg ou 4h routine","7 jours","Alinity / Méthode : PETINIA","0333",null,null,null,"B55"]
["LBM","Phosphatase alcaline (PAL)","ALP","PAL","Sang","Tube hépariné (bouchon vert)","vert","-","-","5°C à 25°C","-","<24 heures","Tube hépariné (bouchon vert)","vert",null,"Plasma hépariné décanté","-20°C","-",">24 heures",null,null,null,null,null,null,"Biochimie","tous les jours (24 heures/24)/1h30 urg ou 4h routine","7 jours","Alinity / Méthode : Para-nitrophényl phosphate","0514",null,null,null,"B7"]
["LBM","Phosphore (P)","P","Phosphore (P)","Sang","Tube hépariné (bouchon vert)","vert","-","-","5°C à 25°C","-","<24 heures","Tube hépariné (bouchon vert)","vert",null,"Plasma hépariné décanté","-20°C","-",">24 heures",null,null,null,null,null,null,"Biochimie","tous les jours (24 heures/24)/1h30 urg ou 4h routine","1 jour","Alinity","0563",null,null,null,"B7"]
["LBM","Phosphore (P) urinaire","PU","Phosphore (P) urinaire","Urine","Tube à urine chimie","brun","En cas d'envoi différé, acidifier les urines à pH<5.","-","5°C à 25°C","-","<24 heures","Pot à urine","ecbu",null,"urine","5°C à 25°C","-","<24 heures","Pot à urine",null,"urine","<8°C","-",">24 heures","Biochimie","tous les jours (24 heures/24)/4h","2 jours","Alinity","0629",null,null,null,"B7"]
["LBM","Phosphore (P) urinaire 24h","P24","Phosphore (P) urinaire 24h","Urine des 24 heures","Tube à urine chimie","brun","Au lever  éliminer les premières urines. Ensuite  recueillir la totalité des urines pendant 24 heures. Noter la diurèse. Recueillir les échantillons d'urine dans un flacon contenant 20 à 30 mL d'HCl à 6N afin \nd'éviter une précipitation des complexes de phosphate. (pH <5)","-","5°C à 25°C","-","<24 heures","Pot à urine","ecbu",null,"Urine des 24H ","5°C à 25°C","-","<24 heures","Pot à urine",null,"Urine des 24H ","<8°C","-",">24 heures","Biochimie","tous les jours (24 heures/24)/4h","2 jours","Alinity","0629",null,null,null,"B7"]
["LBM","Piperacilline","PIPE",null,"Sang","Tube sec (bouchon rouge) ","rouge","1 mL minimum","Sérum","5°C ± 3°C","-","< 6 heures",null,null,null,null,null,null,null,null,null,null,null,null,null,"Toxicologie","Avant 12 heures  hors garde  WE  férié et pont\nDélai : 1 semaine","-","UPLC-DAD","M001",null,null,null,"4850 F"]
["LBM","Placenta ","PLACE",null,"Placenta","Poudrier stérile","poud","-","-","20°C ± 5°C","-","< 2 heures",null,null,null,"-","5°C ± 3°C","-","< 12 heures",null,null,null,null,null,null,"Bactériologie","Fréquence : du lundi au dimanche  \nde 7H à 18 heures\nDélai : de 48 heures à 10 jours (recherche de Listeria)","-","Examen direct + Culture Bactérienne",null,null,null,null,"B100"]
["LBM","Plaie  tissu ou suintement","PLAIE",null,"Plaie suintement ou écoulement / prélèvement tissulaire niopsique","2 Ecouvillons (1 sec + 1 gélosé)","ecouecouG","-","-","20°C ± 5°C","-","< 2 heures","écouvillons gélosés","ecouG",null,"-","20°C ± 5°C","-","< 24 heures",null,null,"-","5°C ± 3°C","-","< 12 heures","Bactériologie","Fréquence : du lundi au dimanche  \nde 7H à 18 heures \nDélai : de 48 heures à 1 semaine","-","Examen direct + Culture Bactérienne",null,null,null,"OU","B120"]
["LBM","Pneumallergènes: mélange","PHAD","Phadiatop","Sang","Tube sec (bouchon rouge) ","rouge","-","-","5°C à 20°C","-","<24 heures","Tube sec (bouchon rouge) ","rouge",null,"Serum décanté congelé","-20°C","-",">24 heures",null,null,null,null,null,null,"Biochimie","1 fois par semaine","7 Jours","ELIA Phadia","1201",null,null,null,"B51"]
["LBM","Pneumocoque (LCR) : Ag solubles  ","AGPNOL",null,"LCR","Poudrier stérile","poud","-","-","20°C ± 5°C","-","< 2 heures",null,null,null,"-","5°C ± 3°C","-","< 12 heures",null,null,null,null,null,null,"Bactériologie","Fréquence : 24 heures sur 24  7j sur 7 \nDélai : 2 heures","-","Immunochromatographie",null,null,null,null,"B100"]
["LBM","Pneumocoque (streptococcus pneumoniae) sérologie contrôle d'immunité","PNOSP","PNO (streptococcus pneumoniae Sérologie immunité)","Sang","Tube sec (bouchon rouge) ","rouge","-","-","5°C à 25°C","-","< 4 heures",null,null,null,null,null,null,null,null,null,null,null,null,null,"Sous-traitant Laboratoire CERBA","Fréquence : transmis en France une fois par semaine\nDélai : de 15 jours à 1 mois","-","EnzymoImmunoanalyse",null,null,null,null,"3700F"]
["LBM","Pneumocoque (Urine) : Ag solubles  ","AGPNO",null,"Urine","Pot à urine stérile","ecbu","Analyse non réalisée pour le service des urgences (sauf justification et appel du médecin)","-","20°C ± 5°C","-","< 2 heures",null,null,null,"-","5°C ± 3°C","-","< 12 heures",null,null,null,null,null,null,"Bactériologie","Fréquence : 24 heures sur 24  7j sur 7 \nDélai : 2 heures","-","Immunochromatographie",null,null,null,null,"B100"]
["LBM","Poche Transfusion Sang","PRODS",null,"Produit Sanguin","Poche tubulure et boudin","PSL","-","-","20°C ± 5°C","-","< 4 heures",null,null,null,null,null,null,null,null,null,null,null,null,null,"Bactériologie","Fréquence : 24 heures sur 24  7j sur 7 \nDélai : de 48 heures à 1 semaine","-","Examen direct + Culture Bactérienne",null,null,null,null,"B85 par échantillon"]
["LBM","Poliovirus sérologie contrôle d'immunité","SPOLP","Poliovirus (Sérologie immunité)","Sang","Tube sec (bouchon rouge) ","rouge","-","-","5°C à 25°C","-","< 4 heures",null,null,null,null,null,null,null,null,null,null,null,null,null,"Sous-traitant Laboratoire CERBA","Fréquence : transmis en France une fois par semaine\nDélai : de 15 jours à 1 mois","-","Séroneutralisation",1720,null,null,null,"B150"]
["LBM","Ponction épididymaire","x","PE","Liquide épididymaire","Tube OOSAFE 5 ml","oosafe5+02","Tel 8392 laboratoire de BDR dès que le patient est anesthésié\n\nUtiliser une seringue / trocart à ailettes pour le prélèvement\n\nVérifier la présence de 0,2 mL de GMOPS+ dans le tube OOSAFE 5mL","Spermatozoides","20 ± 5°C","Transport avec mallette température ambiante","≤ 15 minutes","Tube OOSAFE 5 ml",null,null,"Spermatozoides","34°C ± 1°C","Transport avec mallette température ambiante","≤ 15 minutes",null,null,null,null,null,null,"BDR","Fréquence: 5j/7j Délai: immédiat",null,"Examen direct",null,"doc 20",null,null,"BAMP 500"]
["LBM","Ponction ovocytaire","x","PO","Liquide folliculaire","Tube OOSAFE 14ml","oosafe14","Tel 8392 laboratoire de BDR en fin de ponction \n\nUtiliser le kit de ponction COOK pour le prélèvement\n\nVérifier la présence de 5mL de GRINSE dans le tube OOSAFE 14mL","Complexes cumulo ovocytaires","37°C ± 1°C","Transport avec mallette chauffante 37°C","≤ 15 minutes",null,null,null,null,null,null,null,null,null,null,null,null,null,"BDR","Fréquence: 5j/7j Délai: immédiat",null,"Examen direct",null,"doc 19",null,null,"BAMP 1600/BAMP 2800"]
["LBM","Potassium  (K) ionogramme","K","Kaliémie","Sang","Tube hépariné (bouchon vert)","vert","Pas d'hémolyse  acheminer rapidement au laboratoire","-","5°C à 25°C","-","<8 heures","Tube hépariné (bouchon vert)","vert",null,"Plasma hépariné décanté","-20°C","-",">8 heures",null,null,null,null,null,null,"Biochimie","tous les jours (24 heures/24)/1h30 urg ou 4h routine","7 jours si décanté","Alinity / Méthode : Electrodes sélectives ","1608",null,null,null,"B7"]
["LBM","Potassium  (K) urinaire","KU","Kaliurie","Urine","Tube à urine chimie","brun","-","-","5°C à 25°C","-","<24 heures","Pot à urine","ecbu",null,"urine","5°C à 25°C","-","<24 heures","Pot à urine",null,"urine","<8°C","-",">24 heures","Biochimie","tous les jours (24 heures/24)/4h","7 jours","Alinity / Méthode : Electrodes sélectives","2006",null,null,null,"B7"]
["LBM","Potassium  (K) urinaire 24h","K24","Kaliurie 24h","Urine des 24 heures","Tube à urine chimie","brun","Au lever  éliminer les premières urines. Ensuite  recueillir la totalité des urines pendant 24 heures. Noter la diurèse.","-","5°C à 25°C","-","<24 heures","Pot à urine","ecbu",null,"Urine des 24H ","5°C à 25°C","-","<24 heures","Pot à urine",null,"Urine des 24H ","<8°C","-",">24 heures","Biochimie","tous les jours (24 heures/24)/4h","7 jours","Alinity / Méthode : Electrodes sélectives","2006",null,null,null,"B7"]
["LBM","Préalbumine","PREAL","PREALB","Sang","Tube sec (bouchon rouge) ","rouge","-","-","5°C à 25°C","-","<24 heures","Tube sec (bouchon rouge) ","rouge",null,"Serum décanté congelé","-20°C","-",">24 heures",null,null,null,null,null,null,"Biochimie","tous les jours (24 heures/24)/1h30 urg ou 4h routine","3 jours","Alinity / Méthode : Immunoturbidimétrie","1817",null,null,null,"B20"]
["LBM","Procalcitonine","PCT","PCT","Sang","Tube sec (bouchon rouge) ","rouge","-","-","<8°C","-","<24 heures","Tube sec (bouchon rouge) ","rouge",null,"Serum décanté congelé","-20°C","-",">24 heures",null,null,null,null,null,null,"Biochimie","tous les jours (24 heures/24)/1h30 urg ou 4h routine","12 heures","KRYPTOR S Plus","7307",null,null,null,"B80"]
["LBM","Progestérone","PRG","Progestérone","Sang","Tube sec (bouchon rouge) ","rouge","Dans le cadre de FIV  dosage réalisé hors horaires habituels","-","<8°C","-","<24 heures","Tube sec (bouchon rouge) ","rouge",null,"Serum décanté congelé","-20°C","-",">24 heures",null,null,null,null,null,null,"Biochimie","1 fois par semaine (hors FIV, demande motivée)","3 jours","EIA Vidas","0334",null,null,null,"B51"]
["LBM","Prolactine","PRL","Prolactine","Sang","Tube sec (bouchon rouge) ","rouge","Prélever le matin à jeun, après un repos de 20 minutes, en dehors de tout stress. Acheminer au laboratoire directement après prélèvement. Renseigner l'heure de prélèvement.","-","<8°C","-","<24 heures","Tube sec (bouchon rouge) ","rouge",null,"Serum décanté congelé","-20°C","-",">24 heures",null,null,null,null,null,null,"Biochimie","2 fois par semaine/ délai max : 5 jours","-","Alinity / Méthode : CMIA","0343",null,null,null,"B51"]
["LBM","Protéine C activité","PRC",null,"Sang ","Tube Citrate 9NC (bouchon bleu)","bleu","Traitement Anticoagulant obligatoire","Sang total","20°C ± 5°C","-","< 4 heures",{"$f":"F410","v":"Tube Citrate 9NC (bouchon bleu)"},null,null,"Plasma décanté","20°C ± 5°C","Centrifugation dans les 4h suivant le prélèvement","< 4 heures",{"$f":"M410","v":"Tube Citrate 9NC (bouchon bleu)"},{"$f":"O410","v":0},"Plasma décanté","-20°C","Centrifugation et congélation dans les 4h suivant le prélèvement","Aucun","Hématologie biologique","Réalisé en série\nDélai: 1 à 15 jours","4 heures","Chronométrie",191,null,null,null,"B50"]
["LBM","Protéine C amidolytique","PCAMI","Angiostrongylose (PCR Angiostrongylus cantonensis)","Sang ","Tube Citrate 9NC (bouchon bleu)","bleu","Traitement Anticoagulant obligatoire","Sang total","20°C ± 5°C","-","< 4 heures",{"$f":"F411","v":"Tube Citrate 9NC (bouchon bleu)"},null,null,"Plasma décanté","20°C ± 5°C","Centrifugation  dans les 4h suivant le prélèvement","< 4 heures",{"$f":"M411","v":"Tube Citrate 9NC (bouchon bleu)"},{"$f":"O411","v":0},"Plasma décanté","-20°C","Centrifugation et congélation dans les 4h suivant le prélèvement","Aucun","Hématologie biologique","Réalisé en série\nDélai: 1 à 15 jours","4 heures","Colorimétrie",1027,null,null,null,"B50"]
["LBM","Protéine C réactive (CRP)","CRPG","CRP","Serum","Tube sec (bouchon rouge) ","rouge","-","-","5°C à 25°C","-","<24 heures","Tube sec (bouchon rouge) ","rouge",null,"Serum décanté congelé","-20°C","-",">24 heures",null,null,null,null,null,null,"Biochimie","tous les jours (24 heures/24)/1h30 urg ou 4h routine","7 jours","Alinity / Méthode : Turbidimétrique/Immuno-turbidimétrique","1804",null,null,null,"B10"]
["LBM","Protéine S activité","ACPS",null,"Sang ","Tube Citrate 9NC (bouchon bleu)","bleu","Traitement Anticoagulant obligatoire","Sang total","20°C ± 5°C","-","< 4 heures",{"$f":"F413","v":"Tube Citrate 9NC (bouchon bleu)"},null,null,"Plasma décanté","20°C ± 5°C","Centrifugation dans les 4h suivant le prélèvement","< 4 heures",{"$f":"M413","v":"Tube Citrate 9NC (bouchon bleu)"},{"$f":"O413","v":0},"Plasma décanté","-20°C","Centrifugation et congélation dans les 4h suivant le prélèvement","Aucun","Hématologie biologique","Réalisé en série\nDélai: 1 à 15 jours","4 heures","Chronométrie",1026,null,null,null,"B50"]
["LBM","Protéine S Antigène Libre","FREEPS",null,"Sang ","Tube Citrate 9NC (bouchon bleu)","bleu","Traitement Anticoagulant obligatoire","Sang total","20°C ± 5°C","-","< 4 heures",{"$f":"F414","v":"Tube Citrate 9NC (bouchon bleu)"},null,null,"Plasma décanté","20°C ± 5°C","Centrifugation dans les 4h suivant le prélèvement","< 4 heures",{"$f":"M414","v":"Tube Citrate 9NC (bouchon bleu)"},{"$f":"O414","v":0},"Plasma décanté","-20°C","Centrifugation et congélation dans les 4h suivant le prélèvement","Aucun","Hématologie biologique","Réalisé en série\nDélai: 1 à 15 jours","4 heures","Immuno-turbidimétrie",1025,null,null,null,"B50"]
["LBM","Protéinurie de Bence Jones/ Immuno-électrophorèse urinaire","IFIXU","Bence Jones","Urine des 24 heures","Pot à urines","ecbu","Echantillon homogénéisé. Noter la diurèse. Préférer les urines de 24 heures.","-","5°C à 20°C","-","<24 heures","Pot à urine","ecbu",null,"Urine des 24H ","<8°C","-",">24 heures","Pot à urine",null,null,null,null,null,"Biochimie","1 fois par semaine","-","Hydrasis gel","1619",null,null,null,"B180"]
["LBM","Protides","PROT","Protéines totales","Sang","Tube sec (bouchon rouge) ","rouge","pas d'hémolyse forte. ","-","5°C à 25°C","-","<24 heures","Tube sec (bouchon rouge) ","rouge",null,"Serum décanté","-20°C","-",">24 heures",null,null,null,null,null,null,"Biochimie","tous les jours (24 heures/24)/1h30 urg ou 4h routine","7 jours","Alinity / Méthode : Biuret","2258",null,null,null,"B7"]
["LBM","Protides sur LCR","PRTC","Protéinorachie","LCR","Poudrier","poud","Acheminer au laboratoire directement après prélèvement","-","5°C à 25°C","-","<1 heure","Poudrier","poud",null,"LCR ","-20°C","-",">24 heures",null,null,null,null,null,null,"Biochimie","tous les jours (24 heures/24)/1h30 urg ou 4h routine","1 jour","Alinity / Méthode : turbidimétrie","1613",null,null,null,"B9"]
["LBM","Protides sur liquide biologique","PRTL","Protéines sur liquide biologique","Liquide biologique","Poudrier","poud","-","-","5°C à 25°C","-","<24 heures","Poudrier","poud",null,"Liquide biologique","<8°C","-",">24 heures",null,null,null,null,null,null,"Biochimie","tous les jours (24 heures/24)/1h30 urg ou 4h routine","1 jour","Alinity / Méthode : turbidimétrie","0691",null,null,null,"B9"]
["LBM","Protides urinaire","PROTU","Protéinurie","Urine","Tube à urine chimie","brun","-","-","5°C à 25°C","-","<24 heures","Pot à urine","ecbu",null,"Urine","5°C à 25°C","-","<24 heures","Pot à urine",null,"Urine","<8°C","-",">24 heures","Biochimie","tous les jours (24 heures/24)/1h30 urg ou 4h routine","1 jour","Alinity / Méthode : turbidimétrie","2004",null,null,null,"B4"]
["LBM","Protides urinaire 24h","PRT24","Protéinurie 24h","Urine des 24 heures","Tube à urine chimie","brun","Au lever  éliminer les premières urines. Ensuite  recueillir la totalité des urines pendant 24 heures. Noter la diurèse. Conserver au frais le temps du recueil.","-","5°C à 25°C","-","<24 heures","Pot à urine","ecbu",null,"Urine des 24H ","<8°C","-",">24 heures","Pot à urine",null,"Urine des 24H ","<8°C","-",">24 heures","Biochimie","tous les jours (24 heures/24)/1h30 urg ou 4h routine","1 jour","Alinity / Méthode : turbidimétrie","2004",null,null,null,"B4"]
["LBM","PSA libre ","PSALT","PSA Libre","Sang","Tube sec (bouchon rouge)","rouge","Pas de forte hémolyse. Prévoir une quantité suffisante pour la sérothèque.","-","5°C à 25°C","-","<2 heures",null,null,null,"Sérum décanté congelé","-20°C","-",">24 heures",null,null,null,null,null,null,"Biochimie","2 fois par semaine/ délai max : 5 jours","1 jour","Alinity / Méthode : CMIA",7320,null,null,null,"B70"]
["LBM","PSA total","PSA","PSA total","Sang","Tube sec (bouchon rouge)","rouge","En cas de taux > à la normale un dosage du PSA libre sera réalisé. Pas de forte hémolyse. Prévoir une quantité suffisante pour la sérothèque.","-","5°C à 25°C","-","<2 heures",null,null,null,"Sérum décanté congelé","-20°C","-",">24 heures",null,null,null,null,null,null,"Biochimie","2 fois par semaine/ délai max : 5 jours","1 jour","Alinity / Méthode : CMIA",7318,null,null,null,"B41"]
["LBM","Quantiferon","QFERON","IGRA (Quantiferon)","Sang","2 tubes héparinés","vert","Remplir le \"Bon de demande Test quantiferon\" (GESO-LABO-DO-30).\nPrélèvement à transmettre du lundi au jeudi avant 17h.","-","5°C à 25°C","-","< 4 heures",null,null,null,null,null,null,null,null,null,null,null,null,null,"Immuno-Sérologie","Fréquence : 1 fois par semaine le vendredi","-","EnzymoImmunoanalyse",4103,"doc 12",null,null,"B200"]
["LBM","Recherche de microfilaires","FILA",null,"Sang total "," Tube EDTA (bouchon violet)","violet","Prélèvement à 12 heures. Préciser si notion de voyage ou de séjour à l’étranger (dates)  lieu  date de début des symptômes.","Sang total","20°C ± 5°C","-","< 12 heures",null,null,null,null,null,null,null,null,null,null,null,null,null,"Hématologie biologique","7J/7  24H/24\nUrgence: 1h00\nDélai max: 24h","-","Cytologie\nMicroscopie",1105,null,null,null,"B100"]
["LBM","Recherche de paludisme","PALU",null,"Sang total \n"," Tube EDTA (bouchon violet)","violet","Prélèvement au moment d'un pic fébrile.\nPréciser si notion de voyage  séjour à l’étranger (dates)  lieu  date de début des symptômes  prophylaxie.","Sang total","20°C ± 5°C","-","< 12 heures",null,null,null,null,null,null,null,null,null,null,null,null,null,"Hématologie biologique","7J/7  24H/24\nUrgence: 1h00\nDélai max: 24h","-","Immunochromatographie- Cytologie\nMicroscopie",1105,null,null,null,"B100"]
["LBM","Recherche de Sang","SGF","Sang dans les selles","Selles","Pot à coproculture ","copro","Uniquement sur selles solides","-","5°C à 20°C","-","<24 heures","Pot à coproculture ","copro",null,"Selles","<8°C","-",">24 heures",null,null,null,null,null,null,"Biochimie","3 fois par semaine / délai max : 72h","-","Immuno-chromathographie (FOBPLUS)","1629",null,null,null,"B20"]
["LBM","Recherche de schizocytes","SCHIZ",null,"Sang total \n"," Tube EDTA (bouchon violet)","violet","Peut être réalisé sur le même tube que la NFS.","Sang total","20°C ± 5°C","-","< 12 heures",null,null,null,null,null,null,null,null,null,null,null,null,null,"Hématologie biologique","7J/7  24H/24\nUrgence: 1h00\nDélai max: 24h","-","Cytologie\nMicroscopie",1105,null,null,null,"B100"]
["LBM","Recherche de toxiques dans le lait maternel","TOXL",null,"Lait maternel","-",null,"1 mL minimum - analyse qualitative","-","5°C ± 3°C","-","< 6 heures",null,null,null,null,null,null,null,null,null,null,null,null,null,"Toxicologie","Avant 12 heures  hors garde  WE  férié et pont\nDélai : 1 semaine","-","UPLC-DAD",null,null,null,null,"HN 35000 F"]
["LBM","Recherche de toxiques dans les liquides biologiques","TOXL",null,"Liquides biologiques","-",null,"1 mL minimum - analyse qualitative","-","5°C ± 3°C","-","< 6 heures",null,null,null,null,null,null,null,null,null,null,null,null,null,"Toxicologie","Avant 12 heures  hors garde  WE  férié et pont\nDélai : 1 semaine","-","UPLC-DAD",null,null,null,null,"HN 35000 F"]
["LBM","Recherche de toxiques Sanguins","TOXS",null,"Sang","Tube sec (bouchon rouge)","rouge","4 mL minimum - analyse qualitative","Sérum","5°C ± 3°C","-","< 6 heures","Tube hépariné (bouchon vert)","vert",null,"Plasma","5°C ± 3°C","-","< 6 heures",null,null,null,null,null,null,"Toxicologie","Avant 12 heures  hors garde  WE  férié et pont\nDélai : 1 semaine","-","UPLC-DAD",null,null,null,null,"HN 35000 F"]
["LBM","Recherche de toxiques urinaires","TOXUC",null,"Urine","Pot à urine","ecbu","1 mL minimum - analyse qualitative","-","5°C ± 3°C","-","< 6 heures",null,null,null,null,null,null,null,null,null,null,null,null,null,"Toxicologie","Avant 12 heures  hors garde  WE  férié et pont\nDélai : 1 semaine","-","UPLC-DAD",null,null,null,null,"HN 35000 F"]
["LBM","Recherche de toxiques urinaires rapide","CRIB","Dépistage toxiques urinaires rapide","Urine","Pot à urine","ecbu","-","-","5°C ± 3°C","-","< 6 heures",null,null,null,null,null,null,null,null,null,null,null,null,null,"biochimie","tous les jours 24heures/24","-","Immunochromatographie","-",null,null,null,"HN 10000 F"]
["LBM","Recherche d'un Anti-Facteur VIII ou  IX + Titrage (si positif)","ANT8R",null,"Sang ","Tube Citrate 9NC (bouchon bleu)","bleu","Traitement Anticoagulant obligatoire","Sang total","20°C ± 5°C","-","< 2 heures",{"$f":"F433","v":"Tube Citrate 9NC (bouchon bleu)"},null,null,"Plasma décanté","-20°C","Centrifugation et congélation dans les 2h suivant le prélèvement","Aucun",null,null,"urine","<8°C","-",">24 heures","Hématologie biologique","Délai max: 15 jours\nEn cas d'urgence  contacter le laboratoire ","2 heures","Bethesda modifiée - chronométrie","1018+1019",null,null,null,"B100+B200"]
["LBM","Réticulocytes","RETIC",null,"Sang total \n"," Tube EDTA (bouchon violet)","violet","Peut être réalisé sur le même tube que la NFS.","Sang total","20°C ± 5°C","-","< 12 heures",null,null,null,null,null,null,null,null,null,null,null,null,null,"Hématologie biologique","7J/7  24H/24\nUrgence: 1h00\nDélai max: 24h","-","Impédance - Photométrie- Fluorescence \nCytométrie en flux - Microscopie",1109,null,null,null,"B20"]
["LBM","Rickettsioses sérologie","RICKP","Rickettsiose (Sérologie Rickettsie)","Sang","Tube sec (bouchon rouge) ","rouge","-","-","5°C à 25°C","-","< 4 heures",null,null,null,null,null,null,null,null,null,null,null,null,null,"Sous-traitant Laboratoire CERBA","Fréquence : transmis en France une fois par semaine\nDélai : de 15 jours à 1 mois","-","Immunofluorescence",1318,null,null,null,"B40"]
["LBM","Rotavirus ","GEV","Rotavirus (test rapide bandelette)","Selles","Pot à coproculture","copro","La recherche de virus responsable de gastro-entérite virale est possible sur les selles conservées \nà 5°C ± 3°C jusqu'à un maximum de 24 heures.","-","5°C à 25°C","-","< 2 heures",null,null,null,null,null,null,null,null,null,null,null,null,null,"Biologie Moléculaire","Fréquence : du lundi au vendredi\nDélai : 24 heures à 5 jours","-","Immunochromatographie",4267,null,null,null,"B70"]
["LBM","Rougeole contrôle d'immunité IgG","ROUCI","Rougeole (Sérologie contrôle immunité IgG)","Sang","Tube sec (bouchon rouge) ","rouge","En cas de demande urgente contacter le biologiste.","-","5°C à 25°C","-","< 4 heures",null,null,null,null,null,null,null,null,null,null,null,null,null,"Immuno-Sérologie","Fréquence : 1 fois par semaine  le lundi\nDélai : 7 jours","-","EnzymoImmunoanalyse",1770,null,null,null,"B70"]
["LBM","Rougeole sérologie (IgG + IgM)","ROU","Rougeole (Sérologie IgG + IgM)","Sang","Tube sec (bouchon rouge) ","rouge","En cas de demande urgente contacter le biologiste.","-","5°C à 25°C","-","< 4 heures",null,null,null,null,null,null,null,null,null,null,null,null,null,"Immuno-Sérologie","Fréquence : 1 fois par semaine  le lundi\nDélai : 7 jours","-","EnzymoImmunoanalyse",1768,null,null,null,"B120"]
["LBM","Rubéole sérologie IgG","RUB","Rubéole (Sérologie IgG statut)","Sang","Tube sec (bouchon rouge) ","rouge","-","-","5°C à 25°C","-","< 4 heures",null,null,null,null,null,null,null,null,null,null,null,null,null,"Immuno-Sérologie","Fréquence : du lundi au vendredi \nDélai : 24 h","-","Chimiluminescence",1773,null,null,null,"B40"]
["LBM","Rubéole sérologie IgG + IgM","RUBGM","Rubéole (Sérologie IgG + IgM infection)","Sang","Tube sec (bouchon rouge) ","rouge","-","-","5°C à 25°C","-","< 4 heures",null,null,null,null,null,null,null,null,null,null,null,null,null,"Immuno-Sérologie","Fréquence : du lundi au vendredi \nDélai : 24 h","-","Chimiluminescence","1773 + 3783",null,null,null,"B40 + B50"]
["LBM","Salmonella (fièvre typhoide) sérologie de Widal et Félix","WIDP","Salmonella ( Sérologie de Widal et Félix fièvre typhoide)","Sang","Tube sec (bouchon rouge) ","rouge","-","-","5°C à 25°C","-","< 4 heures",null,null,null,null,null,null,null,null,null,null,null,null,null,"Sous-traitant Laboratoire CERBA","Fréquence : transmis en France une fois par semaine\nDélai : de 15 jours à 1 mois","-","Agglutination",1319,null,null,null,"B40"]
["LBM","Schistosome (Bilharzie)","BMR",null,"Biopsie muqueuse rectale","Poudrier","poud","Préciser le pays d'endémie visité et la durée du séjour.","-","20°C ± 5°C","-","< 4 heures","Urines",null,null,null,"20°C ± 5°C","-","< 4 heures",null,null,null,null,null,null,"Bactériologie","Fréquence : du lundi au vendredi  \nde 7H à 18 heures\nDélai : 1 jour","-","Examen direct",null,null,null,null,"B25"]
["LBM","Sérologie SARS-CoV-2 IgG anti-S (contrôle d'immunité)","SCOVI","COVID (Sérologie SARS-CoV-2 IgG anti-S immunité COVID19)","Sang","Tube sec (bouchon rouge) ","rouge","renseignement obligatoire : antécédent de vaccination et contexte clinique","-","5°C à 25°C","-","< 4 heures",null,null,null,null,null,null,null,null,null,null,null,null,null,"Immuno-Sérologie","Fréquence: minimum 1 fois par semaine \nA la demande si résultat urgent","-","EnzymoImmunoanalyse",null,null,null,null,"4160F"]
["LBM","Sérologie SARS-CoV-2 IgM","ENVCER","SARS-CoV-2 (Sérologie COVID IgM)","Sang","Tube sec (bouchon rouge) ","rouge","renseignement obligatoire : antécédent de vaccination et contexte clinique","-","5°C à 25°C","-","< 4 heures",null,null,null,null,null,null,null,null,null,null,null,null,null,"Sous-traitant Laboratoire CERBA","transmis en France une fois par semaine\ndélai : 15 jours à 1 mois","-","EnzymoImmunoanalyse",null,null,null,null,"-"]
["LBM","Sinus ","PONSIN",null,"Ponction de sinus","Poudrier stérile (ponction de lavage)","poud","-","-","20°C ± 5°C","-","< 2 heures",null,null,null,"-","5°C ± 3°C","-","< 12 heures",null,null,null,null,null,null,"Bactériologie","Fréquence : 24 heures sur 24  7j sur 7 \nDélai : de 48 heures à 1 semaine","-","Examen direct + Culture Bactérienne",null,null,null,null,"B200"]
["LBM","Sirolimus","SIRO","Sirolimus","Sang","Tube EDTA (bouchon violet)","violet","-","-","5°C à 25°C","-","<24 heures","Tube EDTA (bouchon violet)","violet",null,"Sang total EDTA","2-8°C","-",">24 heures",null,null,null,null,null,null,"Biochimie","1 fois par semaine (ou 24h si demande urgente motivée )","7 jours","Alinity / Méthode : CMIA","1377",null,null,null,"B70"]
["LBM","Sodium  (NA) ionogramme","NA","Natrémie","Sang","Tube hépariné (bouchon vert)","vert","-","-","5°C à 25°C","-","<8 heures","Tube hépariné (bouchon vert)","vert",null,"Plasma hépariné décanté","-20°C","-",">8 heures",null,null,null,null,null,null,"Biochimie","tous les jours (24 heures/24)/1h30 urg ou 4h routine","7 jours si décanté","Alinity / Méthode : Electrodes sélectives ","1609",null,null,null,"B13 iono"]
["LBM","Sodium  (NA) sur liquide biologique","NAL","Na+ liquide biologique","Liquide biologique","Poudrier","poud","-","-","5°C à 25°C","-","<24 heures","Poudrier","poud",null,"Liquide biologique","<8°C","-",">24 heures",null,null,null,null,null,null,"Biochimie","tous les jours (24 heures/24)/4h","7 jours","Alinity / Méthode : Electrodes sélectives ","-",null,null,null,"B13"]
["LBM","Sodium  (NA) urinaire","NAU","Natriurie","Urine","Tube à urine chimie","brun","-","-","5°C à 25°C","-","<24 heures","Pot à urine","ecbu",null,"urine","5°C à 25°C","-","<24 heures","Pot à urine",null,"urine","<8°C","-",">24 heures","Biochimie","tous les jours (24 heures/24)/4h","7 jours","Alinity / Méthode : Electrodes sélectives","2005",null,null,null,"B13"]
["LBM","Sodium  (NA) urinaire 24h","NA24","Natriurie 24h","Urine des 24 heures","Tube à urine chimie","brun","-","-","5°C à 25°C","-","<24 heures","Pot à urine","ecbu",null,"Urine des 24H ","5°C à 25°C","-","<24 heures","Pot à urine",null,"Urine des 24H ","<8°C","-",">24 heures","Biochimie","tous les jours (24 heures/24)/4h","7 jours","Alinity / Méthode : Electrodes sélectives","2005",null,null,null,"B13"]
["LBM","Sperme ","SPERME",null,"Sperme","Poudrier stérile","poud","-","-","20°C ± 5°C","-","< 2 heures",null,null,null,"-","5°C ± 3°C","-","< 12 heures",null,null,null,null,null,null,"Bactériologie","Fréquence : du lundi au dimanche  \nde 7H à 18 heures\nDélai : de 48 heures à 1 semaine","-","Examen direct + Culture Bactérienne",null,null,null,null,"B90"]
["LBM","Strepto B ","STREPB",null,"Prélèvement vaginal","2 Ecouvillons (1 sec + 1 gélosé)","ecouecouG","Inclus dans l'analyse PV si mention \"grossesse\".","-","20°C ± 5°C","-","< 2 heures","écouvillons gélosés","ecouG",null,"-","20°C ± 5°C","-","< 24 heures",null,null,"-","5°C ± 3°C","-","< 12 heures","Bactériologie","Fréquence : du lundi au dimanche  \nde 7H à 18 heures \nDélai : 72 heures","-","Examen direct + Culture Bactérienne",null,null,null,"OU","B60"]
["LBM","Synthèse intrathécale d’IGG transsudation","INDEXB","Isoélectrofocalisation LCR","LCR + Sang","Pot à urine","poud","Acheminer au laboratoire directement après prélèvement","LCR","5°C à 20°C","-","-","Tube sec (bouchon rouge)","rouge",null,"serum","5°C à 20°C",null,"< 24 heures","Poudrier et tube rouge",null,"LCR et Sérum congelés","Congélation -20°C","sérum à décanter",">24 heures","Biochimie","délai max : 2 Semaines","-","Alinity / Hydrasis","0611",null,null,null,"B70"]
["LBM","Syphilis IgM","TREP","Syphilis (IgM treponema pallidum)","Sang","Tube sec (bouchon rouge) ","rouge","-","-","5°C à 25°C","-","< 4 heures",null,null,null,null,null,null,null,null,null,null,null,null,null,"Immuno-Sérologie","Fréquence: minimum 1 fois par semaine \nDélai : 1 semaine maximum","-","EnzymoImmunoanalyse",1330,null,null,null,"B60"]
["LBM","Syphilis sérologie de dépistage","BW","Sérologie (TPHA/VDRL) ","Sang","Tube sec (bouchon rouge) ","rouge","-","-","5°C à 25°C","-","< 4 heures",null,null,null,null,null,null,null,null,null,null,null,null,null,"Immuno-Sérologie","Fréquence : du lundi au vendredi \nDélai : 24 h","-","TPHA + VDRL",1327,null,null,null,"B20"]
["LBM","T3 libre","FT3","FT3","Sang","Tube sec (bouchon rouge)","rouge","-","-","5°C à 25°C","-","<24 heures","Tube sec (bouchon rouge)","rouge",null,"Sérum décanté congelé","-20°C","-",">24 heures",null,null,null,null,null,null,"Biochimie","tous les jours (24 heures/24)/1h30 urg ou 6h routine","6 jours si décanté","Alinity / Méthode : CMIA","1206",null,null,null,"B33"]
["LBM","T4 libre","FT4","FT4","Sang","Tube sec (bouchon rouge)","rouge","-","-","5°C à 25°C","-","<24 heures","Tube sec (bouchon rouge)","rouge",null,"Sérum décanté congelé","-20°C","-",">24 heures",null,null,null,null,null,null,"Biochimie","tous les jours (24 heures/24)/1h30 urg ou 6h routine","6 jours si décanté","Alinity / Méthode : CMIA","1207",null,null,null,"B33"]
["LBM","Tacrolimus","TACRO","Tacrolimus","Sang","Tube EDTA (bouchon violet)","violet","-","-","5°C à 25°C","-","<24 heures","Tube EDTA (bouchon violet)",null,null,"Sang total EDTA","-20°C","-",">24 heures",null,null,null,null,null,null,"Biochimie","tous les jours (24 heures/24)/1h30 urg ou 4h routine","7 jours","Alinity / Méthode : CMIA","1377",null,null,null,"B70"]
["LBM","Taux de prothrombine (TP/INR)","TP",null,"Sang ","Tube Citrate 9NC (bouchon bleu)","bleu","Traitement Anticoagulant obligatoire\nPréciser l'heure de prélèvement","Sang total","20°C ± 5°C","-","< 24 heures",{"$f":"F459","v":"Tube Citrate 9NC (bouchon bleu)"},null,null,"Plasma décanté","20°C ± 5°C",{"$f":"K459","v":"-"},"< 24 heures",{"$f":"M459","v":"Tube Citrate 9NC (bouchon bleu)"},{"$f":"O459","v":0},{"$f":"P459","v":"Plasma décanté"},"-20°C",{"$f":"R459","v":"-"},"Aucun","Hématologie biologique","7J/7  24h/24\nUrgence: 1h30 \nDélai max: 4h","24 heures","Chronométrie","126/127",null,null,null,"B20"]
["LBM","Teicoplanine","TEICOP","Teicoplanine","Sang","Tube EDTA (bouchon violet)","violet","Préciser la date et l'heure de la dernière prise du médicament, et sa posologie. Remplir le tube.","-","5°C à 25°C","-","< 24 heures",null,null,null,null,null,null,null,null,null,null,null,null,null,"Biochimie","24 heures","6 jours","Alinity / Méthode : PETIA","en cours",null,null,null,"en cours "]
["LBM","Temps de céphaline activé (TCA)","TCA",null,"Sang ","Tube Citrate 9NC (bouchon bleu)","bleu","Traitement Anticoagulant obligatoire\nPréciser l'heure de prélèvement","Sang total","20°C ± 5°C","-","< 8 heures                                                    ",{"$f":"F461","v":"Tube Citrate 9NC (bouchon bleu)"},null,null,"Plasma décanté","20°C ± 5°C","Centrifugation et congélation dans les 4h suivant le prélèvement","< 8 heures",{"$f":"M461","v":"Tube Citrate 9NC (bouchon bleu)"},{"$f":"O461","v":0},"Plasma décanté","-20°C","Centrifugation et congélation dans les 4H suivant le prélèvement","Aucun","Hématologie biologique","7J/7  24h/24\nUrgence: 1h30 \nDélai max: 4h","8 heures\n","Chronométrie",1127,null,null,null,"B20"]
["LBM","Temps de céphaline au kaolin (TCK)","TCK",null,"Sang ","Tube Citrate 9NC (bouchon bleu)","bleu","Traitement Anticoagulant obligatoire\nPréciser l'heure de prélèvement","Sang total","20°C ± 5°C","-","< 8 heures                                                    ",{"$f":"F462","v":"Tube Citrate 9NC (bouchon bleu)"},null,null,"Plasma décanté","20°C ± 5°C","Centrifugation et congélation dans les 4h suivant le prélèvement","< 8 heures ",{"$f":"M462","v":"Tube Citrate 9NC (bouchon bleu)"},0,"Plasma décanté","-20°C","Centrifugation et congélation dans les 4h suivant le prélèvement","Aucun","Hématologie biologique","7J/7  24h/24\nUrgence: 1h30 \nDélai max: 4h","8 heures\n","Chronométrie",1127,null,null,null,"B20"]
["LBM","Test de Kleihauer","KLEIH",null,"Sang","Tube EDTA (Bouchon violet)","violet","Peut être réalisé sur le même tube que la NFS.","Sang total","20°C ± 5°C","-","< 4 heures"," ",null,null," "," "," "," ",{"$f":"M463","v":" "},0," "," "," "," ","Hématologie biologique","5J/7 (lundi au vendredi)\nDélai : 1 à 5 jours","8 heures","Cytochimie",2109,null,null,null,"B70"]
["LBM","Testostérone","TESTO/TESTOF","Testostérone","Sang","Tube sec (bouchon rouge) ","rouge","Pas de forte hémolyse.","-","5°C à 25°C","-","<4 heures","Tube sec (bouchon rouge) ","rouge",null,"Serum décanté congelé","-20°C","-",">4 heures",null,null,null,null,null,null,"Biochimie","2 fois par semaine/ délai max : 5 jours","7 jours si décanté","Alinity / Méthode : CMIA ","0357 ou 1136",null,null,null,"B51 ou B70"]
["LBM","Tétanos sérologie  (contrôle vaccination)","TETAP","Tétanos (Sérologie vaccination)","Sang","Tube sec (bouchon rouge) ","rouge","-","-","5°C à 25°C","-","< 4 heures",null,null,null,null,null,null,null,null,null,null,null,null,null,"Sous-traitant Laboratoire CERBA","Fréquence : transmis en France une fois par semaine\nDélai : de 15 jours à 1 mois","-","EnzymoImmunoanalyse",null,null,null,null,"B50"]
["LBM","Théophylline","THEO","Théophylline","Sang","Tube sec (bouchon rouge) ","rouge","Ne pas utiliser de tube avec gel séparateur.","-","5°C à 25°C","-","<24 heures","Tube sec (bouchon rouge) ","rouge",null,"Sérum décanté congelé","-20°C","-",">24 heures",null,null,null,null,null,null,"Biochimie","lundi au vendredi (7-17h)/24 heures hors WE","7 jours","Alinity / Méthode : Immunoenzymatique","0335",null,null,null,"B50"]
["LBM","Thiopental","THIOP",null,"Sang","Tube sec (bouchon rouge) ","rouge","1 mL minimum","Sérum","5°C ± 3°C","-","< 6 heures",null,null,null,null,null,null,null,null,null,null,null,null,null,"Toxicologie","Avant 12 heures  hors garde  WE  férié et pont\nDélai : 1 semaine","-","UPLC-DAD","1673",null,null,null,"B120"]
["LBM","Thrombopénie induite à l’héparine (TIH): Confirmation","TIHBIL",null,"Sang","Tube Citrate 9NC (bouchon bleu)","bleu","Compléter le score 4T GESO-QUA-DO-61","Sang total","20°C ± 5°C","-","< 24 heures",{"$f":"F468","v":"Tube Citrate 9NC (bouchon bleu)"},null,null,"Plasma décanté","20°C ± 5°C","-","< 24 heures",{"$f":"M468","v":"Tube Citrate 9NC (bouchon bleu)"},{"$f":"O468","v":0},{"$f":"P468","v":"Plasma décanté"},"-20°C","-","aucun","Hématologie biologique","5J/7 (lundi au vendredi)\nNon réalisé en garde\nDélai : 1 à 3 jours","24 heures","EnzymoImmunoanalyse",1024,"doc 18",null,null,"B150"]
["LBM","Thrombopénie induite à l’héparine (TIH): dépistage ","TIH",null,"Sang ","Tube Citrate 9NC (bouchon bleu)","bleu","Compléter le score 4T GESO-QUA-DO-61","Sang total","20°C ± 5°C","-","< 12 heures",null,null,null,null,null,null,null,null,null,null,null,null,null,"Hématologie biologique"," 7J/7  24H/24\nUrgence: 1H30 \nDélai max: 4h","12 heures","Immunoanalyse",1024,"doc 18",null,null,"B150"]
["LBM","Thyréostimuline (TSH)","TSH","TSH","Sang","Tube sec (bouchon rouge)","rouge","-","-","5°C à 25°C","-","< 8 heures","Tube sec (bouchon rouge)","rouge",null,"Sérum décanté congelé","-20°C","-",">8 heures",null,null,null,null,null,null,"Biochimie","tous les jours (24 heures/24)/1h30 urg ou 4h routine","7 jours","Alinity / méthode : CMIA","1208",null,null,null,"B31"]
["LBM","Thyroglobuline","THYRO","Thyroglubuline","Sang","Tube sec (bouchon rouge) ","rouge","-","-","5°C à 20°C","-","<24 heures","Tube sec (bouchon rouge) ","rouge",null,"Serum décanté congelé","-20°C","-",">24 heures",null,null,null,null,null,null,"Biochimie","1 fois par semaine","2 Jours","KRYPTOR S Plus","0821",null,null,null,"B60"]
["LBM","Toxocarose sérologie","TOXAP","Toxocarose (Sérologie)","Sang","Tube sec (bouchon rouge) ","rouge","-","-","5°C à 25°C","-","< 4 heures",null,null,null,null,null,null,null,null,null,null,null,null,null,"Sous-traitant Laboratoire CERBA","Fréquence : transmis en France une fois par semaine\nDélai : de 15 jours à 1 mois","-","EnzymoImmunoanalyse",4340,null,null,null,"B90"]
["LBM","Toxoplasmose avidité des IgG","TOXAV","Toxoplasmose (avidité IgG)","Sang","Tube sec (bouchon rouge) ","rouge","-","-","5°C à 25°C","-","< 4 heures",null,null,null,null,null,null,null,null,null,null,null,null,null,"Immuno-Sérologie","Fréquence : du lundi au vendredi \nDélai : 24 h","-","Chimiluminescence",null,null,null,null,"3150F"]
["LBM","Toxoplasmose ISAGA (confirmation) IgA IgM IgG","ISAGP","ISAGA (Toxoplasmose IgA IgM)","Sang","Tube sec (bouchon rouge) ","rouge","-","-","5°C à 25°C","-","< 4 heures",null,null,null,null,null,null,null,null,null,null,null,null,null,"Sous-traitant Laboratoire CERBA","Fréquence : transmis en France une fois par semaine\nDélai : de 15 jours à 1 mois","-","ISAGA",1437,null,null,null,"B60 +B60"]
["LBM","Toxoplasmose sérologie IgG et IgM","TOXO","Toxoplasmose (Sérologie IgG + IgM)","Sang","Tube sec (bouchon rouge) ","rouge","-","-","5°C à 25°C","-","< 4 heures",null,null,null,null,null,null,null,null,null,null,null,null,null,"Immuno-Sérologie","Fréquence : du lundi au vendredi \nDélai : 24 h","-","Chimiluminescence","1430/1432",null,null,null,"B40"]
["LBM","Transaminases (TGO ou ASAT)","TRANS/TGO","ALAT ASAT","Sang","Tube hépariné (bouchon vert)","vert","Pas d'hémolyse","-","5°C à 25°C","-","<24 heures","Tube hépariné (bouchon vert)","vert",null,"Plasma hépariné décanté","-20°C",null,">24 heures",null,null,null,null,null,null,"Biochimie","tous les jours (24 heures/24) (24 heures/24)/1h30 urg ou 4h routine","3 jours","Alinity / Méthode : IFCC","0516",null,null,null,"B7"]
["LBM","Transaminases (TGP ou ALAT)","TRANS/TGP","ASAT ALAT","Sang","Tube hépariné (bouchon vert)","vert","Pas d'hémolyse","-","5°C à 25°C","-","<24 heures","Tube hépariné (bouchon vert)","vert",null,"Plasma hépariné décanté","-20°C",null,">24 heures",null,null,null,null,null,null,"Biochimie","tous les jours (24 heures/24) (24 heures/24)/1h30 urg ou 4h routine","3 jours","Alinity / Méthode : IFCC","0517",null,null,null,"B7"]
["LBM","Transcrit BCR-ABL (Suivi LMC p210)","ABL",null,"Sang total ","2 Tubes EDTA (bouchon violet)","violet","Renseignements cliniques  traitement et indication indispensables.\n\nPrélever 2 tubes bien remplis : 2 x 4 mL","Sang total ","5°C ± 3°C"," ","< 72 heures",null,null,null,null,null,null,null,null,null,null,null,null,null,"Hématologie biologique","5J/7 (lundi au vendredi)\nNon réalisé en garde\nDélai : 1 à 3 jours","72 heures","PCR en temps réel","France 1035",null,null,null,"BF460"]
["LBM","Transferrine","TRF","Transferrine","Sang","Tube sec (bouchon rouge) ","rouge","-","-","5°C à 25°C","-","<24 heures","Tube sec (bouchon rouge) ","rouge",null,"Serum décanté","-20°C","-",">24 heures",null,null,null,null,null,null,"Biochimie","tous les jours (24 heures/24)/1h30 urg ou 4h routine","3 jours","Alinity / Méthode : Immunoturbidimétrie","1819",null,null,null,"B14"]
["LBM","Transfert embryonnaire","x","TRANSFERT","Milieu de culture","Cathéthers échogène ELLIOS","kitelios","Rendez vous donné par le laboratoire","Embryon","37°C ± 1°C","Pas de transport","immédiat","Cathéthers échogène COOK","kitcook",null,"Embryon","37°C ± 1°C","Pas de transport","immédiat",null,null,null,null,null,null,"BDR","Fréquence: 5j/7j Délai: immédiat",null,"Examen direct",null,"doc 21",null,"OU","BAMP 150"]
["LBM","Tréponème","TREPO",null,"Ulcération génitale","Lame et lamelle","lame","Recueillir la sérosité présente au centre de la lésion à l'aide d'un vaccinostyle ou bactopick  déposer immédiatement entre lame et lamelle.","-","20°C ± 5°C","-","< 15 minutes",null,null,null,null,null,null,null,null,null,null,null,null,null,"Bactériologie"," Fréquence : du lundi au vendredi  \nde 7H à 18 heures\nDélai : 1 jour","-","Examen direct",null,null,null,null,"B40"]
["LBM","Triglycérides","TRG","TG","Sang","Tube hépariné (bouchon vert)","vert","Prélèvement à jeun.","-","5°C à 25°C","-","<24 heures","Tube hépariné (bouchon vert)","vert",null,"Plasma Hépariné décanté","-20°C",null,">24 heures",null,null,null,null,null,null,"Biochimie","tous les jours (24 heures/24)/1h30 urg ou 4h routine","7 jours","Alinity / Méthode : Glycérol phosphate oxydase","0590",null,null,null,"B7"]
["LBM","Trisomie 21 - Dépistage 1er trimestre (Free BHCG et PAPP A)","T21k1","Dépistage T21 1er Trimestre","Sang","Tube sec (bouchon rouge) ","rouge","Les prélèvements doivent parvenir au laboratoire dans les 48 heures à 4°C et décanté.  Tubes avec sous sans gel séparateur. 2 tubes necessaires, bien remplis.\nEn cas d'impossibilité d'envoi des échantillons dans les 24 heures  le sérum doit être décanté puis transporté congelé.\nJoindre au prélèvement le formulaire dûment complété : \n- Fiche de renseignements pour le dépistage du risque de trisomie 21 : Attestation - consentement - renseignements cliniques et échographiques (clarté nucale  LCC  date de l'échographie  âge de la patiente...) GESO-LABO-DO-22. ",null,"5°C à 25°C","-","<1 heures","Tube sec (bouchon rouge) ","rouge",null,"Serum décanté ","5°C ± 3°C","-","<48 heures","Tube sec (bouchon rouge) ",null,"Serum décanté ","-20°C","> 48 heures",null,"Biochimie","Du lundi au vendredi / délai : 1 à 5jours en fonction des contrôles à effectuer.","-","KRYPTOR S plus","4006","doc 13",null,null,"B185"]
["LBM","Trisomie 21 - Dépistage 2ème trimestre (Free BHCG et AFP)","T21K2","Dépistage T21 2e Trimestre","Serum","Tube sec (bouchon rouge) ","rouge","Les prélèvements doivent parvenir au laboratoire dans les 48 heures à 4°C et décanté.  Tubes avec sous sans gel séparateur. 2 tubes necessaires, bien remplis.\nEn cas d'impossibilité d'envoi des échantillons dans les 24 heures  le sérum doit être décanté puis transporté congelé.\nJoindre au prélèvement le formulaire dûment complété : \n- Fiche de renseignements pour le dépistage du risque de trisomie 21 : Attestation - consentement - renseignements cliniques et échographiques (clarté nucale  LCC  date de l'échographie  âge de la patiente...) GESO-LABO-DO-22. ",null,"5°C à 25°C","-","<1 heures","Tube sec (bouchon rouge) ","rouge",null,"Serum décanté ","5°C ± 3°C","-","<48 heures","Tube sec (bouchon rouge) ",null,"Serum décanté ","-20°C","> 48 heures",null,"Biochimie","Du lundi au vendredi / délai : 1 à 5jours en fonction des contrôles à effectuer.","-","KRYPTOR S plus","4004","doc 13",null,null,"B125"]
["LBM","Trophallergènes Adultes: mélange","TROPHA","TROPHATOP adulte","Sang","Tube sec (bouchon rouge) ","rouge","-","-","5°C à 20°C","-","<24 heures","Tube sec (bouchon rouge) ","rouge",null,"Serum décanté congelé","-20°C","-",">24 heures",null,null,null,null,null,null,"Biochimie","1 fois par semaine","7 Jours","ELIA Phadia","1202",null,null,null,"B51"]
["LBM","Trophallergènes Enfants: mélange ","TROPHE","TROPHATOP enfant","Sang","Tube sec (bouchon rouge) ","rouge","-","-","5°C à 20°C","-","<24 heures","Tube sec (bouchon rouge) ","rouge",null,"Serum décanté congelé","-20°C","-",">24 heures",null,null,null,null,null,null,"Biochimie","1 fois par semaine","7 Jours","ELIA Phadia","1202",null,null,null,"B51"]
["LBM","Troponine","TROPUS","Troponine","Sang","Tube sec (bouchon rouge) ","rouge","-","-","5°C à 25°C","-","<8 heures","Tube sec (bouchon rouge) ","rouge",null,"Serum décanté","-20°C","-",">8 heures",null,null,null,null,null,null,"Biochimie","tous les jours (24 heures/24)/1h30 urg ou 4h routine","8 heures","Alinity / Méthode : CMIA","7335",null,null,null,"B65"]
["LBM","Tryptase","TRYPTA","Tryptase","Sang","Tube sec (bouchon rouge) ","rouge","-","-","5°C à 20°C","-","<24 heures","Tube sec (bouchon rouge) ","rouge",null,"Serum décanté congelé","-20°C","-",">24 heures",null,null,null,null,null,null,"Biochimie","1 fois par semaine","7 Jours","ELIA Phadia","0969",null,null,null,"B80"]
["LBM","Urée ","URE","Urée ","Sang","Tube hépariné (bouchon vert)","vert","-","-","5°C à 25°C","-","<24 heures","Tube hépariné (bouchon vert)","vert",null,"Plasma hépariné décanté","-20°C","-",">24 heures",null,null,null,null,null,null,"Biochimie","tous les jours (24 heures/24)/1h30 urg ou 4h routine","7 jours","Alinity / Méthode : Uréase","0591",null,null,null,"B7"]
["LBM","Urée sur liquide biologique","UREL","Urée sur liquide biologique","Liquide biologique","Poudrier","poud","-","-","5°C à 25°C","-","<24 heures","Poudrier","poud",null,"Liquide biologique","<8°C","-",">24 heures",null,null,null,null,null,null,"Biochimie","tous les jours (24 heures/24)/4h","1 jour","Alinity / Méthode : Uréase","-",null,null,null,"B7"]
["LBM","Urée urinaire","UREU","Urée urinaire","Urine","Tube à urine chimie","brun","-","-","5°C à 25°C","-","<24 heures","Pot à urine","ecbu",null,"urine","5°C à 25°C","-","<24 heures","Pot à urine",null,"urine","<8°C","-",">24 heures","Biochimie","tous les jours (24 heures/24)/4h","7 jours","Alinity / Méthode : Uréase","-",null,null,null,"B7"]
["LBM","Urée urinaire 24h","URE24","Urée urinaire 24h","Urine des 24 heures","Tube à urine chimie","brun","Au lever  éliminer les premières urines. Ensuite  recueillir la totalité des urines pendant 24 heures. Noter la diurèse.","-","5°C à 25°C","-","<24 heures","Pot à urine","ecbu",null,"Urine des 24H ","5°C à 25°C","-","<24 heures","Pot à urine",null,"Urine des 24H ","<8°C","-",">24 heures","Biochimie","tous les jours (24 heures/24)/4h","7 jours","Alinity / Méthode : Uréase","-",null,null,null,"B7"]
["LBM","Urètre","URET",null,"Prélèvement Urétral","2 Ecouvillons (1 sec + 1 gélosé)","ecouecouG","En cas d'écoulement purulent  prélever sur écouvillon gélosé pour la recherche de neisseria gonorrhoeae par culture ; conservation jusqu'à 24 heures à 20°C ± 5°C (uniquement)","-","20°C ± 5°C","-","< 2 heures",null,null,null,null,null,null,null,null,null,null,null,null,null,"Bactériologie"," Fréquence : du lundi au vendredi  \nde 7H à 18 heures\nDélai : de 72 heures à 1 semaine","-","Examen direct + Culture Bactérienne",null,null,null,null,"B120"]
["LBM","Urines  (ECBU)","CBU",null,"Urines ","Tube boraté (ECBU)","borate","-","-","20°C ± 5°C","-","< 48 heures","Pot à urine stérile","ecbu",null,"-","20°C ± 5°C","-","< 2 heures",null,null,null,null,null,null,"Bactériologie","Fréquence : du lundi au dimanche  \nde 7H à 18 heures \nDélai : de 24 heures à 4 jours","-","Examen direct + Culture Bactérienne",null,null,null,"OU","B65"]
["LBM","Vagin","PV",null,"Prélèvement vaginal","3 Ecouvillons (2 secs + 1 gélosé)","ecouecouG","-","-","20°C ± 5°C","-","< 2 heures","écouvillons gélosés","ecouG",null,"-","20°C ± 5°C","-","< 24 heures",null,null,"-","5°C ± 3°C","-","< 12 heures","Bactériologie","Fréquence : du lundi au dimanche  \nde 7H à 18 heures \nDélai : de 72 heures à 1 semaine","-","Examen direct + Culture Bactérienne",null,null,null,"OU","B140"]
["LBM","Vancomycine","VANC/VANCP/VANCV","Vancomycine","Sang","Tube sec (bouchon rouge) ","rouge","Préciser la date et l’heure de la dernière prise de médicament, et sa posologie. Ne pas utiliser de tubes avec gel séparateur. Un taux résiduel se prélève juste avant la prise du médicament, habituellement très tôt le matin. ","-","5°C à 25°C","-","<24 heures","Tube sec (bouchon rouge) ","rouge",null,"Serum décanté","-20°C","-",">24 heures",null,null,null,null,null,null,"Biochimie","tous les jours (24 heures/24)/1h30 urg ou 4h routine","7 jours","Alinity / Méthode : PETINIA","1650",null,null,null,"B70"]
["LBM","Varicelle - Zona (VZV) contrôle d'immunité (IgG)","VZVCI","VZV (Sérologie Varicelle Zona d'immunité IgG)","Sang","Tube sec (bouchon rouge) ","rouge","-","-","5°C à 25°C","-","< 4 heures",null,null,null,null,null,null,null,null,null,null,null,null,null,"Immuno-Sérologie","Fréquence : 1 fois par semaine  le lundi\nDélai : 7 jours","-","EnzymoImmunoanalyse",1779,null,null,null,"B70"]
["LBM","VIH (Charge virale)","CVVIH","VIH (Charge virale HIV ARN)","Sang","2 Tubes EDTA (bouchon violet)","violet","Uniquement pour le suivi des patients VIH+.\nEn cas d'impossibilité d'envoi des échantillons dans les 4 heures post-prélèvement  le plasma doit être décanté puis transporté congelé (- 20°C ± 5°C) jusqu'à réception au laboratoire.","-","5°C à 25°C","-","< 4 heures",null,null,null,null,null,null,null,null,null,null,null,null,null,"Biologie Moléculaire","A la demande du lundi au vendredi \nDélai : 2h","-","PCR temps réel",4122,null,null,null,"B220"]
["LBM","VIH ADN proviral (recherche qualitative)","ADNPRO","Genotypage (HIV ADN proviral résistance)","Sang","2 Tubes EDTA (bouchon violet)","violet","-","-","5°C à 25°C","-","< 4 heures",null,null,null,null,null,null,null,null,null,null,null,null,null,"Sous-traitant Laboratoire CERBA","Fréquence : transmis en France une fois par semaine\nDélai : de 15 jours à 1 mois","-","PCR temps réel",null,null,null,null,"17900F"]
["LBM","VIH génotypage de résistance aux Antirétroviraux","RESVP","VIH (génotypage HIV résistance Antirétroviraux Intégrase antiprotéase IP NUC)","Sang","2 Tubes EDTA (bouchon violet)","violet","Le génotypage de résistance ne peut être réalisé que si CV > à 100 copies.\nEn cas d'impossibilité d'envoi des échantillons dans les 4 heures post-prélèvement  le plasma doit être décanté puis transporté congelé (- 20°C ± 5°C) jusqu'à réception au laboratoire.","-","5°C à 25°C","-","< 4 heures",null,null,null,null,null,null,null,null,null,null,null,null,null,"Sous-traitant Laboratoire CERBA","Fréquence : transmis en France une fois par semaine\nDélai : de 15 jours à 1 mois","-","Séquençage",805,null,null,null,"B1100"]
["LBM","VIH génotypage de résistance Inhibiteur de l'Intégrase","INTP","VIH (Génotype HIV résistance IP NUC Intégrase)","Sang","2 Tubes EDTA (bouchon violet)","violet","Le génotypage de résistance ne peut être réalisé que si CV > à 100 copies/ml.\nEn cas d'impossibilité d'envoi des échantillons dans les 4 heures post-prélèvement  le plasma doit être décanté puis transporté congelé (- 20°C ± 5°C) jusqu'à réception au laboratoire.","-","5°C à 25°C","-","< 4 heures",null,null,null,null,null,null,null,null,null,null,null,null,null,"Sous-traitant Laboratoire CERBA","Fréquence : transmis en France une fois par semaine\nDélai : de 15 jours à 1 mois","-","Séquençage",null,null,null,null,"25515F"]
["LBM","VIH sérologie (dépistage)","HIV","VIH (Sérologie HIV dépistage P24 combinée)","Sang","Tube sec (bouchon rouge) ","rouge","En cas d'accident d'exposition au Sang  utiliser le bon de prescription dédié : \n\"Bon de prescription AES CHT\" (GESO-QUA-DO-55).\nLes prélèvements doivent être transmis au laboratoire en urgence pour la réalisation de l'analyse par le service de garde. ","-","5°C à 25°C","-","< 4 heures",null,null,null,null,null,null,null,null,null,null,null,null,null,"Immuno-Sérologie","Fréquence : du lundi au dimanche. \nRéalisé 24 heures sur 24  7j sur7 pour les AES\nDélai : 24 heures et 1h30 pour AES","-","Chimiluminescence/Immunochromatographie (AES)",388,"doc 15",null,null,"B52"]
["LBM","VIH test de confirmation = ImmunoBlot (uniquement si dépistage positif)","WB","VIH (Confirmation ImmunoBlot WesternBlot)","Sang","Tube sec (bouchon rouge) ","rouge","Réalisée uniquement si sérologie de dépistage positive.","-","5°C à 25°C","-","< 4 heures",null,null,null,null,null,null,null,null,null,null,null,null,null,"Immuno-Sérologie","Fréquence : du lundi au vendredi\nDélai : 48 h","-","Immunoblot",389,null,null,null,"B240"]
["LBM","VIH Tropisme CCR5","CCR5P","CCR5 (tropisme Celsentri Maraviroc)","Sang","2 Tubes EDTA (bouchon violet)","violet","En cas d'impossibilité d'envoi des échantillons dans les 4 heures post-prélèvement  le plasma doit être décanté puis transporté congelé (- 20°C ± 5°C) jusqu'à réception au laboratoire.\nEn cas de CV indétectable  prévoir un tube EDTA supplémentaire non décanté.","-","5°C à 25°C","-","< 4 heures",null,null,null,null,null,null,null,null,null,null,null,null,null,"Sous-traitant Laboratoire CERBA","Fréquence : transmis en France une fois par semaine\nDélai : de 15 jours à 1 mois","-","Séquençage",806,null,null,null,"B550"]
["LBM","Virus respiratoire syncytial (VRS sérologie)","SVRSP","VRS (Virus Respiratoire Syncytial Sérologie)","Sang","Tube sec (bouchon rouge) ","rouge","-","-","5°C à 25°C","-","< 4 heures",null,null,null,null,null,null,null,null,null,null,null,null,null,"Sous-traitant Laboratoire CERBA","Fréquence : transmis en France une fois par semaine\nDélai : de 15 jours à 1 mois","-","EnzymoImmunoanalyse",null,null,null,null,"B70"]
["LBM","Virus Respiratoire Syncytial (VRS) ","EDVRS","VRS (Virus respiratoire syncytial)","Prélèvement respiratoire (crachat  aspiration…)","Poudrier stérile","poud","-","-","5°C à 25°C","-","< 4 heures","Tube sec (bouchon rouge)","rouge",null,"-","5°C à 25°C","-","< 4 heures",null,null,null,null,null,null,"Biologie Moléculaire","Fréquence :  7j sur 7 de 6h30 à 18 heures et sur demande en garde de nuit\nDélai : 5 jours","-","Immunochromatographie",4247,null,null,null,"B70"]
["LBM","Vitamine B12","VITB12","B12","Sang","Tube sec (bouchon rouge) ","rouge","Absence d’hémolyse","-","5°C à 25°C","-","<24 heures","Tube sec (bouchon rouge) ","rouge",null,"Serum décanté","-20°C","-",">24 heures",null,null,null,null,null,null,"Biochimie","tous les jours (24 heures/24)/4h","7 jours","Alinity / méthode : dosage microparticulaire par chimiluminescence","1374",null,null,null,"B45"]
["LBM","Vitamine D (25OH)","VD25","Vitamine D (25OH)","Sang","Tube sec (bouchon rouge) ","rouge","Pas de forte hémolyse. Prélèvement à jeun.","-","5°C à 25°C","-","<24 heures","Tube sec (bouchon rouge) ","rouge",null,"Serum décanté congelé","-20°C","-",">24 heures",null,null,null,null,null,null,"Biochimie","1 fois par semaine","3 jours","Alinity / Méthode : CMIA","1139",null,null,null,"B42"]
["LBM","Vitesse de sédimentation (VS)","VS",null,"Sang total \n","Tube à VS (bouchon noir)","vs","-","-","20°C ± 5°C","-","< 12 heures",null,null,null,null,null,null,null,null,null,null,null,null,null,"Hématologie biologique","7J/7  24H/24\nDélai max: 24h","-","Mesure de sédimentation\nLecture visuelle",1124,null,null,null,"B7"]
["LBM","Voriconazole","VORICO",null,"Sang","Tube sec (bouchon rouge) ","rouge","1 mL minimum","Sérum","5°C ± 3°C","-","< 6 heures",null,null,null,null,null,null,null,null,null,null,null,null,null,"Toxicologie","Avant 12 heures  hors garde  WE  férié et pont\nDélai : 1 semaine","-","UPLC-DAD","M002",null,null,null,"4850 F"]
["LBM","West Nile Virus sérologie","WNP","WNV (West Nile Virus Sérologie)","Sang","Tube sec (bouchon rouge) ","rouge","-","-","5°C à 25°C","-","< 4 heures",null,null,null,null,null,null,null,null,null,null,null,null,null,"Sous-traitant Laboratoire CERBA","Fréquence : transmis en France une fois par semaine\nDélai : de 15 jours à 1 mois","-","EnzymoImmunoanalyse",1253,null,null,null,"B70 + B70"]
["LBM","Zika PCR","PCZIK","Zika (PCR)","Urines +/- Sang","Tube sec (bouchon rouge) ","rouge","Diagnostic précoce : (de J+0 à J+7) à prélever sur urine + Sang ; (de J+7 à J+15) à prélever sur urines uniquement. Renseignements obligatoires : date de début des signes cliniques + préciser si retour récent de voyage ou notion de grossesse en cours.",null,"5°C à 25°C","-","< 4 heures","Poudrier stérile","ecbu",null,"-","5°C à 25°C","-","< 4 heures",null,null,null,null,null,null,"Biologie Moléculaire","Fréquence : 1 fois par semaine\nDélai : 24 heures à 7 jours","-","PCR temps réel",null,null,null,"OU","10 400F"]
["LBM","Zika Sérologie (IgM+ IgG)","SZIK","Zika (Sérologie IgM+ IgG)","Sang","Tube sec (bouchon rouge) ","rouge","Diagnostic tardif (apparition des IgM après J+5). Renseignement obligatoire : date de début des signes cliniques.","-","5°C à 25°C","-","< 4 heures",null,null,null,null,null,null,null,null,null,null,null,null,null,"Immuno-Sérologie","Fréquence: minimum 1 fois par semaine ","-","EnzymoImmunoanalyse",null,null,null,null,"7800F"]

{"sheet":"STS","index":2,"n_rows":26,"n_cols":45,"rows_kept":26,"cut":false,"hidden":true,"merged":[[0,2,0,4],[0,5,0,32]]}
[null," ",null,null,null,"Répertoire des analyses : Laboratoires du CHT Gaston Bourret",null,null,null,null,null,null,null,null,null,null,null,null,null,null,null,null,null,null,null,null,null,null,null,null,null,null,null,null,null,null,null,null,null,null,null,null,null,"Analyse","Laboratoire exécutant                       "]
["Service","Analyse","Code informatique","Abréviation = inutilisé","Nature du prélèvement","Contenant 1","Photo 1","Recommandations / Renseignements complémentaires ","Type 1","T° 1","Avant transport 1","Délai 1","Contenant 2","photo2","non utilisé","Type 2","T° 2","Avant transport 2","Délai2","non utilisé1","non utilisé2","non utilisé3","non utilisé4","non utilisé5","non utilisé6","Laboratoire exécutant                       ","Fréquence / Délais min. et max. de rendu de résultat (jours ouvrés)","Délais d’ajout (échantillon prétraité)","Principe de la méthode \n","Code acte","Fiche renseignement","Et ou OU","Cotation",null,null,null,null,null,null,null,null,null,null,"*fd*"]
["STS","Adsorption des Anticorps Anti-érythrocytaires","000EAA","adsorption anticorps anti-érythrocytaire","Sang total EDTA","3 Tubes EDTA (bouchon violet)","violet3","Bien remplir les tubes","-","T° amb","-","24 heures",null,null,null,null,null,null,null,null,null,null,null,null,null,"STS","Quotidien","dans les 24h post pvt","Méthode Immunologique d'hémagglutination et dérivée",null,null,null,"B20"]
["STS","Anticorps Anti-HLA : recherche","ACHLA","HLA : recherche d'anticorps","Serum","4 Tubes sec (bouchon rouge) ","rouge4","tubes + bon dans un sachet à part pour toutes les analyses HLA","-","T° amb","-","24 heures",null,null,null,null,null,null,null,null,null,null,null,null,null,"STS","Quotidien","dans les 72h post pvt","Methode Immunologique automatisée Luminex ",null,null,null,"depistage (HN 28000 F), Id Classe I (HN 59000), Id Classe II (HN 59000).PEC selon convention CAFAT-CHT",null,null,null,null,null,null,null,null,null,null,"Analyse","Laboratoire exécutant                       "]
["STS","Anticorps Anti-HLA : sérum mensuel patient attente greffe","HLASML","sérothèque mensuelle HLA","Serum","1 Tube sec (bouchon rouge)  ","rouge","tubes + bon dans un sachet à part pour toutes les analyses HLA","-","T° amb","-","24 heures",null,null,null,null,null,null,null,null,null,null,null,null,null,"STS","Quotidien","dans les 72h post pvt","Methode Immunologique automatisée Luminex ",null,null,null,"PEC selon convention CAFAT-CHT"]
["STS","Cross-Match lymphocytaire du donneur","HLANXD","XM LCT donneur","Plasma ACD","4 tubes ACD (bouchon jaune)","jaune4","tubes + bon dans un sachet à part pour toutes les analyses HLA","-","T° amb","-","24 heures",null,null,null,null,null,null,null,null,null,null,null,null,null,"STS","Quotidien","-","Methode manuelle LCT (STS)  ou CMF (Sydney)",null,null,null,"PEC selon convention CAFAT-CHT"]
["STS","Cross-Match lymphocytaire du donneur Sydney","HLFSXD","XM cytométrie donneur","Sérum et Plasma ACD","10 tubes ACD de 6 ml (bouchon jaune) ","jaune10","tubes + bon dans un sachet à part pour toutes les analyses HLA","-","T° amb","-","24 heures",null,null,null,null,null,null,null,null,null,null,null,null,null,"Sydney","A la demande, envoi le lundi","-","-",null,null,null,"PEC selon convention CAFAT-CHT"]
["STS","Cross-Match lymphocytaire du receveur","HLANXM","XM LCT receveur","Sérum ","4 Tubes sec (bouchon rouge) ","rouge4","tubes + bon dans un sachet à part pour toutes les analyses HLA","-","T° amb","-","24 heures",null,null,null,null,null,null,null,null,null,null,null,null,null,"STS","Quotidien","-","Methode manuelle LCT (STS)  ou CMF (Sydney)",null,null,null,"PEC selon convention CAFAT-CHT"]
["STS","Cross-Match lymphocytaire du receveur Sydney","HLFSXM","XM cytométrie receveur","Sérum et Plasma ACD","10 tubes ACD de 6 ml (bouchon jaune)","jaune10","tubes + bon dans un sachet à part pour toutes les analyses HLA","-","T° amb","-","24 heures","2 Tubes sec (bouchon rouge)","rouge2",null,"-","T° amb","-","24 heures",null,null,null,null,null,null,"Sydney","A la demande, envoi le lundi","-","-",null,null,"ET","PEC selon convention CAFAT-CHT"]
["STS","Détermination de groupes sanguins Phénotype étendu","PHET","Phénotype étendu","Sang total EDTA","1 Tube EDTA (bouchon violet)","violet","Pas de transfusion dans les 4 derniers mois","-","T° amb","-","24 heures",null,null,null,{"$f":"I10","v":"-"},"4°C","-","5 jours",null,null,null,null,null,null,"STS","tous les jours (24 heures/24)/ 5h","dans les 5 jours post pvt","Méthode Immunologique d'hémagglutination et dérivée",1146,null,null,"B15 (max 5)"]
["STS","Dosage pondéral d'Anticorps Anti-érythrocytaires","ENVEXT","Dosage pondéral d'Anticorps Anti-érythrocytaires","Sang total EDTA","2 Tube EDTA (bouchon violet)","violet2","à coupler au titrage des anticorps anti érythrocytaires : 3 tubes au total","-","T° amb","-","24 heures",null,null,"à coupler au titrage des anticorps anti érythrocytaires : 3 tubes au total","-","4°C","-","5 jours",null,null,null,null,null,null,"CNRHP","A la demande, envoi le mardi","-","Hémagglutination en flux continu",1150,null,null,"B95"]
["STS","Élution d'Anticorps Anti-érythrocytaires","000EEA","Élution d'Anticorps Anti-érythrocytaires","Sang total EDTA","1 Tube EDTA (bouchon violet)","violet","-","-","T° amb","-","24 heures",null,null,null,null,null,null,null,null,null,null,null,null,null,"STS","Quotidien","dans les 24h post pvt","Méthode Immunologique d'hémagglutination et dérivée",null,null,null,"B20"]
["STS","Épreuve Directe de Compatibilité (EDC)","BCOM","Compatibilité","Sang total EDTA","1 Tube EDTA (bouchon violet)","violet","-","-","T° amb","-","24 heures",null,null,null,null,null,null,null,null,null,null,null,null,null,"STS","tous les jours (24 heures/24)/45 min urg ou 6h routine","dans les 72h post pvt","Méthode Immunologique d'hémagglutination et dérivée",1152,null,null,"B35"]
["STS","Groupe sanguin standard ABO RH1","GS","GS ABO RH1 adulte","Sang total EDTA","1 Tube EDTA (bouchon violet)","violet","tube 4 mL >12 ans\ntube pédiatrique entre 6 mois et 12 ans","-","T° amb","-","24 heures",null,null,null,{"$f":"I14","v":"-"},"4°C","-","5 jours",null,null,null,null,null,null,"STS","tous les jours (24 heures/24)/30 min urg ou 6h routine","dans les 5 jours post pvt","Méthode Immunologique d'hémagglutination et dérivée",1140,null,null,"B35 "]
["STS","Groupe sanguin standard ABO RH1  enfant de moins de 6 mois)","GSBB","GS n-né ABO RH1","Sang total EDTA","1 Tube EDTA (bouchon violet)","violet","Microtube nouveau-né (0 à 6 mois) sang périphérique","-","T° amb","-","24 heures",null,null,null,"-","4°C","-","5 jours",null,null,null,null,null,null,"STS","tous les jours (24 heures/24)/30 min urg ou 6h routine","dans les 5 jours post pvt","Méthode Immunologique d'hémagglutination et dérivée",1140,null,null,"B35 "]
["STS","Hémaglutinines ABO IgM+IgG (Titrage)","HEMAAB","immuns ABO","Sang total EDTA","1 Tube EDTA (bouchon violet)","violet","Associer un groupe si non connu + une RAI","-","T° amb","-","24 heures",null,null,null,"-","4°C","-","5 jours",null,null,null,null,null,null,"STS","Quotidien","dans les 5 jours post pvt","Méthode manuelle Immunologique d'hémagglutination et dérivée",1151,null,null,"B15"]
["STS","Phénotype RH KEL1","RHK","RH KEL1","Sang total EDTA","1 Tube EDTA (bouchon violet)","violet","tube 4 mL >12 ans\ntube pédiatrique entre 6 mois et 12 ans","-","T° amb","-","24 heures",null,null,null,"-","4°C","-","5 jours",null,null,null,null,null,null,"STS","tous les jours (24 heures/24)/30 min urg ou 6h routine","dans les 5 jours post pvt","Méthode Immunologique d'hémagglutination et dérivée",1145,null,null,"B39"]
["STS","Recherche d'Anticorps Anti-érythrocytaires (RAI) : Dépistage","RAID","RAI : dépistage","Sang total EDTA","1 Tube EDTA (bouchon violet)","violet","-","-","T° amb","-","24 heures",null,null,null,"-","4°C","-","5 jours",null,null,null,null,null,null,"STS","tous les jours (24 heures/24)/30 min urg ou 6h routine","dans les 5 jours post pvt","Méthode Immunologique d'hémagglutination et dérivée",1141,null,null,"B39"]
["STS","Recherche d'Anticorps Anti-érythrocytaires (RAI) : Identification ","IDRAI","RAI identification","Sang total EDTA","1 Tube EDTA (bouchon violet)","violet","-","-","T° amb","-","24 heures",null,null,null,"-","4°C","-","5 jours",null,null,null,null,null,null,"STS","tous les jours (24 heures/24)/ 8 heures ou plus si Identification complexe","dans les 5 jours post pvt","Méthode Immunologique d'hémagglutination et dérivée",1131,null,null,"B65"]
["STS","Recherche d'Anticorps Anti-érythrocytaires (RAI): Titrage","000TAC","Titrage d'Anticorps Anti-érythrocytaires","Sang total EDTA","1 Tube EDTA (bouchon violet)","violet","-","-","T° amb","-","24 heures",null,null,null,"-","4°C","-","5 jours",null,null,null,null,null,null,"STS","tous les jours (24 heures/24)/ 8 heures ou plus si Identification complexe","dans les 5 jours post pvt","Méthode Immunologique d'hémagglutination et dérivée",1149,null,null,"B20"]
["STS","Recherche d'Anticorps résiduels Post-injection d'Anti-D","RAntiD","Rhophylac recherche Ac résiduel","Sang total EDTA","1 Tube EDTA (bouchon violet)","violet","-","-","T° amb","-","24 heures",null,null,null,"-","4°C","-","5 jours",null,null,null,null,null,null,"STS","tous les jours (24 heures/24)/1h30 urg ou 6h routine","dans les 5 jours post pvt","Méthode Immunologique d'hémagglutination et dérivée",null,null,null,"B35 + B39"]
["STS","Recherche et Titrage des Agglutinines froides","000RAF","agglutinines froides","Sang total EDTA","1 Tube EDTA (bouchon violet) ","violet","Transporté à 37°C","-","37°C","-","1 heure",null,null,null,null,null,null,null,null,null,null,null,null,null,"STS","48 heures","/","Méthode manuelle Immunologique d'hémagglutination et dérivée",null,null,null,"B39"]
["STS","Sérologie Ac Anti-HTLV I et II","HTLBIL","HTLV I et II sérologie","Plasma EDTA ou Sérum","1 Tube EDTA (bouchon violet)","rougeviolet","-","-","T° amb","-","24 heures","1 Tube Sec (bouchon rouge)","rougeviolet",null,{"$f":"I23","v":"-"},"4°C","-","5 jours",null,null,null,null,null,null,"STS","Quotidien","dans les 5 jours post pvt","Methode Immunologique automatisée ARCHITECT",null,null,"OU","B70"]
["STS","Test Direct à l'Antiglobuline (TDA) (Coombs Direct)","CDABIL","Coombs direct dépistage","Sang total EDTA","1 Tube EDTA (bouchon violet)","violet","-","-","T° amb","-","24 heures",null,null,null,{"$f":"I24","v":"-"},"4°C","-","48 heures",null,null,null,null,null,null,"STS","tous les jours (24 heures/24)/30 min urg ou 6h routine","dans les 72h post pvt","Méthode Immunologique d'hémagglutination et dérivée",null,null,null,"B15"]
["STS","Test Direct à l'Antiglobuline (TDA) (Coombs Direct) : Identification","ICDBIL","Coombs direct identification","Sang total EDTA","1 Tube EDTA (bouchon violet)","violet","-","-","T° amb","-","24 heures",null,null,null,{"$f":"I25","v":"-"},"4°C","-","48 heures",null,null,null,null,null,null,"STS","tous les jours (24 heures/24)/ 1h urg ou 6h routine","dans les 72h post pvt","Méthode Immunologique d'hémagglutination et dérivée",null,null,null,"B15 x 4"]
["STS","Typage HLA Classe I et Classe II","TYPHLA","HLA : Typage Classe I et Classe II","Plasma EDTA","2 Tubes EDTA (bouchon violet)","violet2","tubes + bon dans un sachet à part pour toutes les analyses HLA","-","T° amb","-","24 heures",null,null,null,null,null,null,null,null,null,null,null,null,null,"STS","Quotidien","dans les 72h post pvt","Méthode Immunologique automatisée SSO SSP",null,null,null,"classe I (HN 44800 F) classe II (HN 44800 F). PEC selon convention CAFAT-CHT"]

{"sheet":"Recherche Macro","index":3,"n_rows":24,"n_cols":21,"rows_kept":24,"cut":false,"hidden":false,"merged":[]}
[]
[null,null,null,null,null,null,null,null,null,null,null,null,null,null,null,null,null,null,null,null,"Référence IT-MU0-046-15"]
[null,null,null,null,null,null,null,null,null,null,null,null,null,null,null,null,null,null,null,null,"Applicable le 17-04-2023"]
[]
[]
[]
[]
[]
[]
[]
[]
[]
[]
[]
[]
[]
[]
[]
[]
[]
[]
[]
[]
[null,null,null,null,null,null,null,null,null,null,null,null,null,null,null," "]